extractdate,publisheruri,publisherlabel,serviceyypeuri,servicetypelabel,Date of Transaction,LA Department incurring spend,Beneficiary,Gross Amount,Summary of Purpose of Spend,Merchant Category
27/01/2016,http://opendatacommunities.org/id/county-council/surrey,Surrey,http://id.esd.org.uk/service/1465,Council expenditure,29/09/2015,ACCESS 2 EDUCATION NE NON-MEDICAL,"AMAZON SVCS EUROPE,SAR",8.09,STATIONERY,BOOK STORES
27/01/2016,http://opendatacommunities.org/id/county-council/surrey,Surrey,http://id.esd.org.uk/service/1465,Council expenditure,29/09/2015,ACCESS 2 EDUCATION NE NON-MEDICAL,AMAZON UK MARKETPLACE,14.88,STATIONERY,BOOK STORES
27/01/2016,http://opendatacommunities.org/id/county-council/surrey,Surrey,http://id.esd.org.uk/service/1465,Council expenditure,29/09/2015,ACCESS 2 EDUCATION NE NON-MEDICAL,AMAZON EU,40.04,EQUIPMENT,DIRECT MARKETING-OTHER DIRECT MARKETERS/NOT ELSEW.
27/01/2016,http://opendatacommunities.org/id/county-council/surrey,Surrey,http://id.esd.org.uk/service/1465,Council expenditure,29/09/2015,ACCESS PROGRAMMES,WWW.GAK.CO.UK,"2,736.60",EQUIPMENT,"MUSIC STORES-INSTRUMENTS, PIANOS, SHEET MUSIC"
27/01/2016,http://opendatacommunities.org/id/county-council/surrey,Surrey,http://id.esd.org.uk/service/1465,Council expenditure,29/09/2015,ACL CENTRAL EXPENDITURE,TESCO STORE 3220,55.56,PURCHASE OF FOOD (RAW MATERIALS),"GROCERY STORES, SUPERMARKETS"
27/01/2016,http://opendatacommunities.org/id/county-council/surrey,Surrey,http://id.esd.org.uk/service/1465,Council expenditure,29/09/2015,ARUNDEL,ASDA SUPERSTORE,6.68,REFRESHMENT COSTS,"GROCERY STORES, SUPERMARKETS"
27/01/2016,http://opendatacommunities.org/id/county-council/surrey,Surrey,http://id.esd.org.uk/service/1465,Council expenditure,29/09/2015,ARUNDEL,ASDA SUPERSTORE,14,CLEANING MATERIALS,"GROCERY STORES, SUPERMARKETS"
27/01/2016,http://opendatacommunities.org/id/county-council/surrey,Surrey,http://id.esd.org.uk/service/1465,Council expenditure,29/09/2015,ARUNDEL,RIVIERA HOTEL,228,EDUC VISITS/HOLS/CAMPS/TOYS,"LODGING-HOTELS,MOTELS,RESORTS-NOT CLASSIFIED"
27/01/2016,http://opendatacommunities.org/id/county-council/surrey,Surrey,http://id.esd.org.uk/service/1465,Council expenditure,29/09/2015,ARUNDEL,RIVIERA HOTEL,"1,000.00",EDUC VISITS/HOLS/CAMPS/TOYS,"LODGING-HOTELS,MOTELS,RESORTS-NOT CLASSIFIED"
27/01/2016,http://opendatacommunities.org/id/county-council/surrey,Surrey,http://id.esd.org.uk/service/1465,Council expenditure,29/09/2015,CAMHS SOCIAL WORKERS,WWW.CHILDMENTALHEALTHC,174,TRAINING EXPENSES EXTERNAL GENERAL,"DEBT, MARRIAGE, PERSONAL-COUNSELING SERVICE"
27/01/2016,http://opendatacommunities.org/id/county-council/surrey,Surrey,http://id.esd.org.uk/service/1465,Council expenditure,29/09/2015,CEO - PUBLIC HEALTH CAMPAIGNS           ,GOOGLE  ADWS2060179426,500,PUBLICITY,DIRECT MARKETING-CONTINUITY/SUBSCRIPTION MERCHANTS
27/01/2016,http://opendatacommunities.org/id/county-council/surrey,Surrey,http://id.esd.org.uk/service/1465,Council expenditure,29/09/2015,COMMUNICATIONS TEAM,ITUNES.COM/BILL,4.99,SUBSCRIPTIONS,RECORD SHOPS
27/01/2016,http://opendatacommunities.org/id/county-council/surrey,Surrey,http://id.esd.org.uk/service/1465,Council expenditure,29/09/2015,COMMUNICATIONS TEAM,AMAZON EU,35.2,STATIONERY,DIRECT MARKETING-OTHER DIRECT MARKETERS/NOT ELSEW.
27/01/2016,http://opendatacommunities.org/id/county-council/surrey,Surrey,http://id.esd.org.uk/service/1465,Council expenditure,29/09/2015,COMMUNICATIONS TEAM,AMAZON UK MARKETPLACE,43.97,STATIONERY,BOOK STORES
27/01/2016,http://opendatacommunities.org/id/county-council/surrey,Surrey,http://id.esd.org.uk/service/1465,Council expenditure,29/09/2015,CONSORT HOUSE REDHILL,KEYMEX LTD,393,EQUIPMENT,HOUSEHOLD APPLIANCE STORES
27/01/2016,http://opendatacommunities.org/id/county-council/surrey,Surrey,http://id.esd.org.uk/service/1465,Council expenditure,29/09/2015,COUNTY HALL,CLAS OHLSON,6.78,DAY TO DAY MAINTENANCE,HOUSEHOLD APPLIANCE STORES
27/01/2016,http://opendatacommunities.org/id/county-council/surrey,Surrey,http://id.esd.org.uk/service/1465,Council expenditure,29/09/2015,DEVELOPMENT TEAM,AMAZON UK MARKETPLACE,7.12,STATIONERY,BOOK STORES
27/01/2016,http://opendatacommunities.org/id/county-council/surrey,Surrey,http://id.esd.org.uk/service/1465,Council expenditure,29/09/2015,DOWNLANDS COUNTRYSIDE PROJECT,WRAYSBURY TYRES,25,VEHICLE REPAIRS AND MAINTENANCE,AUTOMOTIVE TIRE STORES
27/01/2016,http://opendatacommunities.org/id/county-council/surrey,Surrey,http://id.esd.org.uk/service/1465,Council expenditure,29/09/2015,EDUC CAT SOUTH WEST DISTRICT K OVERHEADS,AO RETAIL LIMITED,238.99,EQUIPMENT,HOUSEHOLD APPLIANCE STORES
27/01/2016,http://opendatacommunities.org/id/county-council/surrey,Surrey,http://id.esd.org.uk/service/1465,Council expenditure,29/09/2015,FAIRCROFT COMMUNITY HOME,SAINSBURYS SACAT 0687,17.19,EQUIPMENT,"GROCERY STORES, SUPERMARKETS"
27/01/2016,http://opendatacommunities.org/id/county-council/surrey,Surrey,http://id.esd.org.uk/service/1465,Council expenditure,29/09/2015,FAIRCROFT COMMUNITY HOME,TESCO STORE 2160,88.88,PURCHASE OF FOOD (RAW MATERIALS),"GROCERY STORES, SUPERMARKETS"
27/01/2016,http://opendatacommunities.org/id/county-council/surrey,Surrey,http://id.esd.org.uk/service/1465,Council expenditure,29/09/2015,FARNHAM AEI WEST STREET,AMAZON EU,23.94,CLEANING AND DOMESTIC SUPPLIES,DIRECT MARKETING-OTHER DIRECT MARKETERS/NOT ELSEW.
27/01/2016,http://opendatacommunities.org/id/county-council/surrey,Surrey,http://id.esd.org.uk/service/1465,Council expenditure,29/09/2015,FRIMLEY YC,ONE STOP 1396,2,PURCHASE OF FOOD (RAW MATERIALS),"GROCERY STORES, SUPERMARKETS"
27/01/2016,http://opendatacommunities.org/id/county-council/surrey,Surrey,http://id.esd.org.uk/service/1465,Council expenditure,29/09/2015,HERITAGE ENTERPRISE (SCAU),LANDMARKINF,14.4,FEES,MISCELLANEOUS PUBLISHING AND PRINTING
27/01/2016,http://opendatacommunities.org/id/county-council/surrey,Surrey,http://id.esd.org.uk/service/1465,Council expenditure,29/09/2015,HERITAGE PUBLIC SERVICE,W M MORRISONS,20,REFRESHMENT COSTS,"GROCERY STORES, SUPERMARKETS"
27/01/2016,http://opendatacommunities.org/id/county-council/surrey,Surrey,http://id.esd.org.uk/service/1465,Council expenditure,29/09/2015,HI EQUIPMENT                            ,AMAZON UK MARKETPLACE,23.94,EQUIPMENT,BOOK STORES
27/01/2016,http://opendatacommunities.org/id/county-council/surrey,Surrey,http://id.esd.org.uk/service/1465,Council expenditure,29/09/2015,HILLSIDE,SAINSBURYS SACAT 0784,30.35,PURCHASE OF FOOD (RAW MATERIALS),"GROCERY STORES, SUPERMARKETS"
27/01/2016,http://opendatacommunities.org/id/county-council/surrey,Surrey,http://id.esd.org.uk/service/1465,Council expenditure,29/09/2015,HOLLAND CLOSE RESIDENTIAL HOME,R D O,299.99,EQUIPMENT,"EQUIP, FURNITURE, HOME FURNSHNGS STRS (EXCPT APPL)"
27/01/2016,http://opendatacommunities.org/id/county-council/surrey,Surrey,http://id.esd.org.uk/service/1465,Council expenditure,29/09/2015,HOPE SERVICE - WEST,SAINSBURYS 0686,5.2,PURCHASE OF FOOD (RAW MATERIALS),"GROCERY STORES, SUPERMARKETS"
27/01/2016,http://opendatacommunities.org/id/county-council/surrey,Surrey,http://id.esd.org.uk/service/1465,Council expenditure,29/09/2015,HR - BUSINESS SERVICES AND TRAINING,AMAZON UK MARKETPLACE,10.99,EQUIPMENT,BOOK STORES
27/01/2016,http://opendatacommunities.org/id/county-council/surrey,Surrey,http://id.esd.org.uk/service/1465,Council expenditure,29/09/2015,IMT CRITICAL ENVIRONMENTS,AMAZON EU,49.87,REFRESHMENT COSTS,DIRECT MARKETING-OTHER DIRECT MARKETERS/NOT ELSEW.
27/01/2016,http://opendatacommunities.org/id/county-council/surrey,Surrey,http://id.esd.org.uk/service/1465,Council expenditure,29/09/2015,IMT PRODUCTION APPLICATIONS TEAM,AMAZON UK MARKETPLACE,24.99,COMPUTER SOFTWARE,BOOK STORES
27/01/2016,http://opendatacommunities.org/id/county-council/surrey,Surrey,http://id.esd.org.uk/service/1465,Council expenditure,29/09/2015,IMT PRODUCTION APPLICATIONS TEAM,RACKSPACE EMAIL & APPS,54.05,COMPUTER SERVICES,COMPUTER NETWORK/INFORMATION SERVICES
27/01/2016,http://opendatacommunities.org/id/county-council/surrey,Surrey,http://id.esd.org.uk/service/1465,Council expenditure,29/09/2015,LAKERS YC,HERBIES PIZZA WOKING,20.97,REFRESHMENT COSTS,FAST FOOD RESTAURANTS
27/01/2016,http://opendatacommunities.org/id/county-council/surrey,Surrey,http://id.esd.org.uk/service/1465,Council expenditure,29/09/2015,LEAVING CARE PACKAGES,PERWOOD CARS,20,NON-STAFF RELATED TRANSPORT COSTS,LIMOUSINES AND TAXICABS
27/01/2016,http://opendatacommunities.org/id/county-council/surrey,Surrey,http://id.esd.org.uk/service/1465,Council expenditure,29/09/2015,LIBERTAS COMMUNITY HOME,SAINSBURYS,3,EQUIPMENT,"GROCERY STORES, SUPERMARKETS"
27/01/2016,http://opendatacommunities.org/id/county-council/surrey,Surrey,http://id.esd.org.uk/service/1465,Council expenditure,29/09/2015,LIBERTAS COMMUNITY HOME,SAINSBURYS,3.1,PURCHASE OF FOOD (RAW MATERIALS),"GROCERY STORES, SUPERMARKETS"
27/01/2016,http://opendatacommunities.org/id/county-council/surrey,Surrey,http://id.esd.org.uk/service/1465,Council expenditure,29/09/2015,LIBERTAS COMMUNITY HOME,LAKELAND LIMITED,32.95,CLEANING MATERIALS,ACCESSORY AND APPAREL STORES-MISCELLANEOUS
27/01/2016,http://opendatacommunities.org/id/county-council/surrey,Surrey,http://id.esd.org.uk/service/1465,Council expenditure,29/09/2015,LIBERTAS COMMUNITY HOME,SAINSBURYS,57.25,PURCHASE OF FOOD (RAW MATERIALS),"GROCERY STORES, SUPERMARKETS"
27/01/2016,http://opendatacommunities.org/id/county-council/surrey,Surrey,http://id.esd.org.uk/service/1465,Council expenditure,29/09/2015,NW CARE - CP & COURT LAC,SURREY CC CARD PAY,17,FEES,COMPUTER NETWORK/INFORMATION SERVICES
27/01/2016,http://opendatacommunities.org/id/county-council/surrey,Surrey,http://id.esd.org.uk/service/1465,Council expenditure,29/09/2015,NW CARE - NON-LAC CP & COURT,ANSOM MOORE LTD,33.4,"CLOTHING, UNIFORM AND LAUNDRY","GIFT, CARD, NOVELTY AND SOUVENIR SHOPS"
27/01/2016,http://opendatacommunities.org/id/county-council/surrey,Surrey,http://id.esd.org.uk/service/1465,Council expenditure,29/09/2015,"NW REF, ASS & INT SERVICE - HUB 1",TRAVELODGE,116,OTHER COMMUNITY CARE PRIV,TRAVELODGE
27/01/2016,http://opendatacommunities.org/id/county-council/surrey,Surrey,http://id.esd.org.uk/service/1465,Council expenditure,29/09/2015,PROPERTY OPERATIONS TEAM,SCREWFIX GUILDFORD,24.99,PURCHASE OF BUILDING MATERIALS,"BUILDING MATERIALS, LUMBER STORES"
27/01/2016,http://opendatacommunities.org/id/county-council/surrey,Surrey,http://id.esd.org.uk/service/1465,Council expenditure,29/09/2015,QUADRANT COURT WOKING,HORACE SMITH LOCKSMITH,29.7,EQUIPMENT,HARDWARE STORES
27/01/2016,http://opendatacommunities.org/id/county-council/surrey,Surrey,http://id.esd.org.uk/service/1465,Council expenditure,29/09/2015,RESOURCES FUND,PAYPAL  BOOKSBEYOND,340,LIBRARY RESOURCES,"ORGANIZATIONS, CHARITABLE AND SOCIAL SERVICES"
27/01/2016,http://opendatacommunities.org/id/county-council/surrey,Surrey,http://id.esd.org.uk/service/1465,Council expenditure,29/09/2015,ROW AREA2 WAV WOK                       ,TIMPSON LTD,9,EQUIPMENT,"HAT CLEANING SHOPS, SHOE REPAIR SHOPS, SHOE SHINE"
27/01/2016,http://opendatacommunities.org/id/county-council/surrey,Surrey,http://id.esd.org.uk/service/1465,Council expenditure,29/09/2015,ROW VOLUNTEERS WEST                     ,AVS FENCING SUPPLIES,478.81,FEES,"BUILDING MATERIALS, LUMBER STORES"
27/01/2016,http://opendatacommunities.org/id/county-council/surrey,Surrey,http://id.esd.org.uk/service/1465,Council expenditure,29/09/2015,RUTH HOUSE,ARGOS RETAIL GROUP,37.92,EQUIPMENT,DISCOUNT STORES
27/01/2016,http://opendatacommunities.org/id/county-council/surrey,Surrey,http://id.esd.org.uk/service/1465,Council expenditure,29/09/2015,SOLD CATERING,TESCO STORES 3102,5.94,PURCHASE OF FOOD (RAW MATERIALS),"GROCERY STORES, SUPERMARKETS"
27/01/2016,http://opendatacommunities.org/id/county-council/surrey,Surrey,http://id.esd.org.uk/service/1465,Council expenditure,29/09/2015,SOLD ESTATES MANAGEMENT,SCREWFIX DIRECT,32.35,DAY TO DAY MAINTENANCE,"BUILDING MATERIALS, LUMBER STORES"
27/01/2016,http://opendatacommunities.org/id/county-council/surrey,Surrey,http://id.esd.org.uk/service/1465,Council expenditure,29/09/2015,SOLD ESTATES MANAGEMENT,BUDGETWINDS,252,VEHICLE REPAIRS AND MAINTENANCE,"AUTOMOTIVE PARTS, ACCESSORIES STORES"
27/01/2016,http://opendatacommunities.org/id/county-council/surrey,Surrey,http://id.esd.org.uk/service/1465,Council expenditure,29/09/2015,SUNBURY YC,PIZZA HUT 479,50,REFRESHMENT COSTS,"EATING PLACES, RESTAURANTS"
27/01/2016,http://opendatacommunities.org/id/county-council/surrey,Surrey,http://id.esd.org.uk/service/1465,Council expenditure,29/09/2015,SURREY ARTS GENERAL,OFFICE TEST LTD,118.8,SECURITY ALARM MAINTENANCE,ELECTRICAL CONTRACTORS
27/01/2016,http://opendatacommunities.org/id/county-council/surrey,Surrey,http://id.esd.org.uk/service/1465,Council expenditure,29/09/2015,SW EDUCATION PSYCHOLOGISTS,AMAZON UK MARKETPLACE,4.98,EQUIPMENT,BOOK STORES
27/01/2016,http://opendatacommunities.org/id/county-council/surrey,Surrey,http://id.esd.org.uk/service/1465,Council expenditure,29/09/2015,"SW REF, ASS & INT SERVICE - HUB 1",SURREY SPORTS PARK LIM,22,EDUC VISITS/HOLS/CAMPS/TOYS,"CLUBS-CNTRY,MBRSHIP(ATHLET,REC,SPRTS,PRIVATE GOLF"
27/01/2016,http://opendatacommunities.org/id/county-council/surrey,Surrey,http://id.esd.org.uk/service/1465,Council expenditure,29/09/2015,"SW REF, ASS & INT SERVICE - HUB 1",NETBALL UK LTD,60.93,EDUC VISITS/HOLS/CAMPS/TOYS,SPORTING GOODS STORES
27/01/2016,http://opendatacommunities.org/id/county-council/surrey,Surrey,http://id.esd.org.uk/service/1465,Council expenditure,29/09/2015,TARGETED INTERVENTION,STARBUCKS,5.2,EDUC VISITS/HOLS/CAMPS/TOYS,FAST FOOD RESTAURANTS
27/01/2016,http://opendatacommunities.org/id/county-council/surrey,Surrey,http://id.esd.org.uk/service/1465,Council expenditure,29/09/2015,TARGETED INTERVENTION,TESCO STORES-2047,5.2,EDUC VISITS/HOLS/CAMPS/TOYS,"GROCERY STORES, SUPERMARKETS"
27/01/2016,http://opendatacommunities.org/id/county-council/surrey,Surrey,http://id.esd.org.uk/service/1465,Council expenditure,29/09/2015,TARGETED INTERVENTION,TESCO STORES-2047,5.53,EDUC VISITS/HOLS/CAMPS/TOYS,"GROCERY STORES, SUPERMARKETS"
27/01/2016,http://opendatacommunities.org/id/county-council/surrey,Surrey,http://id.esd.org.uk/service/1465,Council expenditure,29/09/2015,TARGETED INTERVENTION,TICKETOFFICESALE,20,EDUC VISITS/HOLS/CAMPS/TOYS,PASSENGER RAILWAYS
27/01/2016,http://opendatacommunities.org/id/county-council/surrey,Surrey,http://id.esd.org.uk/service/1465,Council expenditure,29/09/2015,TARGETED INTERVENTION,TESCO STORE 2047,46.95,EDUC VISITS/HOLS/CAMPS/TOYS,"GROCERY STORES, SUPERMARKETS"
27/01/2016,http://opendatacommunities.org/id/county-council/surrey,Surrey,http://id.esd.org.uk/service/1465,Council expenditure,29/09/2015,THE BRIDGE YC,TESCO STORES 2812,13.92,PURCHASE OF FOOD (RAW MATERIALS),"GROCERY STORES, SUPERMARKETS"
27/01/2016,http://opendatacommunities.org/id/county-council/surrey,Surrey,http://id.esd.org.uk/service/1465,Council expenditure,29/09/2015,TRAFFIC MANAGEMENT,WH SMITH,14.98,COMPUTER HARDWARE,NEWS DEALERS AND NEWSSTANDS
27/01/2016,http://opendatacommunities.org/id/county-council/surrey,Surrey,http://id.esd.org.uk/service/1465,Council expenditure,29/09/2015,TRANSPORT,GOURMET BURGER KIT,36.9,MISCELLANEOUS STAFF TRAVEL,"EATING PLACES, RESTAURANTS"
27/01/2016,http://opendatacommunities.org/id/county-council/surrey,Surrey,http://id.esd.org.uk/service/1465,Council expenditure,29/09/2015,TRANSPORT,WWW.BALLICOM.CO.UK,109.68,COMPUTER HARDWARE,"COMPUTERS, COMPUTER PERIPHERAL EQUIPMENT, SOFTWARE"
27/01/2016,http://opendatacommunities.org/id/county-council/surrey,Surrey,http://id.esd.org.uk/service/1465,Council expenditure,29/09/2015,TRANSPORT,WWW.PMGLTD.CO.UK,238.8,SUBSISTENCE AND CONFERENCE EXPENSES,BUSINESS SERVICES-NOT ELSEWHERE CLASSIFIED
27/01/2016,http://opendatacommunities.org/id/county-council/surrey,Surrey,http://id.esd.org.uk/service/1465,Council expenditure,29/09/2015,TS SERVICE MANAGEMENT,NOCHEX. INTELLIGENCE A,388,TRAINING EXPENSES EXTERNAL GENERAL,COMPUTER SOFTWARE STORES
27/01/2016,http://opendatacommunities.org/id/county-council/surrey,Surrey,http://id.esd.org.uk/service/1465,Council expenditure,29/09/2015,WOODLANDS COMMUNITY HOME,SAINSBURYS,5.5,EQUIPMENT,"GROCERY STORES, SUPERMARKETS"
27/01/2016,http://opendatacommunities.org/id/county-council/surrey,Surrey,http://id.esd.org.uk/service/1465,Council expenditure,29/09/2015,WOODLANDS COMMUNITY HOME,SAINSBURYS,7,PURCHASE OF FOOD (RAW MATERIALS),"GROCERY STORES, SUPERMARKETS"
27/01/2016,http://opendatacommunities.org/id/county-council/surrey,Surrey,http://id.esd.org.uk/service/1465,Council expenditure,29/09/2015,WOODLANDS COMMUNITY HOME,SAINSBURYS,112.56,PURCHASE OF FOOD (RAW MATERIALS),"GROCERY STORES, SUPERMARKETS"
27/01/2016,http://opendatacommunities.org/id/county-council/surrey,Surrey,http://id.esd.org.uk/service/1465,Council expenditure,29/09/2015,YSS MANAGEMENT PRACTICE AND SUPPORT,PIZZA EXPRESS,124.83,TRAINING EXPENSES EXTERNAL GENERAL,"EATING PLACES, RESTAURANTS"
27/01/2016,http://opendatacommunities.org/id/county-council/surrey,Surrey,http://id.esd.org.uk/service/1465,Council expenditure,30/09/2015,ACCESS 2 EDUCATION NE NON-MEDICAL,AMAZON UK MARKETPLACE,32.78,EQUIPMENT,BOOK STORES
27/01/2016,http://opendatacommunities.org/id/county-council/surrey,Surrey,http://id.esd.org.uk/service/1465,Council expenditure,30/09/2015,ACL CENTRAL EXPENDITURE,AMAZON UK MARKETPLACE,15.74,EQUIPMENT,BOOK STORES
27/01/2016,http://opendatacommunities.org/id/county-council/surrey,Surrey,http://id.esd.org.uk/service/1465,Council expenditure,30/09/2015,ACL CENTRAL EXPENDITURE,AMAZON EU,16.58,BOOKS,DIRECT MARKETING-OTHER DIRECT MARKETERS/NOT ELSEW.
27/01/2016,http://opendatacommunities.org/id/county-council/surrey,Surrey,http://id.esd.org.uk/service/1465,Council expenditure,30/09/2015,ACL CENTRAL EXPENDITURE,AMAZON UK MARKETPLACE,20.94,STATIONERY,BOOK STORES
27/01/2016,http://opendatacommunities.org/id/county-council/surrey,Surrey,http://id.esd.org.uk/service/1465,Council expenditure,30/09/2015,ACL CENTRAL EXPENDITURE,AMAZON UK MARKETPLACE,22.29,EQUIPMENT,BOOK STORES
27/01/2016,http://opendatacommunities.org/id/county-council/surrey,Surrey,http://id.esd.org.uk/service/1465,Council expenditure,30/09/2015,ACL CENTRAL EXPENDITURE,W M MORRISONS,31.97,REFRESHMENT COSTS,"GROCERY STORES, SUPERMARKETS"
27/01/2016,http://opendatacommunities.org/id/county-council/surrey,Surrey,http://id.esd.org.uk/service/1465,Council expenditure,30/09/2015,ACL CENTRAL EXPENDITURE,YOGA MAD COM /INET,41.01,EQUIPMENT,"MISC FOOD STORE-CONVENIENCE,MRKT,SPLTY,VENDNG MACS"
27/01/2016,http://opendatacommunities.org/id/county-council/surrey,Surrey,http://id.esd.org.uk/service/1465,Council expenditure,30/09/2015,ACL CENTRAL EXPENDITURE,FACEBOOK 8XFR58NCB2,63.1,PUBLICITY,ADVERTISING SERVICES
27/01/2016,http://opendatacommunities.org/id/county-council/surrey,Surrey,http://id.esd.org.uk/service/1465,Council expenditure,30/09/2015,ACL CENTRAL EXPENDITURE,WILKO.COM,160.25,EQUIPMENT,HOUSEHOLD APPLIANCE STORES
27/01/2016,http://opendatacommunities.org/id/county-council/surrey,Surrey,http://id.esd.org.uk/service/1465,Council expenditure,30/09/2015,ADOPTION,PAYPAL  PACPOSTADOP,96,CHILDREN ACT SEC 17 PAYMENTS,ADVERTISING SERVICES
27/01/2016,http://opendatacommunities.org/id/county-council/surrey,Surrey,http://id.esd.org.uk/service/1465,Council expenditure,30/09/2015,ADOPTION TEAM,AMAZON EU,19.99,LIBRARY RESOURCES,DIRECT MARKETING-OTHER DIRECT MARKETERS/NOT ELSEW.
27/01/2016,http://opendatacommunities.org/id/county-council/surrey,Surrey,http://id.esd.org.uk/service/1465,Council expenditure,30/09/2015,ARUNDEL,TESCO STORES 5999,98.14,REFRESHMENT COSTS,"GROCERY STORES, SUPERMARKETS"
27/01/2016,http://opendatacommunities.org/id/county-council/surrey,Surrey,http://id.esd.org.uk/service/1465,Council expenditure,30/09/2015,ASSET PLANNING - OPERATIONS,CONNEXION DEVELOPM,115.81,EQUIPMENT,ELECTRONIC SALES
27/01/2016,http://opendatacommunities.org/id/county-council/surrey,Surrey,http://id.esd.org.uk/service/1465,Council expenditure,30/09/2015,BOOKS - ADULT FICTION                   ,AMAZON EU,16.98,LIBRARY RESOURCES,DIRECT MARKETING-OTHER DIRECT MARKETERS/NOT ELSEW.
27/01/2016,http://opendatacommunities.org/id/county-council/surrey,Surrey,http://id.esd.org.uk/service/1465,Council expenditure,30/09/2015,BURBANK COMMUNITY HOME,SAINSBURYS TO YOU 0686,219.41,PURCHASE OF FOOD (RAW MATERIALS),"GROCERY STORES, SUPERMARKETS"
27/01/2016,http://opendatacommunities.org/id/county-council/surrey,Surrey,http://id.esd.org.uk/service/1465,Council expenditure,30/09/2015,BUSINESS UNIT,VICTORIA LODGE,130,SUBSISTENCE AND CONFERENCE EXPENSES,"LODGING-HOTELS,MOTELS,RESORTS-NOT CLASSIFIED"
27/01/2016,http://opendatacommunities.org/id/county-council/surrey,Surrey,http://id.esd.org.uk/service/1465,Council expenditure,30/09/2015,CENTRAL COMMS - EARLY YEARS             ,FACEBOOK GWEE78NPD2,3.9,PUBLICITY,ADVERTISING SERVICES
27/01/2016,http://opendatacommunities.org/id/county-council/surrey,Surrey,http://id.esd.org.uk/service/1465,Council expenditure,30/09/2015,CEO - PUBLIC HEALTH CAMPAIGNS           ,GOOGLE  ADWS2060179426,500,PUBLICITY,DIRECT MARKETING-CONTINUITY/SUBSCRIPTION MERCHANTS
27/01/2016,http://opendatacommunities.org/id/county-council/surrey,Surrey,http://id.esd.org.uk/service/1465,Council expenditure,30/09/2015,CEO - PUBLIC HEALTH CAMPAIGNS           ,FACEBOOK ZALDH8N9K2,600.24,PUBLICITY,ADVERTISING SERVICES
27/01/2016,http://opendatacommunities.org/id/county-council/surrey,Surrey,http://id.esd.org.uk/service/1465,Council expenditure,30/09/2015,CHEYNE WALK COMMUNITY HOME,SAINSBURYS 0206,3.45,PURCHASE OF FOOD (RAW MATERIALS),"GROCERY STORES, SUPERMARKETS"
27/01/2016,http://opendatacommunities.org/id/county-council/surrey,Surrey,http://id.esd.org.uk/service/1465,Council expenditure,30/09/2015,CHEYNE WALK COMMUNITY HOME,COBRA RESTAURANTS,5.2,PURCHASE OF FOOD (RAW MATERIALS),FAST FOOD RESTAURANTS
27/01/2016,http://opendatacommunities.org/id/county-council/surrey,Surrey,http://id.esd.org.uk/service/1465,Council expenditure,30/09/2015,CHEYNE WALK COMMUNITY HOME,CHOICE DISCOUNT,5.24,EQUIPMENT,FAMILY CLOTHING STORES
27/01/2016,http://opendatacommunities.org/id/county-council/surrey,Surrey,http://id.esd.org.uk/service/1465,Council expenditure,30/09/2015,CHEYNE WALK COMMUNITY HOME,POUNDLAND LTD 1550,6,EQUIPMENT,DISCOUNT STORES
27/01/2016,http://opendatacommunities.org/id/county-council/surrey,Surrey,http://id.esd.org.uk/service/1465,Council expenditure,30/09/2015,CHEYNE WALK COMMUNITY HOME,SAINSBURYS SACAT 0206,13,EQUIPMENT,"GROCERY STORES, SUPERMARKETS"
27/01/2016,http://opendatacommunities.org/id/county-council/surrey,Surrey,http://id.esd.org.uk/service/1465,Council expenditure,30/09/2015,CHEYNE WALK COMMUNITY HOME,SAINSBURYS 0206,53.83,PURCHASE OF FOOD (RAW MATERIALS),"GROCERY STORES, SUPERMARKETS"
27/01/2016,http://opendatacommunities.org/id/county-council/surrey,Surrey,http://id.esd.org.uk/service/1465,Council expenditure,30/09/2015,CHEYNE WALK COMMUNITY HOME,SAINSBURYS TO YOU 0026,296.65,PURCHASE OF FOOD (RAW MATERIALS),"GROCERY STORES, SUPERMARKETS"
27/01/2016,http://opendatacommunities.org/id/county-council/surrey,Surrey,http://id.esd.org.uk/service/1465,Council expenditure,30/09/2015,CHIEF PROPERTY OFFICER,AMAZON EU,117.84,COMPUTER CONSUMABLES,DIRECT MARKETING-OTHER DIRECT MARKETERS/NOT ELSEW.
27/01/2016,http://opendatacommunities.org/id/county-council/surrey,Surrey,http://id.esd.org.uk/service/1465,Council expenditure,30/09/2015,CLOSED LANDFILL,CAMLAB LTD,47.39,EQUIPMENT,DENTAL/LAB/MED/OPHTHALMIC HOSP EQUIP & SUPPLIES
27/01/2016,http://opendatacommunities.org/id/county-council/surrey,Surrey,http://id.esd.org.uk/service/1465,Council expenditure,30/09/2015,COMMUNICATIONS TEAM,AMAZON UK MARKETPLACE,38.54,STATIONERY,BOOK STORES
27/01/2016,http://opendatacommunities.org/id/county-council/surrey,Surrey,http://id.esd.org.uk/service/1465,Council expenditure,30/09/2015,CONSORT HOUSE REDHILL,IRONMONGERY DIRECT LTD,60.06,EQUIPMENT,"GLASS, PAINT, WALLPAPER STORES"
27/01/2016,http://opendatacommunities.org/id/county-council/surrey,Surrey,http://id.esd.org.uk/service/1465,Council expenditure,30/09/2015,COUNTY HALL,AMAZON EU,255.92,COMPUTER CONSUMABLES,DIRECT MARKETING-OTHER DIRECT MARKETERS/NOT ELSEW.
27/01/2016,http://opendatacommunities.org/id/county-council/surrey,Surrey,http://id.esd.org.uk/service/1465,Council expenditure,30/09/2015,EAST SUSSEX CONTRACT - MGMT & ADMIN,TESCO STORES 3330,2.75,REFRESHMENT COSTS,"GROCERY STORES, SUPERMARKETS"
27/01/2016,http://opendatacommunities.org/id/county-council/surrey,Surrey,http://id.esd.org.uk/service/1465,Council expenditure,30/09/2015,EQUIPMENT SCC BUDGET,LAKELAND LIMITED,8.98,EQUIPMENT,HOUSEHOLD APPLIANCE STORES
27/01/2016,http://opendatacommunities.org/id/county-council/surrey,Surrey,http://id.esd.org.uk/service/1465,Council expenditure,30/09/2015,FAIRCROFT COMMUNITY HOME,SAINSBURYS SACAT 0687,3.3,CLEANING AND DOMESTIC SUPPLIES,"GROCERY STORES, SUPERMARKETS"
27/01/2016,http://opendatacommunities.org/id/county-council/surrey,Surrey,http://id.esd.org.uk/service/1465,Council expenditure,30/09/2015,FAIRCROFT COMMUNITY HOME,COSTA COFFEE,10.7,REFRESHMENT COSTS,FAST FOOD RESTAURANTS
27/01/2016,http://opendatacommunities.org/id/county-council/surrey,Surrey,http://id.esd.org.uk/service/1465,Council expenditure,30/09/2015,FAIRCROFT COMMUNITY HOME,THE CHILTERN RLYWY,32.1,MISCELLANEOUS STAFF TRAVEL,PASSENGER RAILWAYS
27/01/2016,http://opendatacommunities.org/id/county-council/surrey,Surrey,http://id.esd.org.uk/service/1465,Council expenditure,30/09/2015,HILLSIDE,SAINSBURYS 0784,53.79,PURCHASE OF FOOD (RAW MATERIALS),"GROCERY STORES, SUPERMARKETS"
27/01/2016,http://opendatacommunities.org/id/county-council/surrey,Surrey,http://id.esd.org.uk/service/1465,Council expenditure,30/09/2015,HOPE SERVICE - EAST,MOKA,9.1,REFRESHMENT COSTS,"EATING PLACES, RESTAURANTS"
27/01/2016,http://opendatacommunities.org/id/county-council/surrey,Surrey,http://id.esd.org.uk/service/1465,Council expenditure,30/09/2015,HOPE SERVICE - WEST,SAINSBURYS LOC 4409,4.99,NEWSPAPER AND PERIODICALS,"GROCERY STORES, SUPERMARKETS"
27/01/2016,http://opendatacommunities.org/id/county-council/surrey,Surrey,http://id.esd.org.uk/service/1465,Council expenditure,30/09/2015,HOPE SERVICE - WEST,SAINSBURYS SACAT 0652,5.43,CURRICULUM EQUIPMENT AND FURNITURE,"GROCERY STORES, SUPERMARKETS"
27/01/2016,http://opendatacommunities.org/id/county-council/surrey,Surrey,http://id.esd.org.uk/service/1465,Council expenditure,30/09/2015,HOPE SERVICE - WEST,SAINSBURYS TO YOU 0686,73.99,PURCHASE OF FOOD (RAW MATERIALS),"GROCERY STORES, SUPERMARKETS"
27/01/2016,http://opendatacommunities.org/id/county-council/surrey,Surrey,http://id.esd.org.uk/service/1465,Council expenditure,30/09/2015,IMT CRITICAL ENVIRONMENTS,AMAZON EU,25.43,EQUIPMENT,DIRECT MARKETING-OTHER DIRECT MARKETERS/NOT ELSEW.
27/01/2016,http://opendatacommunities.org/id/county-council/surrey,Surrey,http://id.esd.org.uk/service/1465,Council expenditure,30/09/2015,KARIBU COMMUNITY HOME,TRAINLINE,43.35,TRANSPORT SOCIAL CARE-TAXI,PASSENGER RAILWAYS
27/01/2016,http://opendatacommunities.org/id/county-council/surrey,Surrey,http://id.esd.org.uk/service/1465,Council expenditure,30/09/2015,KARIBU COMMUNITY HOME,TESCO STORE 2812,433.32,PURCHASE OF FOOD (RAW MATERIALS),"GROCERY STORES, SUPERMARKETS"
27/01/2016,http://opendatacommunities.org/id/county-council/surrey,Surrey,http://id.esd.org.uk/service/1465,Council expenditure,30/09/2015,LEAVING CARE PACKAGES,FOUNTAIN HOUSE HOTEL,55,3RD PARTY PAYMENTS PRIVATE INDIV,"LODGING-HOTELS,MOTELS,RESORTS-NOT CLASSIFIED"
27/01/2016,http://opendatacommunities.org/id/county-council/surrey,Surrey,http://id.esd.org.uk/service/1465,Council expenditure,30/09/2015,LIBERTAS COMMUNITY HOME,GIRAFFE CONCEPTS LTD,19.25,PURCHASE OF FOOD (RAW MATERIALS),"EATING PLACES, RESTAURANTS"
27/01/2016,http://opendatacommunities.org/id/county-council/surrey,Surrey,http://id.esd.org.uk/service/1465,Council expenditure,30/09/2015,LONGFIELD RESIDENTIAL CARE,THOMAS LOCKSMITHS LTD,19.5,EQUIPMENT,HARDWARE STORES
27/01/2016,http://opendatacommunities.org/id/county-council/surrey,Surrey,http://id.esd.org.uk/service/1465,Council expenditure,30/09/2015,MALLOW CRESCENT,SAINSBURYS,11,PURCHASE OF FOOD (RAW MATERIALS),"GROCERY STORES, SUPERMARKETS"
27/01/2016,http://opendatacommunities.org/id/county-council/surrey,Surrey,http://id.esd.org.uk/service/1465,Council expenditure,30/09/2015,MALLOW CRESCENT,SAINSBURYS,96.95,PURCHASE OF FOOD (RAW MATERIALS),"GROCERY STORES, SUPERMARKETS"
27/01/2016,http://opendatacommunities.org/id/county-council/surrey,Surrey,http://id.esd.org.uk/service/1465,Council expenditure,30/09/2015,MOLESEY YC,TESCO STORE 2449,1,PURCHASE OF FOOD (RAW MATERIALS),"GROCERY STORES, SUPERMARKETS"
27/01/2016,http://opendatacommunities.org/id/county-council/surrey,Surrey,http://id.esd.org.uk/service/1465,Council expenditure,30/09/2015,NW CARE - NON-LAC CP & COURT,TRAVELODGE WEBSITE,516,CHILDREN ACT SEC 17 PAYMENTS,TRAVELODGE
27/01/2016,http://opendatacommunities.org/id/county-council/surrey,Surrey,http://id.esd.org.uk/service/1465,Council expenditure,30/09/2015,PE/CDT MAINTENANCE OVERHEADS,AMER SPORTS UK LTD,15.01,EQUIPMENT,SPORTING GOODS STORES
27/01/2016,http://opendatacommunities.org/id/county-council/surrey,Surrey,http://id.esd.org.uk/service/1465,Council expenditure,30/09/2015,PE/CDT MAINTENANCE OVERHEADS,MARGNOR FASTENERS,43.86,EQUIPMENT,MISCELLANEOUS AND SPECIALTY RETAIL STORES
27/01/2016,http://opendatacommunities.org/id/county-council/surrey,Surrey,http://id.esd.org.uk/service/1465,Council expenditure,30/09/2015,PROPERTY OPERATIONS TEAM,SCREWFIX GUILDFORD,25.11,PURCHASE OF BUILDING MATERIALS,"BUILDING MATERIALS, LUMBER STORES"
27/01/2016,http://opendatacommunities.org/id/county-council/surrey,Surrey,http://id.esd.org.uk/service/1465,Council expenditure,30/09/2015,PROPERTY OPERATIONS TEAM,AMAZON EU,304.43,BOOKS,DIRECT MARKETING-OTHER DIRECT MARKETERS/NOT ELSEW.
27/01/2016,http://opendatacommunities.org/id/county-council/surrey,Surrey,http://id.esd.org.uk/service/1465,Council expenditure,30/09/2015,PSS COUNTYWIDE,"AMAZON SVCS EUROPE,SAR",41.98,CURRICULUM EQUIPMENT AND FURNITURE,BOOK STORES
27/01/2016,http://opendatacommunities.org/id/county-council/surrey,Surrey,http://id.esd.org.uk/service/1465,Council expenditure,30/09/2015,REMA ETHNIC/LANGUAGE MINORITY SUPPORT,RYMAN,1.98,BOOKS,"OFFICE, SCHOOL SUPPLY, AND STATIONERY STORES"
27/01/2016,http://opendatacommunities.org/id/county-council/surrey,Surrey,http://id.esd.org.uk/service/1465,Council expenditure,30/09/2015,REMA ETHNIC/LANGUAGE MINORITY SUPPORT,WH SMITH,1.99,BOOKS,NEWS DEALERS AND NEWSSTANDS
27/01/2016,http://opendatacommunities.org/id/county-council/surrey,Surrey,http://id.esd.org.uk/service/1465,Council expenditure,30/09/2015,SURREY ARTS GENERAL,AMAZON EU,21.73,STATIONERY,DIRECT MARKETING-OTHER DIRECT MARKETERS/NOT ELSEW.
27/01/2016,http://opendatacommunities.org/id/county-council/surrey,Surrey,http://id.esd.org.uk/service/1465,Council expenditure,30/09/2015,SURREY ARTS OPEN STUDIOS,SURREY CC CARD PAY,26,PUBLICITY,COMPUTER NETWORK/INFORMATION SERVICES
27/01/2016,http://opendatacommunities.org/id/county-council/surrey,Surrey,http://id.esd.org.uk/service/1465,Council expenditure,30/09/2015,SURREY ARTS OPEN STUDIOS,SURREY CC CARD PAY,26,PUBLICITY,COMPUTER NETWORK/INFORMATION SERVICES
27/01/2016,http://opendatacommunities.org/id/county-council/surrey,Surrey,http://id.esd.org.uk/service/1465,Council expenditure,30/09/2015,SURREY HEATHLAND PROJECT,CONTAINERS DIRECT,828,EQUIPMENT,BUSINESS SERVICES-NOT ELSEWHERE CLASSIFIED
27/01/2016,http://opendatacommunities.org/id/county-council/surrey,Surrey,http://id.esd.org.uk/service/1465,Council expenditure,30/09/2015,SURREY HEATHLAND PROJECT,CONTAINERS DIRECT,828,EQUIPMENT,BUSINESS SERVICES-NOT ELSEWHERE CLASSIFIED
27/01/2016,http://opendatacommunities.org/id/county-council/surrey,Surrey,http://id.esd.org.uk/service/1465,Council expenditure,30/09/2015,SW CARE - LAC,READING B.C  PAYMENTS,11.5,LEGAL EXPENSES,GOVERNMENT SERVICES-NOT ELSEWHERE CLASSIFIED
27/01/2016,http://opendatacommunities.org/id/county-council/surrey,Surrey,http://id.esd.org.uk/service/1465,Council expenditure,30/09/2015,"SW REF, ASS & INT SERVICE - HUB 1",DAIRY CREST,177,REFRESHMENT COSTS,"MISC FOOD STORE-CONVENIENCE,MRKT,SPLTY,VENDNG MACS"
27/01/2016,http://opendatacommunities.org/id/county-council/surrey,Surrey,http://id.esd.org.uk/service/1465,Council expenditure,30/09/2015,"SW REF, ASS & INT SERVICE - HUB 2",LAKESIDE INTERNATIONAL,267,CHILDREN ACT SEC 17 PAYMENTS,"LODGING-HOTELS,MOTELS,RESORTS-NOT CLASSIFIED"
27/01/2016,http://opendatacommunities.org/id/county-council/surrey,Surrey,http://id.esd.org.uk/service/1465,Council expenditure,30/09/2015,TARGETED INTERVENTION,SAINSBURYS SACAT 0652,3,EDUC VISITS/HOLS/CAMPS/TOYS,"GROCERY STORES, SUPERMARKETS"
27/01/2016,http://opendatacommunities.org/id/county-council/surrey,Surrey,http://id.esd.org.uk/service/1465,Council expenditure,30/09/2015,TARGETED INTERVENTION,FREEDOM LEISURE,8.6,EDUC VISITS/HOLS/CAMPS/TOYS,GOVERNMENT SERVICES-NOT ELSEWHERE CLASSIFIED
27/01/2016,http://opendatacommunities.org/id/county-council/surrey,Surrey,http://id.esd.org.uk/service/1465,Council expenditure,30/09/2015,TARGETED INTERVENTION,MCDONALDS,8.65,EDUC VISITS/HOLS/CAMPS/TOYS,FAST FOOD RESTAURANTS
27/01/2016,http://opendatacommunities.org/id/county-council/surrey,Surrey,http://id.esd.org.uk/service/1465,Council expenditure,30/09/2015,TARGETED INTERVENTION,LONDON DUNGEONS,25,EDUC VISITS/HOLS/CAMPS/TOYS,TOURIST ATTRACTIONS AND EXHIBITS
27/01/2016,http://opendatacommunities.org/id/county-council/surrey,Surrey,http://id.esd.org.uk/service/1465,Council expenditure,30/09/2015,TARGETED INTERVENTION,LONDON AQUARIUM,40.45,EDUC VISITS/HOLS/CAMPS/TOYS,"AQUARIUMS, DOLPHINARIUMS, AND SEAQUARIUMS"
27/01/2016,http://opendatacommunities.org/id/county-council/surrey,Surrey,http://id.esd.org.uk/service/1465,Council expenditure,30/09/2015,TARGETED INTERVENTION,TICKETOFFICESALE,45.5,EDUC VISITS/HOLS/CAMPS/TOYS,PASSENGER RAILWAYS
27/01/2016,http://opendatacommunities.org/id/county-council/surrey,Surrey,http://id.esd.org.uk/service/1465,Council expenditure,30/09/2015,TARGETED INTERVENTION,LONDON DUNGEONS,97.8,EDUC VISITS/HOLS/CAMPS/TOYS,TOURIST ATTRACTIONS AND EXHIBITS
27/01/2016,http://opendatacommunities.org/id/county-council/surrey,Surrey,http://id.esd.org.uk/service/1465,Council expenditure,30/09/2015,TRAINING COMMUNICATIONS,EB HOW TO WRITE BETTE,211.65,TRAINING EXPENSES EXTERNAL GENERAL,BUSINESS SERVICES-NOT ELSEWHERE CLASSIFIED
27/01/2016,http://opendatacommunities.org/id/county-council/surrey,Surrey,http://id.esd.org.uk/service/1465,Council expenditure,30/09/2015,TRAINING RESOURCES,WWW.APM.ORG.UK,60,TRAINING EXPENSES EXTERNAL GENERAL,"ORGANIZATIONS, MEMBERSHIP-NOT ELSEWHERE CLASSIFIED"
27/01/2016,http://opendatacommunities.org/id/county-council/surrey,Surrey,http://id.esd.org.uk/service/1465,Council expenditure,30/09/2015,TRANSPORT,PIZZA EXPRESS 0711,65,MISCELLANEOUS STAFF TRAVEL,"EATING PLACES, RESTAURANTS"
27/01/2016,http://opendatacommunities.org/id/county-council/surrey,Surrey,http://id.esd.org.uk/service/1465,Council expenditure,30/09/2015,TRANSPORT,CROMWELL CRAWLEY,195.44,OPERATIONAL FIRE EQUIPMENT,HARDWARE EQUIPMENT AND SUPPLIES
27/01/2016,http://opendatacommunities.org/id/county-council/surrey,Surrey,http://id.esd.org.uk/service/1465,Council expenditure,30/09/2015,TRANSPORT,DIRECTA (UK)LTD,351.36,OPERATIONAL FIRE EQUIPMENT,INDUSTRIAL SUPPLIES NOT ELSEWHERE CLASSIFIED
27/01/2016,http://opendatacommunities.org/id/county-council/surrey,Surrey,http://id.esd.org.uk/service/1465,Council expenditure,30/09/2015,WALTON YC,TESCO STORE 2449,7.56,POSTAGE AND COURIER CHARGES,"GROCERY STORES, SUPERMARKETS"
27/01/2016,http://opendatacommunities.org/id/county-council/surrey,Surrey,http://id.esd.org.uk/service/1465,Council expenditure,30/09/2015,WOODLANDS COMMUNITY HOME,SAINSBURYS,4,PURCHASE OF FOOD (RAW MATERIALS),"GROCERY STORES, SUPERMARKETS"
27/01/2016,http://opendatacommunities.org/id/county-council/surrey,Surrey,http://id.esd.org.uk/service/1465,Council expenditure,30/09/2015,WOODLANDS COMMUNITY HOME,SAINSBURYS,14.04,PURCHASE OF FOOD (RAW MATERIALS),"GROCERY STORES, SUPERMARKETS"
27/01/2016,http://opendatacommunities.org/id/county-council/surrey,Surrey,http://id.esd.org.uk/service/1465,Council expenditure,30/09/2015,WOODLANDS COMMUNITY HOME,SAINSBURYS,87.8,CLEANING MATERIALS,"GROCERY STORES, SUPERMARKETS"
27/01/2016,http://opendatacommunities.org/id/county-council/surrey,Surrey,http://id.esd.org.uk/service/1465,Council expenditure,01/10/2015,16 25 SEND COMM CORE,AMAZON EU,13.72,STATIONERY,DIRECT MARKETING-OTHER DIRECT MARKETERS/NOT ELSEW.
27/01/2016,http://opendatacommunities.org/id/county-council/surrey,Surrey,http://id.esd.org.uk/service/1465,Council expenditure,01/10/2015,16 25 SEND COMM CORE,AMAZON UK MARKETPLACE,100.8,COMPUTER CONSUMABLES,BOOK STORES
27/01/2016,http://opendatacommunities.org/id/county-council/surrey,Surrey,http://id.esd.org.uk/service/1465,Council expenditure,01/10/2015,ACL CENTRAL EXPENDITURE,CANVA.COM,6.78,PUBLICITY,PHOTOGRAPHIC STUDIOS
27/01/2016,http://opendatacommunities.org/id/county-council/surrey,Surrey,http://id.esd.org.uk/service/1465,Council expenditure,01/10/2015,ACL CENTRAL EXPENDITURE,AMAZON EU,8.21,BOOKS,DIRECT MARKETING-OTHER DIRECT MARKETERS/NOT ELSEW.
27/01/2016,http://opendatacommunities.org/id/county-council/surrey,Surrey,http://id.esd.org.uk/service/1465,Council expenditure,01/10/2015,ACL CENTRAL EXPENDITURE,AMAZON EU,16.43,BOOKS,DIRECT MARKETING-OTHER DIRECT MARKETERS/NOT ELSEW.
27/01/2016,http://opendatacommunities.org/id/county-council/surrey,Surrey,http://id.esd.org.uk/service/1465,Council expenditure,01/10/2015,ACL CENTRAL EXPENDITURE,PEOPLEPERHOUR.COM HOUR,29.04,PUBLICITY,BUSINESS SERVICES-NOT ELSEWHERE CLASSIFIED
27/01/2016,http://opendatacommunities.org/id/county-council/surrey,Surrey,http://id.esd.org.uk/service/1465,Council expenditure,01/10/2015,ACL CENTRAL EXPENDITURE,AMAZON UK MARKETPLACE,39.72,EQUIPMENT,BOOK STORES
27/01/2016,http://opendatacommunities.org/id/county-council/surrey,Surrey,http://id.esd.org.uk/service/1465,Council expenditure,01/10/2015,ACL CENTRAL EXPENDITURE,AMAZON EU,123.5,EQUIPMENT,DIRECT MARKETING-OTHER DIRECT MARKETERS/NOT ELSEW.
27/01/2016,http://opendatacommunities.org/id/county-council/surrey,Surrey,http://id.esd.org.uk/service/1465,Council expenditure,01/10/2015,ADDLESTONE YC,TESCO STORES-2017,10,EQUIPMENT,"GROCERY STORES, SUPERMARKETS"
27/01/2016,http://opendatacommunities.org/id/county-council/surrey,Surrey,http://id.esd.org.uk/service/1465,Council expenditure,01/10/2015,ADOPTION TEAM,AMAZON EU,19.99,LIBRARY RESOURCES,DIRECT MARKETING-OTHER DIRECT MARKETERS/NOT ELSEW.
27/01/2016,http://opendatacommunities.org/id/county-council/surrey,Surrey,http://id.esd.org.uk/service/1465,Council expenditure,01/10/2015,APPLEWOOD,SURREY CC CARD PAY,12,TRAINING EXPENSES EXTERNAL GENERAL,COMPUTER NETWORK/INFORMATION SERVICES
27/01/2016,http://opendatacommunities.org/id/county-council/surrey,Surrey,http://id.esd.org.uk/service/1465,Council expenditure,01/10/2015,ARUNDEL,TESCO STORES 5999,55.8,REFRESHMENT COSTS,"GROCERY STORES, SUPERMARKETS"
27/01/2016,http://opendatacommunities.org/id/county-council/surrey,Surrey,http://id.esd.org.uk/service/1465,Council expenditure,01/10/2015,ARUNDEL,ASDA SUPERSTORE,62.5,CLEANING MATERIALS,"GROCERY STORES, SUPERMARKETS"
27/01/2016,http://opendatacommunities.org/id/county-council/surrey,Surrey,http://id.esd.org.uk/service/1465,Council expenditure,01/10/2015,ASHTEAD YC,TESCO STORES 5371,13.59,PURCHASE OF FOOD (RAW MATERIALS),"GROCERY STORES, SUPERMARKETS"
27/01/2016,http://opendatacommunities.org/id/county-council/surrey,Surrey,http://id.esd.org.uk/service/1465,Council expenditure,01/10/2015,ASSET PLANNING - OPERATIONS,SAINSBURYS SACAT 0652,15.7,REFRESHMENT COSTS,"GROCERY STORES, SUPERMARKETS"
27/01/2016,http://opendatacommunities.org/id/county-council/surrey,Surrey,http://id.esd.org.uk/service/1465,Council expenditure,01/10/2015,ASSET PLANNING GROUP,FLUID SYSTEMS LTD,100.43,VEHICLE REPAIRS AND MAINTENANCE,INDUSTRIAL SUPPLIES NOT ELSEWHERE CLASSIFIED
27/01/2016,http://opendatacommunities.org/id/county-council/surrey,Surrey,http://id.esd.org.uk/service/1465,Council expenditure,01/10/2015,BURBANK COMMUNITY HOME,LOVE2SHOP.CO.UK,20,3RD PARTY PAYMENTS PRIVATE INDIV,"ASSOCIATIONS-CIVIC, SOCIAL, AND FRATERNAL"
27/01/2016,http://opendatacommunities.org/id/county-council/surrey,Surrey,http://id.esd.org.uk/service/1465,Council expenditure,01/10/2015,CEO - PUBLIC HEALTH CAMPAIGNS           ,FACEBOOK RZPSP86AK2,82.94,PUBLICITY,ADVERTISING SERVICES
27/01/2016,http://opendatacommunities.org/id/county-council/surrey,Surrey,http://id.esd.org.uk/service/1465,Council expenditure,01/10/2015,CLOSED LANDFILL,SCREWFIX DIRECT,27.95,EQUIPMENT,"BUILDING MATERIALS, LUMBER STORES"
27/01/2016,http://opendatacommunities.org/id/county-council/surrey,Surrey,http://id.esd.org.uk/service/1465,Council expenditure,01/10/2015,COUNTY HALL,NOTICE BOARD COMPANY,288,EQUIPMENT,MISCELLANEOUS AND SPECIALTY RETAIL STORES
27/01/2016,http://opendatacommunities.org/id/county-council/surrey,Surrey,http://id.esd.org.uk/service/1465,Council expenditure,01/10/2015,COUNTYWIDE MANAGED PRINT SERVICE,AMAZON UK MARKETPLACE,49.99,COMPUTER CONSUMABLES,BOOK STORES
27/01/2016,http://opendatacommunities.org/id/county-council/surrey,Surrey,http://id.esd.org.uk/service/1465,Council expenditure,01/10/2015,COUNTYWIDE MANAGED PRINT SERVICE,GALTEC SOLUTIONS LTD,458.4,COMPUTER CONSUMABLES,COMPUTER SOFTWARE STORES
27/01/2016,http://opendatacommunities.org/id/county-council/surrey,Surrey,http://id.esd.org.uk/service/1465,Council expenditure,01/10/2015,DIRECT COSTS CONCESSIONARY FARES,SURREY CC CARD PAY,-25,NON-STAFF RELATED TRANSPORT COSTS,COMPUTER NETWORK/INFORMATION SERVICES
27/01/2016,http://opendatacommunities.org/id/county-council/surrey,Surrey,http://id.esd.org.uk/service/1465,Council expenditure,01/10/2015,DIRECT COSTS CONCESSIONARY FARES,SURREY CC CARD PAY,25,NON-STAFF RELATED TRANSPORT COSTS,COMPUTER NETWORK/INFORMATION SERVICES
27/01/2016,http://opendatacommunities.org/id/county-council/surrey,Surrey,http://id.esd.org.uk/service/1465,Council expenditure,01/10/2015,FAIRCROFT COMMUNITY HOME,ATG TICKETS,16,EDUC VISITS/HOLS/CAMPS/TOYS,"THEATRICAL PRODUCERS(EXCL MOTION PIX),TICKET AGNCY"
27/01/2016,http://opendatacommunities.org/id/county-council/surrey,Surrey,http://id.esd.org.uk/service/1465,Council expenditure,01/10/2015,FAIRCROFT COMMUNITY HOME,TESCO STORES-2160,24.2,EQUIPMENT,"GROCERY STORES, SUPERMARKETS"
27/01/2016,http://opendatacommunities.org/id/county-council/surrey,Surrey,http://id.esd.org.uk/service/1465,Council expenditure,01/10/2015,FAIRCROFT COMMUNITY HOME,TESCO STORES-2160,27.2,EQUIPMENT,"GROCERY STORES, SUPERMARKETS"
27/01/2016,http://opendatacommunities.org/id/county-council/surrey,Surrey,http://id.esd.org.uk/service/1465,Council expenditure,01/10/2015,FAIRCROFT COMMUNITY HOME,LOTUS LOUNGE BAR,42.52,REFRESHMENT COSTS,"EATING PLACES, RESTAURANTS"
27/01/2016,http://opendatacommunities.org/id/county-council/surrey,Surrey,http://id.esd.org.uk/service/1465,Council expenditure,01/10/2015,FAIRCROFT COMMUNITY HOME,ARGOS LTD,106.91,EQUIPMENT,DISCOUNT STORES
27/01/2016,http://opendatacommunities.org/id/county-council/surrey,Surrey,http://id.esd.org.uk/service/1465,Council expenditure,01/10/2015,FAIRCROFT COMMUNITY HOME,SAINSBURYS 0687,248,EQUIPMENT,"GROCERY STORES, SUPERMARKETS"
27/01/2016,http://opendatacommunities.org/id/county-council/surrey,Surrey,http://id.esd.org.uk/service/1465,Council expenditure,01/10/2015,FAMILY WORKFORCE DEVELOPMENT EAST,AMAZON UK MARKETPLACE,13.99,EDUC VISITS/HOLS/CAMPS/TOYS,BOOK STORES
27/01/2016,http://opendatacommunities.org/id/county-council/surrey,Surrey,http://id.esd.org.uk/service/1465,Council expenditure,01/10/2015,FAMILY WORKFORCE DEVELOPMENT EAST,AMAZON EU,70.12,STATIONERY,DIRECT MARKETING-OTHER DIRECT MARKETERS/NOT ELSEW.
27/01/2016,http://opendatacommunities.org/id/county-council/surrey,Surrey,http://id.esd.org.uk/service/1465,Council expenditure,01/10/2015,HEAD OF PROCUREMENT,S`TEL LGW RECEP 0,"1,000.00",VENUE COSTS (INCLUDING HIRE OF ROOMS),"LODGING-HOTELS,MOTELS,RESORTS-NOT CLASSIFIED"
27/01/2016,http://opendatacommunities.org/id/county-council/surrey,Surrey,http://id.esd.org.uk/service/1465,Council expenditure,01/10/2015,HERITAGE PUBLIC SERVICE,BOOKER LIMITED SUNBURY,21.58,REFRESHMENT COSTS,CATERERS
27/01/2016,http://opendatacommunities.org/id/county-council/surrey,Surrey,http://id.esd.org.uk/service/1465,Council expenditure,01/10/2015,HILLSIDE,SAINSBURYS 0675,28,PURCHASE OF FOOD (RAW MATERIALS),"GROCERY STORES, SUPERMARKETS"
27/01/2016,http://opendatacommunities.org/id/county-council/surrey,Surrey,http://id.esd.org.uk/service/1465,Council expenditure,01/10/2015,HILLSIDE,SCREWFIX,47.99,EQUIPMENT,"BUILDING MATERIALS, LUMBER STORES"
27/01/2016,http://opendatacommunities.org/id/county-council/surrey,Surrey,http://id.esd.org.uk/service/1465,Council expenditure,01/10/2015,HOLLAND CLOSE RESIDENTIAL HOME,SAINSBURYS SACAT 0032,13.6,PURCHASE OF FOOD (RAW MATERIALS),"GROCERY STORES, SUPERMARKETS"
27/01/2016,http://opendatacommunities.org/id/county-council/surrey,Surrey,http://id.esd.org.uk/service/1465,Council expenditure,01/10/2015,HOPE SERVICE - EAST,CHESSINGTON GARDEN CNT,4.4,REFRESHMENT COSTS,LAWN AND GARDEN SUPPLY STORES
27/01/2016,http://opendatacommunities.org/id/county-council/surrey,Surrey,http://id.esd.org.uk/service/1465,Council expenditure,01/10/2015,HOPE SERVICE - EAST,TESCO STORES 6320,5.45,PURCHASE OF FOOD (RAW MATERIALS),"GROCERY STORES, SUPERMARKETS"
27/01/2016,http://opendatacommunities.org/id/county-council/surrey,Surrey,http://id.esd.org.uk/service/1465,Council expenditure,01/10/2015,IMT CRITICAL ENVIRONMENTS,WWW.MILKANDMORE.CO.UK,32.78,REFRESHMENT COSTS,DIRECT MARKETING-CONTINUITY/SUBSCRIPTION MERCHANTS
27/01/2016,http://opendatacommunities.org/id/county-council/surrey,Surrey,http://id.esd.org.uk/service/1465,Council expenditure,01/10/2015,IMT TECHNICAL DELIVERY,AMAZON UK MARKETPLACE,168.85,COMPUTER HARDWARE,BOOK STORES
27/01/2016,http://opendatacommunities.org/id/county-council/surrey,Surrey,http://id.esd.org.uk/service/1465,Council expenditure,01/10/2015,INCLUSION VIRTUAL LEARNING ENVIRONMENT,TWINKL LTD,864,COMPUTER SERVICES,DIRECT MARKETING-CONTINUITY/SUBSCRIPTION MERCHANTS
27/01/2016,http://opendatacommunities.org/id/county-council/surrey,Surrey,http://id.esd.org.uk/service/1465,Council expenditure,01/10/2015,LIBERTAS COMMUNITY HOME,PRET A MANGER,3.25,REFRESHMENT COSTS,"EATING PLACES, RESTAURANTS"
27/01/2016,http://opendatacommunities.org/id/county-council/surrey,Surrey,http://id.esd.org.uk/service/1465,Council expenditure,01/10/2015,LIBERTAS COMMUNITY HOME,PRET A MANGER,4.55,REFRESHMENT COSTS,"EATING PLACES, RESTAURANTS"
27/01/2016,http://opendatacommunities.org/id/county-council/surrey,Surrey,http://id.esd.org.uk/service/1465,Council expenditure,01/10/2015,LIBERTAS COMMUNITY HOME,BURGER KING,11.98,REFRESHMENT COSTS,FAST FOOD RESTAURANTS
27/01/2016,http://opendatacommunities.org/id/county-council/surrey,Surrey,http://id.esd.org.uk/service/1465,Council expenditure,01/10/2015,LIBERTAS COMMUNITY HOME,TICKETOFFICESALE,49.8,NON-STAFF RELATED TRANSPORT COSTS,PASSENGER RAILWAYS
27/01/2016,http://opendatacommunities.org/id/county-council/surrey,Surrey,http://id.esd.org.uk/service/1465,Council expenditure,01/10/2015,MALLOW CRESCENT,ARGOS RETAIL GROUP,-92.99,EQUIPMENT,DISCOUNT STORES
27/01/2016,http://opendatacommunities.org/id/county-council/surrey,Surrey,http://id.esd.org.uk/service/1465,Council expenditure,01/10/2015,NE CARE - CP & COURT LAC,SURREY CC CARD PAY,-18,CHILDREN ACT SEC 17 PAYMENTS,COMPUTER NETWORK/INFORMATION SERVICES
27/01/2016,http://opendatacommunities.org/id/county-council/surrey,Surrey,http://id.esd.org.uk/service/1465,Council expenditure,01/10/2015,NE CARE - CP & COURT LAC,SURREY CC CARD PAY,-12,CHILDREN ACT SEC 17 PAYMENTS,COMPUTER NETWORK/INFORMATION SERVICES
27/01/2016,http://opendatacommunities.org/id/county-council/surrey,Surrey,http://id.esd.org.uk/service/1465,Council expenditure,01/10/2015,NE CARE - CP & COURT LAC,SURREY CC CARD PAY,12,CHILDREN ACT SEC 17 PAYMENTS,COMPUTER NETWORK/INFORMATION SERVICES
27/01/2016,http://opendatacommunities.org/id/county-council/surrey,Surrey,http://id.esd.org.uk/service/1465,Council expenditure,01/10/2015,NE CARE - CP & COURT LAC,SURREY CC CARD PAY,18,CHILDREN ACT SEC 17 PAYMENTS,COMPUTER NETWORK/INFORMATION SERVICES
27/01/2016,http://opendatacommunities.org/id/county-council/surrey,Surrey,http://id.esd.org.uk/service/1465,Council expenditure,01/10/2015,NE CARE - CP & COURT LAC,TRAVELODGE WEBSITE,74.95,CHILDREN ACT SEC 17 PAYMENTS,TRAVELODGE
27/01/2016,http://opendatacommunities.org/id/county-council/surrey,Surrey,http://id.esd.org.uk/service/1465,Council expenditure,01/10/2015,NIL RECOURSE PUBLIC FNDG 18+ ASYLUM SKR,TRAVELODGE WEBSITE,526,3RD PARTY PAYMENTS PRIVATE INDIV,TRAVELODGE
27/01/2016,http://opendatacommunities.org/id/county-council/surrey,Surrey,http://id.esd.org.uk/service/1465,Council expenditure,01/10/2015,NORTH WEST AREA TEAM,SCREWFIX DIRECT,55.98,EQUIPMENT,"BUILDING MATERIALS, LUMBER STORES"
27/01/2016,http://opendatacommunities.org/id/county-council/surrey,Surrey,http://id.esd.org.uk/service/1465,Council expenditure,01/10/2015,NORTH WEST AREA TEAM,POST OFFICE COUNTER,82.25,EQUIPMENT,POSTAL SERVICES-GOVERNMENT ONLY
27/01/2016,http://opendatacommunities.org/id/county-council/surrey,Surrey,http://id.esd.org.uk/service/1465,Council expenditure,01/10/2015,OCCUPATIONAL HEALTH,AMAZON EU,16.69,EQUIPMENT,DIRECT MARKETING-OTHER DIRECT MARKETERS/NOT ELSEW.
27/01/2016,http://opendatacommunities.org/id/county-council/surrey,Surrey,http://id.esd.org.uk/service/1465,Council expenditure,01/10/2015,PE/CDT MAINTENANCE OVERHEADS,BEARINGS AND BELTS,10.11,ITEMS PURCHASED FOR RE-SALE,"ARCHITECTURAL, ENGINEERING, AND SURVEYING SERVICES"
27/01/2016,http://opendatacommunities.org/id/county-council/surrey,Surrey,http://id.esd.org.uk/service/1465,Council expenditure,01/10/2015,PE/CDT MAINTENANCE OVERHEADS,PORTER VALMIC,226.86,ITEMS PURCHASED FOR RE-SALE,"FURNITURE-REUPHOLSTERY AND REPAIR, REFINISHING"
27/01/2016,http://opendatacommunities.org/id/county-council/surrey,Surrey,http://id.esd.org.uk/service/1465,Council expenditure,01/10/2015,PROPERTY ENVIRONMENT AND STOCK TEAM,"AMAZON SVCS EUROPE,SAR",9.99,EQUIPMENT,BOOK STORES
27/01/2016,http://opendatacommunities.org/id/county-council/surrey,Surrey,http://id.esd.org.uk/service/1465,Council expenditure,01/10/2015,PROPERTY OPERATIONS TEAM,WICKES,10.28,PURCHASE OF BUILDING MATERIALS,"BUILDING MATERIALS, LUMBER STORES"
27/01/2016,http://opendatacommunities.org/id/county-council/surrey,Surrey,http://id.esd.org.uk/service/1465,Council expenditure,01/10/2015,ROW VOLUNTEERS WEST                     ,PRACTICAL CAR & VAN RE,104,FEES,AUTOMOBILE RENTAL AGENCY-NOT ELSEWHERE CLASSIFIED
27/01/2016,http://opendatacommunities.org/id/county-council/surrey,Surrey,http://id.esd.org.uk/service/1465,Council expenditure,01/10/2015,RUTH HOUSE,THE FARM SHOP-,417.5,PURCHASE OF FOOD (RAW MATERIALS),"CLOCK, JEWELRY, WATCH, AND SILVERWARE STORE"
27/01/2016,http://opendatacommunities.org/id/county-council/surrey,Surrey,http://id.esd.org.uk/service/1465,Council expenditure,01/10/2015,RUTH HOUSE,THE FARM SHOP-,529.59,PURCHASE OF FOOD (RAW MATERIALS),"CLOCK, JEWELRY, WATCH, AND SILVERWARE STORE"
27/01/2016,http://opendatacommunities.org/id/county-council/surrey,Surrey,http://id.esd.org.uk/service/1465,Council expenditure,01/10/2015,SE EDUCATION PSYCHOLOGISTS,SDS SEMINARS LIMITED,276,TRAINING EXPENSES EXTERNAL GENERAL,OTHER SERVICES (NOT ELSEWHERE CLASSIFIED)
27/01/2016,http://opendatacommunities.org/id/county-council/surrey,Surrey,http://id.esd.org.uk/service/1465,Council expenditure,01/10/2015,SOLD ESTATES MANAGEMENT,B & Q,25.95,DAY TO DAY MAINTENANCE,"BUILDING MATERIALS, LUMBER STORES"
27/01/2016,http://opendatacommunities.org/id/county-council/surrey,Surrey,http://id.esd.org.uk/service/1465,Council expenditure,01/10/2015,SURREY ARTS GENERAL,WWW.BREGPRODUCTS.CO.UK,333.6,EQUIPMENT,INDUSTRIAL SUPPLIES NOT ELSEWHERE CLASSIFIED
27/01/2016,http://opendatacommunities.org/id/county-council/surrey,Surrey,http://id.esd.org.uk/service/1465,Council expenditure,01/10/2015,SURREY HILLS AONB,GIANT MARCOMS,106.78,EQUIPMENT,MISCELLANEOUS PUBLISHING AND PRINTING
27/01/2016,http://opendatacommunities.org/id/county-council/surrey,Surrey,http://id.esd.org.uk/service/1465,Council expenditure,01/10/2015,SURREY HISTORY CENTRE,BOOKER LIMITED SUNBURY,25.13,CLEANING AND DOMESTIC SUPPLIES,CATERERS
27/01/2016,http://opendatacommunities.org/id/county-council/surrey,Surrey,http://id.esd.org.uk/service/1465,Council expenditure,01/10/2015,SW AREA SEN MANAGEMENT TEAM,WW.TEACHINGEXHIBIT,72,TRAINING EXPENSES EXTERNAL GENERAL,"ORGANIZATIONS, MEMBERSHIP-NOT ELSEWHERE CLASSIFIED"
27/01/2016,http://opendatacommunities.org/id/county-council/surrey,Surrey,http://id.esd.org.uk/service/1465,Council expenditure,01/10/2015,SW CARE - LAC,WWW.WANDSWORTH.GOV.UK,11,LEGAL EXPENSES,GOVERNMENT SERVICES-NOT ELSEWHERE CLASSIFIED
27/01/2016,http://opendatacommunities.org/id/county-council/surrey,Surrey,http://id.esd.org.uk/service/1465,Council expenditure,01/10/2015,SW SECTION 17 CARE,LAKESIDE INTERNATIONAL,500,CHILDREN ACT SEC 17 PAYMENTS,"LODGING-HOTELS,MOTELS,RESORTS-NOT CLASSIFIED"
27/01/2016,http://opendatacommunities.org/id/county-council/surrey,Surrey,http://id.esd.org.uk/service/1465,Council expenditure,01/10/2015,SW SECTION 17 CARE,LAKESIDE INTERNATIONAL,568,CHILDREN ACT SEC 17 PAYMENTS,"LODGING-HOTELS,MOTELS,RESORTS-NOT CLASSIFIED"
27/01/2016,http://opendatacommunities.org/id/county-council/surrey,Surrey,http://id.esd.org.uk/service/1465,Council expenditure,01/10/2015,TARGETED INTERVENTION,WOKING BREWERY ROAD,3.9,EDUC VISITS/HOLS/CAMPS/TOYS,AUTOMOBILE PARKING LOTS AND GARAGES
27/01/2016,http://opendatacommunities.org/id/county-council/surrey,Surrey,http://id.esd.org.uk/service/1465,Council expenditure,01/10/2015,TARGETED INTERVENTION,TESCO STORE 2160,4.4,EDUC VISITS/HOLS/CAMPS/TOYS,"GROCERY STORES, SUPERMARKETS"
27/01/2016,http://opendatacommunities.org/id/county-council/surrey,Surrey,http://id.esd.org.uk/service/1465,Council expenditure,01/10/2015,TARGETED INTERVENTION,STARBUCKS,5.25,EDUC VISITS/HOLS/CAMPS/TOYS,FAST FOOD RESTAURANTS
27/01/2016,http://opendatacommunities.org/id/county-council/surrey,Surrey,http://id.esd.org.uk/service/1465,Council expenditure,01/10/2015,THE BRIDGE YC,TESCO STORE 2812,34.37,PURCHASE OF FOOD (RAW MATERIALS),"GROCERY STORES, SUPERMARKETS"
27/01/2016,http://opendatacommunities.org/id/county-council/surrey,Surrey,http://id.esd.org.uk/service/1465,Council expenditure,01/10/2015,TRAFFIC MANAGEMENT,TVLICENSING.CO.UK,145.5,LICENCE FEES,"CONSULTING, MANAGEMENT, AND PUBLIC RELATIONS SVCS"
27/01/2016,http://opendatacommunities.org/id/county-council/surrey,Surrey,http://id.esd.org.uk/service/1465,Council expenditure,01/10/2015,TRAINING COMMUNICATIONS,EB HOW TO WRITE COMPE,249,TRAINING EXPENSES EXTERNAL GENERAL,BUSINESS SERVICES-NOT ELSEWHERE CLASSIFIED
27/01/2016,http://opendatacommunities.org/id/county-council/surrey,Surrey,http://id.esd.org.uk/service/1465,Council expenditure,01/10/2015,TRANSPORT,AMAZON UK MARKETPLACE,12.99,STATIONERY,BOOK STORES
27/01/2016,http://opendatacommunities.org/id/county-council/surrey,Surrey,http://id.esd.org.uk/service/1465,Council expenditure,01/10/2015,TRANSPORT,AMAZON EU,23.98,FURNITURE,DIRECT MARKETING-OTHER DIRECT MARKETERS/NOT ELSEW.
27/01/2016,http://opendatacommunities.org/id/county-council/surrey,Surrey,http://id.esd.org.uk/service/1465,Council expenditure,01/10/2015,TRANSPORT,AMAZON UK MARKETPLACE,33.19,FURNITURE,BOOK STORES
27/01/2016,http://opendatacommunities.org/id/county-council/surrey,Surrey,http://id.esd.org.uk/service/1465,Council expenditure,01/10/2015,TRANSPORT,WWW.THEMETALSTORE.CO.U,44.26,EQUIPMENT,INDUSTRIAL SUPPLIES NOT ELSEWHERE CLASSIFIED
27/01/2016,http://opendatacommunities.org/id/county-council/surrey,Surrey,http://id.esd.org.uk/service/1465,Council expenditure,01/10/2015,TRANSPORT,AMAZON UK MARKETPLACE,89,STATIONERY,BOOK STORES
27/01/2016,http://opendatacommunities.org/id/county-council/surrey,Surrey,http://id.esd.org.uk/service/1465,Council expenditure,01/10/2015,TRANSPORT,AMAZON UK MARKETPLACE,115.2,EQUIPMENT,BOOK STORES
27/01/2016,http://opendatacommunities.org/id/county-council/surrey,Surrey,http://id.esd.org.uk/service/1465,Council expenditure,01/10/2015,WEIRMEAD FARM BARN BROCKHAM,EDF ENERGY-DOM,"1,149.85",DAY TO DAY MAINTENANCE,"UTLTS-ELCTRC, GAS, HEATING OIL, SANITARY, WATER"
27/01/2016,http://opendatacommunities.org/id/county-council/surrey,Surrey,http://id.esd.org.uk/service/1465,Council expenditure,01/10/2015,YSS MANAGEMENT PRACTICE AND SUPPORT,TRAVELODGE WEBSITE,178,EDUC VISITS/HOLS/CAMPS/TOYS,TRAVELODGE
27/01/2016,http://opendatacommunities.org/id/county-council/surrey,Surrey,http://id.esd.org.uk/service/1465,Council expenditure,02/10/2015,ACL CENTRAL EXPENDITURE,AMAZON UK MARKETPLACE,11.68,EQUIPMENT,BOOK STORES
27/01/2016,http://opendatacommunities.org/id/county-council/surrey,Surrey,http://id.esd.org.uk/service/1465,Council expenditure,02/10/2015,ACL CENTRAL EXPENDITURE,AMAZON UK MARKETPLACE,14.19,EQUIPMENT,BOOK STORES
27/01/2016,http://opendatacommunities.org/id/county-council/surrey,Surrey,http://id.esd.org.uk/service/1465,Council expenditure,02/10/2015,ACL CENTRAL EXPENDITURE,AMAZON UK MARKETPLACE,25.19,EQUIPMENT,BOOK STORES
27/01/2016,http://opendatacommunities.org/id/county-council/surrey,Surrey,http://id.esd.org.uk/service/1465,Council expenditure,02/10/2015,ACL CENTRAL EXPENDITURE,AMAZON UK MARKETPLACE,39.5,EQUIPMENT,BOOK STORES
27/01/2016,http://opendatacommunities.org/id/county-council/surrey,Surrey,http://id.esd.org.uk/service/1465,Council expenditure,02/10/2015,ACL CENTRAL EXPENDITURE,SOUTH WESTERN IND PLAS,41.6,CURRICULUM CONSUMABLES,"INSULATION,MASONRY,PLSTER,STONEWRK,TILESET CNTRCTR"
27/01/2016,http://opendatacommunities.org/id/county-council/surrey,Surrey,http://id.esd.org.uk/service/1465,Council expenditure,02/10/2015,ACL CENTRAL EXPENDITURE,AMAZON UK MARKETPLACE,149.8,EQUIPMENT,BOOK STORES
27/01/2016,http://opendatacommunities.org/id/county-council/surrey,Surrey,http://id.esd.org.uk/service/1465,Council expenditure,02/10/2015,APPLEWOOD,AMAZON EU,28.8,EDUC VISITS/HOLS/CAMPS/TOYS,DIRECT MARKETING-OTHER DIRECT MARKETERS/NOT ELSEW.
27/01/2016,http://opendatacommunities.org/id/county-council/surrey,Surrey,http://id.esd.org.uk/service/1465,Council expenditure,02/10/2015,ARUNDEL,TESCO STORES 5999,132.59,REFRESHMENT COSTS,"GROCERY STORES, SUPERMARKETS"
27/01/2016,http://opendatacommunities.org/id/county-council/surrey,Surrey,http://id.esd.org.uk/service/1465,Council expenditure,02/10/2015,ARUNDEL,EDWARD HOTEL,885.8,EDUC VISITS/HOLS/CAMPS/TOYS,"LODGING-HOTELS,MOTELS,RESORTS-NOT CLASSIFIED"
27/01/2016,http://opendatacommunities.org/id/county-council/surrey,Surrey,http://id.esd.org.uk/service/1465,Council expenditure,02/10/2015,ASYLUM SEEKERS 18+,MARTIN & WRIGHT,457.6,INDEPENDENT LIVING PLACEMENTS,PROFESSIONAL SERVICES-NOT ELSEWHERE CLASSIFIED
27/01/2016,http://opendatacommunities.org/id/county-council/surrey,Surrey,http://id.esd.org.uk/service/1465,Council expenditure,02/10/2015,CHIEF PROPERTY OFFICER,AMAZON EU,23.99,COMPUTER CONSUMABLES,DIRECT MARKETING-OTHER DIRECT MARKETERS/NOT ELSEW.
27/01/2016,http://opendatacommunities.org/id/county-council/surrey,Surrey,http://id.esd.org.uk/service/1465,Council expenditure,02/10/2015,COMMUNICATIONS TEAM,AMAZON EU,15.49,STATIONERY,DIRECT MARKETING-OTHER DIRECT MARKETERS/NOT ELSEW.
27/01/2016,http://opendatacommunities.org/id/county-council/surrey,Surrey,http://id.esd.org.uk/service/1465,Council expenditure,02/10/2015,COMMUNICATIONS TEAM,TIMES NEWSPAPERS LTD,34.67,SUBSCRIPTIONS,"BOOKS,PERIODICALS AND NEWSPAPERS"
27/01/2016,http://opendatacommunities.org/id/county-council/surrey,Surrey,http://id.esd.org.uk/service/1465,Council expenditure,02/10/2015,CONSORT HOUSE REDHILL,H.C.SLINGSBY PLC,238.8,EQUIPMENT,INDUSTRIAL SUPPLIES NOT ELSEWHERE CLASSIFIED
27/01/2016,http://opendatacommunities.org/id/county-council/surrey,Surrey,http://id.esd.org.uk/service/1465,Council expenditure,02/10/2015,COUNTY HALL,JCM LOCKSMITHS LTD,66,DAY TO DAY MAINTENANCE,HARDWARE STORES
27/01/2016,http://opendatacommunities.org/id/county-council/surrey,Surrey,http://id.esd.org.uk/service/1465,Council expenditure,02/10/2015,COUNTY HALL,WWW.WARDSFLEX.CO.UK,183.49,EQUIPMENT,HARDWARE EQUIPMENT AND SUPPLIES
27/01/2016,http://opendatacommunities.org/id/county-council/surrey,Surrey,http://id.esd.org.uk/service/1465,Council expenditure,02/10/2015,COUNTYWIDE MANAGED PRINT SERVICE,GALTEC SOLUTIONS LTD,252,COMPUTER CONSUMABLES,COMPUTER SOFTWARE STORES
27/01/2016,http://opendatacommunities.org/id/county-council/surrey,Surrey,http://id.esd.org.uk/service/1465,Council expenditure,02/10/2015,COVEHAM,SAINSBURYS TO YOU 0687,162.69,PURCHASE OF FOOD (RAW MATERIALS),"GROCERY STORES, SUPERMARKETS"
27/01/2016,http://opendatacommunities.org/id/county-council/surrey,Surrey,http://id.esd.org.uk/service/1465,Council expenditure,02/10/2015,DORMERS RESIDENTIAL CARE,WM MORRISONS,83.87,PURCHASE OF FOOD (RAW MATERIALS),"GROCERY STORES, SUPERMARKETS"
27/01/2016,http://opendatacommunities.org/id/county-council/surrey,Surrey,http://id.esd.org.uk/service/1465,Council expenditure,02/10/2015,E&I - LOVE FOOD HATE WASTE              ,GOOGLE  ADWS2060179426,500,PUBLICITY,DIRECT MARKETING-CONTINUITY/SUBSCRIPTION MERCHANTS
27/01/2016,http://opendatacommunities.org/id/county-council/surrey,Surrey,http://id.esd.org.uk/service/1465,Council expenditure,02/10/2015,EYS EQUIPMENT,ARGOS RETAIL GROUP,18.94,CURRICULUM EQUIPMENT AND FURNITURE,DISCOUNT STORES
27/01/2016,http://opendatacommunities.org/id/county-council/surrey,Surrey,http://id.esd.org.uk/service/1465,Council expenditure,02/10/2015,FAMILY WORKFORCE DEVELOPMENT EAST,AMAZON EU,9.89,STATIONERY,DIRECT MARKETING-OTHER DIRECT MARKETERS/NOT ELSEW.
27/01/2016,http://opendatacommunities.org/id/county-council/surrey,Surrey,http://id.esd.org.uk/service/1465,Council expenditure,02/10/2015,HILLSIDE,SANBEI - PHONE ACCESSO,9.99,EQUIPMENT,TELECOMMUNICATION EQUIPMENT INCL TELEPHONE SALES
27/01/2016,http://opendatacommunities.org/id/county-council/surrey,Surrey,http://id.esd.org.uk/service/1465,Council expenditure,02/10/2015,HILLSIDE,SAINSBURYS 0675,69.95,PURCHASE OF FOOD (RAW MATERIALS),"GROCERY STORES, SUPERMARKETS"
27/01/2016,http://opendatacommunities.org/id/county-council/surrey,Surrey,http://id.esd.org.uk/service/1465,Council expenditure,02/10/2015,HILLSIDE,SOUTHLEA SERVICE STN,88.44,NON-STAFF RELATED TRANSPORT COSTS,SERVICE STATIONS WITH OR WITHOUT ANCILLARY SERVICE
27/01/2016,http://opendatacommunities.org/id/county-council/surrey,Surrey,http://id.esd.org.uk/service/1465,Council expenditure,02/10/2015,HOPE SERVICE - EAST,TESCO STORES 6320,2.35,PURCHASE OF FOOD (RAW MATERIALS),"GROCERY STORES, SUPERMARKETS"
27/01/2016,http://opendatacommunities.org/id/county-council/surrey,Surrey,http://id.esd.org.uk/service/1465,Council expenditure,02/10/2015,HOPE SERVICE - WEST,THE LIGHTBOX,2.1,REFRESHMENT COSTS,"ORGANIZATIONS, CHARITABLE AND SOCIAL SERVICES"
27/01/2016,http://opendatacommunities.org/id/county-council/surrey,Surrey,http://id.esd.org.uk/service/1465,Council expenditure,02/10/2015,HOPE SERVICE - WEST,SAINSBURYS SACAT(4409),9.4,PURCHASE OF FOOD (RAW MATERIALS),"GROCERY STORES, SUPERMARKETS"
27/01/2016,http://opendatacommunities.org/id/county-council/surrey,Surrey,http://id.esd.org.uk/service/1465,Council expenditure,02/10/2015,HOPE SERVICE - WEST,THE LIGHTBOX,10,EDUC VISITS/HOLS/CAMPS/TOYS,"ORGANIZATIONS, CHARITABLE AND SOCIAL SERVICES"
27/01/2016,http://opendatacommunities.org/id/county-council/surrey,Surrey,http://id.esd.org.uk/service/1465,Council expenditure,02/10/2015,HR - BUSINESS SERVICES AND TRAINING,AMAZON EU,46.03,EQUIPMENT,DIRECT MARKETING-OTHER DIRECT MARKETERS/NOT ELSEW.
27/01/2016,http://opendatacommunities.org/id/county-council/surrey,Surrey,http://id.esd.org.uk/service/1465,Council expenditure,02/10/2015,LIBERTAS COMMUNITY HOME,METRO PHOTOGRAPHY,-50,EQUIPMENT,PHOTOGRAPHIC STUDIOS
27/01/2016,http://opendatacommunities.org/id/county-council/surrey,Surrey,http://id.esd.org.uk/service/1465,Council expenditure,02/10/2015,LIBERTAS COMMUNITY HOME,SAINSBURYS,6.45,PURCHASE OF FOOD (RAW MATERIALS),"GROCERY STORES, SUPERMARKETS"
27/01/2016,http://opendatacommunities.org/id/county-council/surrey,Surrey,http://id.esd.org.uk/service/1465,Council expenditure,02/10/2015,LIBERTAS COMMUNITY HOME,SAINSBURYS,161.73,PURCHASE OF FOOD (RAW MATERIALS),"GROCERY STORES, SUPERMARKETS"
27/01/2016,http://opendatacommunities.org/id/county-council/surrey,Surrey,http://id.esd.org.uk/service/1465,Council expenditure,02/10/2015,LSTF GRANT,AMAZON EU,78.99,EQUIPMENT,DIRECT MARKETING-OTHER DIRECT MARKETERS/NOT ELSEW.
27/01/2016,http://opendatacommunities.org/id/county-council/surrey,Surrey,http://id.esd.org.uk/service/1465,Council expenditure,02/10/2015,MSI EQUIPMENT,WWW.SWIMSHOP.CO.UK,65.94,CURRICULUM EQUIPMENT AND FURNITURE,SPORTING GOODS STORES
27/01/2016,http://opendatacommunities.org/id/county-council/surrey,Surrey,http://id.esd.org.uk/service/1465,Council expenditure,02/10/2015,MSI EQUIPMENT,AMAZON UK MARKETPLACE,104.85,CURRICULUM EQUIPMENT AND FURNITURE,BOOK STORES
27/01/2016,http://opendatacommunities.org/id/county-council/surrey,Surrey,http://id.esd.org.uk/service/1465,Council expenditure,02/10/2015,NE CP & COURT TEAM,UKBA4191815119,199,FEES,GOVERNMENT SERVICES-NOT ELSEWHERE CLASSIFIED
27/01/2016,http://opendatacommunities.org/id/county-council/surrey,Surrey,http://id.esd.org.uk/service/1465,Council expenditure,02/10/2015,NE CP & COURT TEAM,UKBA4191832222,199,FEES,GOVERNMENT SERVICES-NOT ELSEWHERE CLASSIFIED
27/01/2016,http://opendatacommunities.org/id/county-council/surrey,Surrey,http://id.esd.org.uk/service/1465,Council expenditure,02/10/2015,NE CP & COURT TEAM,UKBA4191823672,199,FEES,GOVERNMENT SERVICES-NOT ELSEWHERE CLASSIFIED
27/01/2016,http://opendatacommunities.org/id/county-council/surrey,Surrey,http://id.esd.org.uk/service/1465,Council expenditure,02/10/2015,NORTH EAST AREA TEAM,TESCO STORE 2047,5.7,REFRESHMENT COSTS,"GROCERY STORES, SUPERMARKETS"
27/01/2016,http://opendatacommunities.org/id/county-council/surrey,Surrey,http://id.esd.org.uk/service/1465,Council expenditure,02/10/2015,NORTH EAST AREA TEAM,TICKETOFFICESALE,35,MISCELLANEOUS STAFF TRAVEL,PASSENGER RAILWAYS
27/01/2016,http://opendatacommunities.org/id/county-council/surrey,Surrey,http://id.esd.org.uk/service/1465,Council expenditure,02/10/2015,NW CARE - CP & COURT LAC,HEATHROW AIRPORT,25.5,MISCELLANEOUS STAFF TRAVEL,AUTOMOBILE PARKING LOTS AND GARAGES
27/01/2016,http://opendatacommunities.org/id/county-council/surrey,Surrey,http://id.esd.org.uk/service/1465,Council expenditure,02/10/2015,NW CARE - CP & COURT LAC,AERLING   25ZRDW JOY AL0,225.96,MISCELLANEOUS STAFF TRAVEL,AER LINGUS
27/01/2016,http://opendatacommunities.org/id/county-council/surrey,Surrey,http://id.esd.org.uk/service/1465,Council expenditure,02/10/2015,OPERATIONS GROUP,WWW.APS.ORG.UK,77.2,BOOKS,BUSINESS SERVICES-NOT ELSEWHERE CLASSIFIED
27/01/2016,http://opendatacommunities.org/id/county-council/surrey,Surrey,http://id.esd.org.uk/service/1465,Council expenditure,02/10/2015,PE/CDT MAINTENANCE OVERHEADS,AMER SPORTS UK LTD,83.17,ITEMS PURCHASED FOR RE-SALE,SPORTING GOODS STORES
27/01/2016,http://opendatacommunities.org/id/county-council/surrey,Surrey,http://id.esd.org.uk/service/1465,Council expenditure,02/10/2015,PMLD EQUIPMENT,WWW.SENSORYEDUCATION.C,40.41,EQUIPMENT,"GAME, TOY, AND HOBBY SHOPS"
27/01/2016,http://opendatacommunities.org/id/county-council/surrey,Surrey,http://id.esd.org.uk/service/1465,Council expenditure,02/10/2015,SE CARE - LAC,ROWTON CASTLE VT,81,CHILDREN ACT SEC 17 PAYMENTS,"LODGING-HOTELS,MOTELS,RESORTS-NOT CLASSIFIED"
27/01/2016,http://opendatacommunities.org/id/county-council/surrey,Surrey,http://id.esd.org.uk/service/1465,Council expenditure,02/10/2015,SE CP & COURT TEAM,UKBA4191847183,199,FEES,GOVERNMENT SERVICES-NOT ELSEWHERE CLASSIFIED
27/01/2016,http://opendatacommunities.org/id/county-council/surrey,Surrey,http://id.esd.org.uk/service/1465,Council expenditure,02/10/2015,SUPERFAST BROADBAND ECONOMIC DEVELOPMENT,GOOGLE  SVCSAPPS_SUPER,15.39,COMPUTER SERVICES,DIRECT MARKETING-CONTINUITY/SUBSCRIPTION MERCHANTS
27/01/2016,http://opendatacommunities.org/id/county-council/surrey,Surrey,http://id.esd.org.uk/service/1465,Council expenditure,02/10/2015,SURREY ARTS GENERAL,J W PEPPER AND SON INC,16.21,CURRIC BOOKS,"MUSIC STORES-INSTRUMENTS, PIANOS, SHEET MUSIC"
27/01/2016,http://opendatacommunities.org/id/county-council/surrey,Surrey,http://id.esd.org.uk/service/1465,Council expenditure,02/10/2015,SURREY HILLS AONB,FASTHOSTS INTERNET,12.56,PUBLICITY,COMPUTER NETWORK/INFORMATION SERVICES
27/01/2016,http://opendatacommunities.org/id/county-council/surrey,Surrey,http://id.esd.org.uk/service/1465,Council expenditure,02/10/2015,SW CP & COURT TEAM,UKBA4191852252,199,FEES,GOVERNMENT SERVICES-NOT ELSEWHERE CLASSIFIED
27/01/2016,http://opendatacommunities.org/id/county-council/surrey,Surrey,http://id.esd.org.uk/service/1465,Council expenditure,02/10/2015,SW CP & COURT TEAM,UKBA4191839614,199,FEES,GOVERNMENT SERVICES-NOT ELSEWHERE CLASSIFIED
27/01/2016,http://opendatacommunities.org/id/county-council/surrey,Surrey,http://id.esd.org.uk/service/1465,Council expenditure,02/10/2015,"SW REF, ASS & INT SERVICE - HUB 1",TVLICENSING.CO.UK,145.5,EQUIPMENT,"CONSULTING, MANAGEMENT, AND PUBLIC RELATIONS SVCS"
27/01/2016,http://opendatacommunities.org/id/county-council/surrey,Surrey,http://id.esd.org.uk/service/1465,Council expenditure,02/10/2015,SW SECTION 17 CARE,TRAVELODGE WEBSITE,498.95,CHILDREN ACT SEC 17 PAYMENTS,TRAVELODGE
27/01/2016,http://opendatacommunities.org/id/county-council/surrey,Surrey,http://id.esd.org.uk/service/1465,Council expenditure,02/10/2015,SW SECTION 17 CARE,TRAVELODGE WEBSITE,952.95,CHILDREN ACT SEC 17 PAYMENTS,TRAVELODGE
27/01/2016,http://opendatacommunities.org/id/county-council/surrey,Surrey,http://id.esd.org.uk/service/1465,Council expenditure,02/10/2015,TARGETED INTERVENTION,WOKING BOROUGH COUNCIL,3.9,EDUC VISITS/HOLS/CAMPS/TOYS,AUTOMOBILE PARKING LOTS AND GARAGES
27/01/2016,http://opendatacommunities.org/id/county-council/surrey,Surrey,http://id.esd.org.uk/service/1465,Council expenditure,02/10/2015,TARGETED INTERVENTION,TOP GOLF ADDLESTON,6.1,EDUC VISITS/HOLS/CAMPS/TOYS,"CLUBS-CNTRY,MBRSHIP(ATHLET,REC,SPRTS,PRIVATE GOLF"
27/01/2016,http://opendatacommunities.org/id/county-council/surrey,Surrey,http://id.esd.org.uk/service/1465,Council expenditure,02/10/2015,TARGETED INTERVENTION,SAINSBURYS SACAT 0102,9.6,EDUC VISITS/HOLS/CAMPS/TOYS,"GROCERY STORES, SUPERMARKETS"
27/01/2016,http://opendatacommunities.org/id/county-council/surrey,Surrey,http://id.esd.org.uk/service/1465,Council expenditure,02/10/2015,TARGETED INTERVENTION,HOBBYCRAFT,36,EDUC VISITS/HOLS/CAMPS/TOYS,"ARTIST SUPPLY STORES, CRAFT SHOPS"
27/01/2016,http://opendatacommunities.org/id/county-council/surrey,Surrey,http://id.esd.org.uk/service/1465,Council expenditure,02/10/2015,TARGETED INTERVENTION,TOP GOLF LTD,67,EDUC VISITS/HOLS/CAMPS/TOYS,"CLUBS-CNTRY,MBRSHIP(ATHLET,REC,SPRTS,PRIVATE GOLF"
27/01/2016,http://opendatacommunities.org/id/county-council/surrey,Surrey,http://id.esd.org.uk/service/1465,Council expenditure,02/10/2015,TRAINING AND DEVELOPMENT,LEE VALLEY REGIONAL PK,104.9,REFRESHMENT COSTS,"CLUBS-CNTRY,MBRSHIP(ATHLET,REC,SPRTS,PRIVATE GOLF"
27/01/2016,http://opendatacommunities.org/id/county-council/surrey,Surrey,http://id.esd.org.uk/service/1465,Council expenditure,02/10/2015,TRANSPORT,HARWOODS LANDROVER,13.75,VEHICLE REPAIRS AND MAINTENANCE,AUTOMOTIVE SERVICE SHOPS
27/01/2016,http://opendatacommunities.org/id/county-council/surrey,Surrey,http://id.esd.org.uk/service/1465,Council expenditure,02/10/2015,TRANSPORT,STEDALL (VEHICLE FITTI,54.02,VEHICLE REPAIRS AND MAINTENANCE,MOTOR VEHICLE SUPPLIES AND NEW PARTS
27/01/2016,http://opendatacommunities.org/id/county-council/surrey,Surrey,http://id.esd.org.uk/service/1465,Council expenditure,02/10/2015,TRANSPORT,MORPLAN LTD,167.28,"CLOTHING, UNIFORM AND LAUNDRY","OFFICE, SCHOOL SUPPLY, AND STATIONERY STORES"
27/01/2016,http://opendatacommunities.org/id/county-council/surrey,Surrey,http://id.esd.org.uk/service/1465,Council expenditure,02/10/2015,TRANSPORT,MOBILE FLEETWASH UK LT,216,VEHICLE REPAIRS AND MAINTENANCE,CAR WASHES
27/01/2016,http://opendatacommunities.org/id/county-council/surrey,Surrey,http://id.esd.org.uk/service/1465,Council expenditure,02/10/2015,WOODLANDS COMMUNITY HOME,PARENTPAY.COM,50,PURCHASE OF FOOD (RAW MATERIALS),"COLLEGES, UNIV, PRO SCHOOLS, JUNIOR COLLEGES"
27/01/2016,http://opendatacommunities.org/id/county-council/surrey,Surrey,http://id.esd.org.uk/service/1465,Council expenditure,02/10/2015,WORKPLACE COMMERCIAL TEAM,TESCO PFS 3295,2.52,PUBLICITY,SERVICE STATIONS WITH OR WITHOUT ANCILLARY SERVICE
27/01/2016,http://opendatacommunities.org/id/county-council/surrey,Surrey,http://id.esd.org.uk/service/1465,Council expenditure,02/10/2015,WORKPLACE COMMERCIAL TEAM,MAJESTIC WINE,125.82,PUBLICITY,"PACKAGE STORES, BEER, WINE, LIQUOR"
27/01/2016,http://opendatacommunities.org/id/county-council/surrey,Surrey,http://id.esd.org.uk/service/1465,Council expenditure,02/10/2015,YSS MANAGEMENT PRACTICE AND SUPPORT,TRAVELODGE WEBSITE,94,SUBSISTENCE AND CONFERENCE EXPENSES,TRAVELODGE
27/01/2016,http://opendatacommunities.org/id/county-council/surrey,Surrey,http://id.esd.org.uk/service/1465,Council expenditure,03/10/2015,ACL CENTRAL EXPENDITURE,AMAZON UK MARKETPLACE,31.16,EQUIPMENT,BOOK STORES
27/01/2016,http://opendatacommunities.org/id/county-council/surrey,Surrey,http://id.esd.org.uk/service/1465,Council expenditure,03/10/2015,FAIRCROFT COMMUNITY HOME,BIG FRY,6.9,REFRESHMENT COSTS,FAST FOOD RESTAURANTS
27/01/2016,http://opendatacommunities.org/id/county-council/surrey,Surrey,http://id.esd.org.uk/service/1465,Council expenditure,03/10/2015,FAIRCROFT COMMUNITY HOME,BIG FRY,35.3,REFRESHMENT COSTS,FAST FOOD RESTAURANTS
27/01/2016,http://opendatacommunities.org/id/county-council/surrey,Surrey,http://id.esd.org.uk/service/1465,Council expenditure,03/10/2015,HILLSIDE,TESCOS,51.61,PURCHASE OF FOOD (RAW MATERIALS),"GROCERY STORES, SUPERMARKETS"
27/01/2016,http://opendatacommunities.org/id/county-council/surrey,Surrey,http://id.esd.org.uk/service/1465,Council expenditure,03/10/2015,HILLSIDE,NEWMANS LTD,67,PURCHASE OF FOOD (RAW MATERIALS),SHOE STORES
27/01/2016,http://opendatacommunities.org/id/county-council/surrey,Surrey,http://id.esd.org.uk/service/1465,Council expenditure,03/10/2015,HILLSIDE,TESCOS,228.14,PURCHASE OF FOOD (RAW MATERIALS),"GROCERY STORES, SUPERMARKETS"
27/01/2016,http://opendatacommunities.org/id/county-council/surrey,Surrey,http://id.esd.org.uk/service/1465,Council expenditure,03/10/2015,IMT CRITICAL ENVIRONMENTS,AMAZON EU,63.95,EQUIPMENT,DIRECT MARKETING-OTHER DIRECT MARKETERS/NOT ELSEW.
27/01/2016,http://opendatacommunities.org/id/county-council/surrey,Surrey,http://id.esd.org.uk/service/1465,Council expenditure,03/10/2015,KARIBU COMMUNITY HOME,SAINSBURYS SACAT 0683,52,PURCHASE OF FOOD (RAW MATERIALS),"GROCERY STORES, SUPERMARKETS"
27/01/2016,http://opendatacommunities.org/id/county-council/surrey,Surrey,http://id.esd.org.uk/service/1465,Council expenditure,03/10/2015,KARIBU COMMUNITY HOME,SAINSBURYS 0683,122.95,EQUIPMENT,"GROCERY STORES, SUPERMARKETS"
27/01/2016,http://opendatacommunities.org/id/county-council/surrey,Surrey,http://id.esd.org.uk/service/1465,Council expenditure,03/10/2015,LEAVING CARE PACKAGES,SAINSBURYS 0652,5.99,EQUIPMENT,"GROCERY STORES, SUPERMARKETS"
27/01/2016,http://opendatacommunities.org/id/county-council/surrey,Surrey,http://id.esd.org.uk/service/1465,Council expenditure,03/10/2015,LIBERTAS COMMUNITY HOME,SAINBURYS,4.9,PURCHASE OF FOOD (RAW MATERIALS),"GROCERY STORES, SUPERMARKETS"
27/01/2016,http://opendatacommunities.org/id/county-council/surrey,Surrey,http://id.esd.org.uk/service/1465,Council expenditure,03/10/2015,LIBERTAS COMMUNITY HOME,SAINBURYS,6.75,PURCHASE OF FOOD (RAW MATERIALS),"GROCERY STORES, SUPERMARKETS"
27/01/2016,http://opendatacommunities.org/id/county-council/surrey,Surrey,http://id.esd.org.uk/service/1465,Council expenditure,03/10/2015,LIBERTAS COMMUNITY HOME,SAINSBURYS,12,LIBRARY RESOURCES,"GROCERY STORES, SUPERMARKETS"
27/01/2016,http://opendatacommunities.org/id/county-council/surrey,Surrey,http://id.esd.org.uk/service/1465,Council expenditure,03/10/2015,LIBERTAS COMMUNITY HOME,KFC,24.48,REFRESHMENT COSTS,FAST FOOD RESTAURANTS
27/01/2016,http://opendatacommunities.org/id/county-council/surrey,Surrey,http://id.esd.org.uk/service/1465,Council expenditure,03/10/2015,NW CARE - NON-LAC CP & COURT,AMAZON EU,20.26,BOOKS,DIRECT MARKETING-OTHER DIRECT MARKETERS/NOT ELSEW.
27/01/2016,http://opendatacommunities.org/id/county-council/surrey,Surrey,http://id.esd.org.uk/service/1465,Council expenditure,03/10/2015,POLICY AND PERFORMANCE TEAM,GOOGLE  SVCSAPPS_SHIFT,39.6,COMPUTER SERVICES,DIRECT MARKETING-CONTINUITY/SUBSCRIPTION MERCHANTS
27/01/2016,http://opendatacommunities.org/id/county-council/surrey,Surrey,http://id.esd.org.uk/service/1465,Council expenditure,04/10/2015,ACL CENTRAL EXPENDITURE,W M MORRISONS,19.35,REFRESHMENT COSTS,"GROCERY STORES, SUPERMARKETS"
27/01/2016,http://opendatacommunities.org/id/county-council/surrey,Surrey,http://id.esd.org.uk/service/1465,Council expenditure,04/10/2015,COMMUNICATIONS TEAM,AMAZON EU,26.11,STATIONERY,DIRECT MARKETING-OTHER DIRECT MARKETERS/NOT ELSEW.
27/01/2016,http://opendatacommunities.org/id/county-council/surrey,Surrey,http://id.esd.org.uk/service/1465,Council expenditure,04/10/2015,COUNTYWIDE MANAGED PRINT SERVICE,AMAZON EU,32.66,EQUIPMENT,DIRECT MARKETING-OTHER DIRECT MARKETERS/NOT ELSEW.
27/01/2016,http://opendatacommunities.org/id/county-council/surrey,Surrey,http://id.esd.org.uk/service/1465,Council expenditure,04/10/2015,E&I - LOVE FOOD HATE WASTE              ,GOOGLE  ADWS2060179426,500,PUBLICITY,DIRECT MARKETING-CONTINUITY/SUBSCRIPTION MERCHANTS
27/01/2016,http://opendatacommunities.org/id/county-council/surrey,Surrey,http://id.esd.org.uk/service/1465,Council expenditure,04/10/2015,FAIRCROFT COMMUNITY HOME,SAINSBURYS SACAT 0687,6.5,CLEANING AND DOMESTIC SUPPLIES,"GROCERY STORES, SUPERMARKETS"
27/01/2016,http://opendatacommunities.org/id/county-council/surrey,Surrey,http://id.esd.org.uk/service/1465,Council expenditure,04/10/2015,FAIRCROFT COMMUNITY HOME,SAINSBURYS 0687,36.34,PURCHASE OF FOOD (RAW MATERIALS),"GROCERY STORES, SUPERMARKETS"
27/01/2016,http://opendatacommunities.org/id/county-council/surrey,Surrey,http://id.esd.org.uk/service/1465,Council expenditure,04/10/2015,KARIBU COMMUNITY HOME,AMAZON EU,3,EDUC VISITS/HOLS/CAMPS/TOYS,DIRECT MARKETING-OTHER DIRECT MARKETERS/NOT ELSEW.
27/01/2016,http://opendatacommunities.org/id/county-council/surrey,Surrey,http://id.esd.org.uk/service/1465,Council expenditure,04/10/2015,LEAP WOKING,AMAZON EU,30.98,BOOKS,DIRECT MARKETING-OTHER DIRECT MARKETERS/NOT ELSEW.
27/01/2016,http://opendatacommunities.org/id/county-council/surrey,Surrey,http://id.esd.org.uk/service/1465,Council expenditure,04/10/2015,RUTH HOUSE,AMAZON UK MARKETPLACE,10.92,EDUC VISITS/HOLS/CAMPS/TOYS,BOOK STORES
27/01/2016,http://opendatacommunities.org/id/county-council/surrey,Surrey,http://id.esd.org.uk/service/1465,Council expenditure,04/10/2015,WEB OPERATIONS TEAM,HOOTSUITE MEDIA INC.,4.86,SUBSCRIPTIONS,BUSINESS SERVICES-NOT ELSEWHERE CLASSIFIED
27/01/2016,http://opendatacommunities.org/id/county-council/surrey,Surrey,http://id.esd.org.uk/service/1465,Council expenditure,05/10/2015,ACL CENTRAL EXPENDITURE,WWW.HEARTINTERNET.CO.U,7.18,COMPUTER SERVICES,COMPUTER NETWORK/INFORMATION SERVICES
27/01/2016,http://opendatacommunities.org/id/county-council/surrey,Surrey,http://id.esd.org.uk/service/1465,Council expenditure,05/10/2015,ACL CENTRAL EXPENDITURE,ARGOS RETAIL GROUP,27.49,EQUIPMENT,DISCOUNT STORES
27/01/2016,http://opendatacommunities.org/id/county-council/surrey,Surrey,http://id.esd.org.uk/service/1465,Council expenditure,05/10/2015,ACL CENTRAL EXPENDITURE,AMAZON EU,41.07,BOOKS,DIRECT MARKETING-OTHER DIRECT MARKETERS/NOT ELSEW.
27/01/2016,http://opendatacommunities.org/id/county-council/surrey,Surrey,http://id.esd.org.uk/service/1465,Council expenditure,05/10/2015,ADDLESTONE YC,TESCO STORES 2017,36.35,REFRESHMENT COSTS,"GROCERY STORES, SUPERMARKETS"
27/01/2016,http://opendatacommunities.org/id/county-council/surrey,Surrey,http://id.esd.org.uk/service/1465,Council expenditure,05/10/2015,ARUNDEL,CHELSEA TOURS,14,EDUC VISITS/HOLS/CAMPS/TOYS,"CLUBS-CNTRY,MBRSHIP(ATHLET,REC,SPRTS,PRIVATE GOLF"
27/01/2016,http://opendatacommunities.org/id/county-council/surrey,Surrey,http://id.esd.org.uk/service/1465,Council expenditure,05/10/2015,ARUNDEL,MTL ONLINE RETAIL,19,EDUC VISITS/HOLS/CAMPS/TOYS,RECREATION SERVICES (NOT ELSEWHERE CLASSIFIED)
27/01/2016,http://opendatacommunities.org/id/county-council/surrey,Surrey,http://id.esd.org.uk/service/1465,Council expenditure,05/10/2015,ARUNDEL,LONDONDUCKTOURS MAIL O,43,EDUC VISITS/HOLS/CAMPS/TOYS,TOURIST ATTRACTIONS AND EXHIBITS
27/01/2016,http://opendatacommunities.org/id/county-council/surrey,Surrey,http://id.esd.org.uk/service/1465,Council expenditure,05/10/2015,COMMUNITY ARCHAEOLOGIST PROJECT,AMAZON UK MARKETPLACE,2.73,EQUIPMENT,BOOK STORES
27/01/2016,http://opendatacommunities.org/id/county-council/surrey,Surrey,http://id.esd.org.uk/service/1465,Council expenditure,05/10/2015,COUNTYWIDE MANAGED PRINT SERVICE,PLATINUM IT SUPPLIES L,903.54,COMPUTER CONSUMABLES,"COMPUTERS, COMPUTER PERIPHERAL EQUIPMENT, SOFTWARE"
27/01/2016,http://opendatacommunities.org/id/county-council/surrey,Surrey,http://id.esd.org.uk/service/1465,Council expenditure,05/10/2015,CYWS COMMISSIONING,M6 TOLL,5.5,NON-STAFF RELATED TRANSPORT COSTS,"BRIDGE AND ROAD FEES, TOLLS"
27/01/2016,http://opendatacommunities.org/id/county-council/surrey,Surrey,http://id.esd.org.uk/service/1465,Council expenditure,05/10/2015,EYS EQUIPMENT,DEMCO EUROPE LTD,64.13,CURRICULUM EQUIPMENT AND FURNITURE,OFFICE AND COMMERCIAL FURNITURE
27/01/2016,http://opendatacommunities.org/id/county-council/surrey,Surrey,http://id.esd.org.uk/service/1465,Council expenditure,05/10/2015,FAIRCROFT COMMUNITY HOME,SAINSBURYS SACAT 0687,6,CLEANING AND DOMESTIC SUPPLIES,"GROCERY STORES, SUPERMARKETS"
27/01/2016,http://opendatacommunities.org/id/county-council/surrey,Surrey,http://id.esd.org.uk/service/1465,Council expenditure,05/10/2015,FAIRCROFT COMMUNITY HOME,TESCO STORE 2160,207.23,PURCHASE OF FOOD (RAW MATERIALS),"GROCERY STORES, SUPERMARKETS"
27/01/2016,http://opendatacommunities.org/id/county-council/surrey,Surrey,http://id.esd.org.uk/service/1465,Council expenditure,05/10/2015,FIRE EQUIPMENT (ERR),PREMIER INN44011615,625.5,CE02 WORKS,PREMIER INN
27/01/2016,http://opendatacommunities.org/id/county-council/surrey,Surrey,http://id.esd.org.uk/service/1465,Council expenditure,05/10/2015,HEAD OF PROCUREMENT,EB TEDXBRIGHTON 2015,245,TRAINING EXPENSES EXTERNAL GENERAL,BUSINESS SERVICES-NOT ELSEWHERE CLASSIFIED
27/01/2016,http://opendatacommunities.org/id/county-council/surrey,Surrey,http://id.esd.org.uk/service/1465,Council expenditure,05/10/2015,HERITAGE STEWARDSHIP AND PRESERVATION,VISTA PLAN INT PLC,205.8,STATIONERY,DIRECT MARKETING-OTHER DIRECT MARKETERS/NOT ELSEW.
27/01/2016,http://opendatacommunities.org/id/county-council/surrey,Surrey,http://id.esd.org.uk/service/1465,Council expenditure,05/10/2015,HILLSIDE,SAINSBURYS 0784,52.05,PURCHASE OF FOOD (RAW MATERIALS),"GROCERY STORES, SUPERMARKETS"
27/01/2016,http://opendatacommunities.org/id/county-council/surrey,Surrey,http://id.esd.org.uk/service/1465,Council expenditure,05/10/2015,HOLLAND CLOSE RESIDENTIAL HOME,TESCO-STORES 6647,136.96,PURCHASE OF FOOD (RAW MATERIALS),"GROCERY STORES, SUPERMARKETS"
27/01/2016,http://opendatacommunities.org/id/county-council/surrey,Surrey,http://id.esd.org.uk/service/1465,Council expenditure,05/10/2015,HOPE SERVICE - EAST,SAINSBURYS 0683,98.05,PURCHASE OF FOOD (RAW MATERIALS),"GROCERY STORES, SUPERMARKETS"
27/01/2016,http://opendatacommunities.org/id/county-council/surrey,Surrey,http://id.esd.org.uk/service/1465,Council expenditure,05/10/2015,HOPE SERVICE - WEST,FREEDOM LEISURE,27.6,EDUC VISITS/HOLS/CAMPS/TOYS,GOVERNMENT SERVICES-NOT ELSEWHERE CLASSIFIED
27/01/2016,http://opendatacommunities.org/id/county-council/surrey,Surrey,http://id.esd.org.uk/service/1465,Council expenditure,05/10/2015,HOPE SERVICE - WEST,TESCO STORE 2590,42.99,PURCHASE OF FOOD (RAW MATERIALS),"GROCERY STORES, SUPERMARKETS"
27/01/2016,http://opendatacommunities.org/id/county-council/surrey,Surrey,http://id.esd.org.uk/service/1465,Council expenditure,05/10/2015,HR LEADERSHIP DEVELOPMENT,AMAZON EU,-1.72,EQUIPMENT,DIRECT MARKETING-OTHER DIRECT MARKETERS/NOT ELSEW.
27/01/2016,http://opendatacommunities.org/id/county-council/surrey,Surrey,http://id.esd.org.uk/service/1465,Council expenditure,05/10/2015,IMT CRITICAL ENVIRONMENTS,WWW.MILKANDMORE.CO.UK,9,REFRESHMENT COSTS,"MISC FOOD STORE-CONVENIENCE,MRKT,SPLTY,VENDNG MACS"
27/01/2016,http://opendatacommunities.org/id/county-council/surrey,Surrey,http://id.esd.org.uk/service/1465,Council expenditure,05/10/2015,IMT TECHNICAL DELIVERY,AMAZON UK MARKETPLACE,24,COMPUTER HARDWARE,BOOK STORES
27/01/2016,http://opendatacommunities.org/id/county-council/surrey,Surrey,http://id.esd.org.uk/service/1465,Council expenditure,05/10/2015,IMT TECHNICAL DELIVERY,"AMAZON SVCS EUROPE,SAR",294.67,COMPUTER HARDWARE,BOOK STORES
27/01/2016,http://opendatacommunities.org/id/county-council/surrey,Surrey,http://id.esd.org.uk/service/1465,Council expenditure,05/10/2015,ISPSB - ADAPTATIONS & IMPROVEMENTS,AMAZON UK MARKETPLACE,189.9,EDUC VISITS/HOLS/CAMPS/TOYS,BOOK STORES
27/01/2016,http://opendatacommunities.org/id/county-council/surrey,Surrey,http://id.esd.org.uk/service/1465,Council expenditure,05/10/2015,LIBERTAS COMMUNITY HOME,SAINSBURYS,2.5,PURCHASE OF FOOD (RAW MATERIALS),"GROCERY STORES, SUPERMARKETS"
27/01/2016,http://opendatacommunities.org/id/county-council/surrey,Surrey,http://id.esd.org.uk/service/1465,Council expenditure,05/10/2015,LIBERTAS COMMUNITY HOME,SAINSBURYS,80.01,PURCHASE OF FOOD (RAW MATERIALS),"GROCERY STORES, SUPERMARKETS"
27/01/2016,http://opendatacommunities.org/id/county-council/surrey,Surrey,http://id.esd.org.uk/service/1465,Council expenditure,05/10/2015,MALLOW CRESCENT,SAINSBURYS,1.9,PURCHASE OF FOOD (RAW MATERIALS),"GROCERY STORES, SUPERMARKETS"
27/01/2016,http://opendatacommunities.org/id/county-council/surrey,Surrey,http://id.esd.org.uk/service/1465,Council expenditure,05/10/2015,MALLOW CRESCENT,SAINSBURYS,5.25,PURCHASE OF FOOD (RAW MATERIALS),"GROCERY STORES, SUPERMARKETS"
27/01/2016,http://opendatacommunities.org/id/county-council/surrey,Surrey,http://id.esd.org.uk/service/1465,Council expenditure,05/10/2015,MALLOW CRESCENT,SAINSBURYS,15.3,PURCHASE OF FOOD (RAW MATERIALS),"GROCERY STORES, SUPERMARKETS"
27/01/2016,http://opendatacommunities.org/id/county-council/surrey,Surrey,http://id.esd.org.uk/service/1465,Council expenditure,05/10/2015,MALLOW CRESCENT,SAINSBURYS,77.55,PURCHASE OF FOOD (RAW MATERIALS),"GROCERY STORES, SUPERMARKETS"
27/01/2016,http://opendatacommunities.org/id/county-council/surrey,Surrey,http://id.esd.org.uk/service/1465,Council expenditure,05/10/2015,MALLOW CRESCENT,TESCOS,86.7,PURCHASE OF FOOD (RAW MATERIALS),"GROCERY STORES, SUPERMARKETS"
27/01/2016,http://opendatacommunities.org/id/county-council/surrey,Surrey,http://id.esd.org.uk/service/1465,Council expenditure,05/10/2015,MALLOW CRESCENT,SAINSBURYS,122.7,PURCHASE OF FOOD (RAW MATERIALS),"GROCERY STORES, SUPERMARKETS"
27/01/2016,http://opendatacommunities.org/id/county-council/surrey,Surrey,http://id.esd.org.uk/service/1465,Council expenditure,05/10/2015,NW CARE - CP & COURT LAC,ALLPAY.NET VISA AND MA,588.53,CHILDREN ACT SEC 17 PAYMENTS,"ORGANIZATIONS, CHARITABLE AND SOCIAL SERVICES"
27/01/2016,http://opendatacommunities.org/id/county-council/surrey,Surrey,http://id.esd.org.uk/service/1465,Council expenditure,05/10/2015,OLD DEAN YC,TESCO STORES 6669,6.85,PURCHASE OF FOOD (RAW MATERIALS),"GROCERY STORES, SUPERMARKETS"
27/01/2016,http://opendatacommunities.org/id/county-council/surrey,Surrey,http://id.esd.org.uk/service/1465,Council expenditure,05/10/2015,PE/CDT MAINTENANCE OVERHEADS,STAPLES UK,50.74,EQUIPMENT,"OFFICE, SCHOOL SUPPLY, AND STATIONERY STORES"
27/01/2016,http://opendatacommunities.org/id/county-council/surrey,Surrey,http://id.esd.org.uk/service/1465,Council expenditure,05/10/2015,PE/CDT MAINTENANCE OVERHEADS,TECHSOFT UK LTD,303.6,ITEMS PURCHASED FOR RE-SALE,"COMP PROGRAMING,DATA PRCSNG,INTGRTD SYS DSGN SRVS"
27/01/2016,http://opendatacommunities.org/id/county-council/surrey,Surrey,http://id.esd.org.uk/service/1465,Council expenditure,05/10/2015,PORTAGE SERVICE (SW),AMAZON UK MARKETPLACE,-4.99,EDUC VISITS/HOLS/CAMPS/TOYS,MISCELLANEOUS AND SPECIALTY RETAIL STORES
27/01/2016,http://opendatacommunities.org/id/county-council/surrey,Surrey,http://id.esd.org.uk/service/1465,Council expenditure,05/10/2015,PRIMARY FESTIVALS,ASMSALESLTD,"2,240.00",CURRIC BOOKS,"MUSIC STORES-INSTRUMENTS, PIANOS, SHEET MUSIC"
27/01/2016,http://opendatacommunities.org/id/county-council/surrey,Surrey,http://id.esd.org.uk/service/1465,Council expenditure,05/10/2015,PROPERTY OPERATIONS TEAM,WICKES,12.98,PURCHASE OF BUILDING MATERIALS,HOME SUPPLY WAREHOUSE STORES
27/01/2016,http://opendatacommunities.org/id/county-council/surrey,Surrey,http://id.esd.org.uk/service/1465,Council expenditure,05/10/2015,PROPERTY OPERATIONS TEAM,IRONMONGERY DIRECT LTD,125.28,PURCHASE OF BUILDING MATERIALS,"GLASS, PAINT, WALLPAPER STORES"
27/01/2016,http://opendatacommunities.org/id/county-council/surrey,Surrey,http://id.esd.org.uk/service/1465,Council expenditure,05/10/2015,PSSS ICT SUPPORT,AMAZON UK MARKETPLACE,41.5,EQUIPMENT,BOOK STORES
27/01/2016,http://opendatacommunities.org/id/county-council/surrey,Surrey,http://id.esd.org.uk/service/1465,Council expenditure,05/10/2015,ROW VOLUNTEERS WEST                     ,AVS FENCING SUPPLIES,173.55,FEES,"BUILDING MATERIALS, LUMBER STORES"
27/01/2016,http://opendatacommunities.org/id/county-council/surrey,Surrey,http://id.esd.org.uk/service/1465,Council expenditure,05/10/2015,RUTH HOUSE,SAINSBURYS,44.6,PURCHASE OF FOOD (RAW MATERIALS),"GROCERY STORES, SUPERMARKETS"
27/01/2016,http://opendatacommunities.org/id/county-council/surrey,Surrey,http://id.esd.org.uk/service/1465,Council expenditure,05/10/2015,RUTH HOUSE,SAINSBURYS,186.5,PURCHASE OF FOOD (RAW MATERIALS),"GROCERY STORES, SUPERMARKETS"
27/01/2016,http://opendatacommunities.org/id/county-council/surrey,Surrey,http://id.esd.org.uk/service/1465,Council expenditure,05/10/2015,SE CARE - LAC,GRO HM PASSPORT OFFICE,23.4,CHILDREN ACT SEC 17 PAYMENTS,GOVERNMENT SERVICES-NOT ELSEWHERE CLASSIFIED
27/01/2016,http://opendatacommunities.org/id/county-council/surrey,Surrey,http://id.esd.org.uk/service/1465,Council expenditure,05/10/2015,SOLD DAY TO DAY OPERATIONS,BITTOMS KINGSTON,10,MISCELLANEOUS STAFF TRAVEL,GOVERNMENT SERVICES-NOT ELSEWHERE CLASSIFIED
27/01/2016,http://opendatacommunities.org/id/county-council/surrey,Surrey,http://id.esd.org.uk/service/1465,Council expenditure,05/10/2015,SOLD DAY TO DAY OPERATIONS,SAINSBURYS SACAT 0687,20,EQUIPMENT,"GROCERY STORES, SUPERMARKETS"
27/01/2016,http://opendatacommunities.org/id/county-council/surrey,Surrey,http://id.esd.org.uk/service/1465,Council expenditure,05/10/2015,SOLD ESTATES MANAGEMENT,BITTOMS KINGSTON,6,DAY TO DAY MAINTENANCE,GOVERNMENT SERVICES-NOT ELSEWHERE CLASSIFIED
27/01/2016,http://opendatacommunities.org/id/county-council/surrey,Surrey,http://id.esd.org.uk/service/1465,Council expenditure,05/10/2015,SOLD MANAGEMENT AND OVERHEADS,WWW.GOARMY.CO.UK,-10,EQUIPMENT,ACCESSORY AND APPAREL STORES-MISCELLANEOUS
27/01/2016,http://opendatacommunities.org/id/county-council/surrey,Surrey,http://id.esd.org.uk/service/1465,Council expenditure,05/10/2015,SOUTH EAST AREA TEAM,VUE NCS CITB HS&E TEST,19.5,EDUC VISITS/HOLS/CAMPS/TOYS,SCHOOLS & EDUCATIONAL SVC-NOT ELSEWHERE CLASSIFIED
27/01/2016,http://opendatacommunities.org/id/county-council/surrey,Surrey,http://id.esd.org.uk/service/1465,Council expenditure,05/10/2015,SOUTH EAST AREA TEAM,VUE NCS CITB HS&E TEST,19.5,EDUC VISITS/HOLS/CAMPS/TOYS,SCHOOLS & EDUCATIONAL SVC-NOT ELSEWHERE CLASSIFIED
27/01/2016,http://opendatacommunities.org/id/county-council/surrey,Surrey,http://id.esd.org.uk/service/1465,Council expenditure,05/10/2015,SUSTAINABILITY GROUP,EUROFLORIST,21.95,EQUIPMENT,FLORISTS
27/01/2016,http://opendatacommunities.org/id/county-council/surrey,Surrey,http://id.esd.org.uk/service/1465,Council expenditure,05/10/2015,TARGETED INTERVENTION,BITTOMS KINGSTON,6,EDUC VISITS/HOLS/CAMPS/TOYS,GOVERNMENT SERVICES-NOT ELSEWHERE CLASSIFIED
27/01/2016,http://opendatacommunities.org/id/county-council/surrey,Surrey,http://id.esd.org.uk/service/1465,Council expenditure,05/10/2015,TARGETED INTERVENTION,TOP GOLF ADDLESTON,7.9,EDUC VISITS/HOLS/CAMPS/TOYS,"CLUBS-CNTRY,MBRSHIP(ATHLET,REC,SPRTS,PRIVATE GOLF"
27/01/2016,http://opendatacommunities.org/id/county-council/surrey,Surrey,http://id.esd.org.uk/service/1465,Council expenditure,05/10/2015,TARGETED INTERVENTION,BITTOMS KINGSTON,10,EDUC VISITS/HOLS/CAMPS/TOYS,GOVERNMENT SERVICES-NOT ELSEWHERE CLASSIFIED
27/01/2016,http://opendatacommunities.org/id/county-council/surrey,Surrey,http://id.esd.org.uk/service/1465,Council expenditure,05/10/2015,TARGETED INTERVENTION,STARBUCKS,11.75,EDUC VISITS/HOLS/CAMPS/TOYS,FAST FOOD RESTAURANTS
27/01/2016,http://opendatacommunities.org/id/county-council/surrey,Surrey,http://id.esd.org.uk/service/1465,Council expenditure,05/10/2015,THE EDGE YC,SAINSBURYS 0683,46.4,PURCHASE OF FOOD (RAW MATERIALS),"GROCERY STORES, SUPERMARKETS"
27/01/2016,http://opendatacommunities.org/id/county-council/surrey,Surrey,http://id.esd.org.uk/service/1465,Council expenditure,05/10/2015,TRAINING AND DEVELOPMENT,THE OLD BELL INN,278,TRAINING EXPENSES EXTERNAL GENERAL,"LODGING-HOTELS,MOTELS,RESORTS-NOT CLASSIFIED"
27/01/2016,http://opendatacommunities.org/id/county-council/surrey,Surrey,http://id.esd.org.uk/service/1465,Council expenditure,05/10/2015,TRANSPORT,SCREWFIX DIRECT LT,9.99,EQUIPMENT,"BUILDING MATERIALS, LUMBER STORES"
27/01/2016,http://opendatacommunities.org/id/county-council/surrey,Surrey,http://id.esd.org.uk/service/1465,Council expenditure,05/10/2015,TRANSPORT,SELCO TRADE CTR EFT S0,18.43,DAY TO DAY MAINTENANCE,"BUILDING MATERIALS, LUMBER STORES"
27/01/2016,http://opendatacommunities.org/id/county-council/surrey,Surrey,http://id.esd.org.uk/service/1465,Council expenditure,05/10/2015,TRANSPORT,SCREWFIX DIRECT,21.5,DAY TO DAY MAINTENANCE,"BUILDING MATERIALS, LUMBER STORES"
27/01/2016,http://opendatacommunities.org/id/county-council/surrey,Surrey,http://id.esd.org.uk/service/1465,Council expenditure,05/10/2015,TRANSPORT,ARGOS REIGATE,29.99,DAY TO DAY MAINTENANCE,DISCOUNT STORES
27/01/2016,http://opendatacommunities.org/id/county-council/surrey,Surrey,http://id.esd.org.uk/service/1465,Council expenditure,05/10/2015,TRANSPORT,BOLLINGMORES,262.9,VEHICLE REPAIRS AND MAINTENANCE,"AUTO & TRUCK DLRS-SALES,SVC, REPRS,PRTS, & LEASING"
27/01/2016,http://opendatacommunities.org/id/county-council/surrey,Surrey,http://id.esd.org.uk/service/1465,Council expenditure,05/10/2015,TRANSPORT,ARGOS RETAIL GROUP,525.98,EQUIPMENT,DISCOUNT STORES
27/01/2016,http://opendatacommunities.org/id/county-council/surrey,Surrey,http://id.esd.org.uk/service/1465,Council expenditure,05/10/2015,WORKPLACE COMMERCIAL TEAM,MAJESTIC WINE,-83.88,PUBLICITY,"PACKAGE STORES, BEER, WINE, LIQUOR"
27/01/2016,http://opendatacommunities.org/id/county-council/surrey,Surrey,http://id.esd.org.uk/service/1465,Council expenditure,05/10/2015,YSS YOUTH CENTRE IMPROVEMENTS,ASDA SUPERSTORE,80.46,EQUIPMENT,"GROCERY STORES, SUPERMARKETS"
27/01/2016,http://opendatacommunities.org/id/county-council/surrey,Surrey,http://id.esd.org.uk/service/1465,Council expenditure,06/10/2015,ACCESS 2 EDUCATION NE NON-MEDICAL,AMAZON EU,30.62,EQUIPMENT,DIRECT MARKETING-OTHER DIRECT MARKETERS/NOT ELSEW.
27/01/2016,http://opendatacommunities.org/id/county-council/surrey,Surrey,http://id.esd.org.uk/service/1465,Council expenditure,06/10/2015,ACCESS 2 EDUCATION NE NON-MEDICAL,AMAZON EU,30.63,EQUIPMENT,DIRECT MARKETING-OTHER DIRECT MARKETERS/NOT ELSEW.
27/01/2016,http://opendatacommunities.org/id/county-council/surrey,Surrey,http://id.esd.org.uk/service/1465,Council expenditure,06/10/2015,ACCESS PROGRAMMES,MUSIC INDUSTRIES A,50,FEES,"ORGANIZATIONS, MEMBERSHIP-NOT ELSEWHERE CLASSIFIED"
27/01/2016,http://opendatacommunities.org/id/county-council/surrey,Surrey,http://id.esd.org.uk/service/1465,Council expenditure,06/10/2015,ACL CENTRAL EXPENDITURE,SAINSBURYS 0802,23.27,REFRESHMENT COSTS,"GROCERY STORES, SUPERMARKETS"
27/01/2016,http://opendatacommunities.org/id/county-council/surrey,Surrey,http://id.esd.org.uk/service/1465,Council expenditure,06/10/2015,ACL CENTRAL EXPENDITURE,TESCO STORE 3220,71.08,PURCHASE OF FOOD (RAW MATERIALS),"GROCERY STORES, SUPERMARKETS"
27/01/2016,http://opendatacommunities.org/id/county-council/surrey,Surrey,http://id.esd.org.uk/service/1465,Council expenditure,06/10/2015,ACL CENTRAL EXPENDITURE,WWW.HEARTINTERNET.CO.U,515.99,COMPUTER SERVICES,COMPUTER NETWORK/INFORMATION SERVICES
27/01/2016,http://opendatacommunities.org/id/county-council/surrey,Surrey,http://id.esd.org.uk/service/1465,Council expenditure,06/10/2015,ARUNDEL,TESCO STORES 5999,49.78,REFRESHMENT COSTS,"GROCERY STORES, SUPERMARKETS"
27/01/2016,http://opendatacommunities.org/id/county-council/surrey,Surrey,http://id.esd.org.uk/service/1465,Council expenditure,06/10/2015,ASHFORD YC,TESCO STORE 2047,14.53,PURCHASE OF FOOD (RAW MATERIALS),"GROCERY STORES, SUPERMARKETS"
27/01/2016,http://opendatacommunities.org/id/county-council/surrey,Surrey,http://id.esd.org.uk/service/1465,Council expenditure,06/10/2015,BIKEABILITY - CYCLE TRAINING,EVANSCYLES.COM,970,EQUIPMENT,BICYCLE SHOPS-SALES AND SERVICE
27/01/2016,http://opendatacommunities.org/id/county-council/surrey,Surrey,http://id.esd.org.uk/service/1465,Council expenditure,06/10/2015,BURBANK COMMUNITY HOME,HOBBYCRAFT,6.95,EQUIPMENT,"ARTIST SUPPLY STORES, CRAFT SHOPS"
27/01/2016,http://opendatacommunities.org/id/county-council/surrey,Surrey,http://id.esd.org.uk/service/1465,Council expenditure,06/10/2015,CLOSED LANDFILL,RS COMPONENTS,8.78,EQUIPMENT,ELECTRICAL PARTS AND EQUIPMENT
27/01/2016,http://opendatacommunities.org/id/county-council/surrey,Surrey,http://id.esd.org.uk/service/1465,Council expenditure,06/10/2015,CLOSED LANDFILL,EUROFLO LTD,29.74,EQUIPMENT,PLUMBING AND HEATING EQUIPMENT
27/01/2016,http://opendatacommunities.org/id/county-council/surrey,Surrey,http://id.esd.org.uk/service/1465,Council expenditure,06/10/2015,COMMUNITY ENGAG COM,AMAZON EU,31.05,BOOKS,DIRECT MARKETING-OTHER DIRECT MARKETERS/NOT ELSEW.
27/01/2016,http://opendatacommunities.org/id/county-council/surrey,Surrey,http://id.esd.org.uk/service/1465,Council expenditure,06/10/2015,COMMUNITY PARTNERSHIP,EB RESILIENT COMMUNIT,16.56,SUBSISTENCE AND CONFERENCE EXPENSES,BUSINESS SERVICES-NOT ELSEWHERE CLASSIFIED
27/01/2016,http://opendatacommunities.org/id/county-council/surrey,Surrey,http://id.esd.org.uk/service/1465,Council expenditure,06/10/2015,CONSORT HOUSE REDHILL,ROBERT DYAS HOLDNG LTD,2.29,EQUIPMENT,HARDWARE STORES
27/01/2016,http://opendatacommunities.org/id/county-council/surrey,Surrey,http://id.esd.org.uk/service/1465,Council expenditure,06/10/2015,COUNTY HALL,AMAZON UK MARKETPLACE,357.5,EQUIPMENT,BOOK STORES
27/01/2016,http://opendatacommunities.org/id/county-council/surrey,Surrey,http://id.esd.org.uk/service/1465,Council expenditure,06/10/2015,CSF COMMUNICATIONS TEAM,HOOTSUITE MEDIA INC.,9.59,SUBSCRIPTIONS,BUSINESS SERVICES-NOT ELSEWHERE CLASSIFIED
27/01/2016,http://opendatacommunities.org/id/county-council/surrey,Surrey,http://id.esd.org.uk/service/1465,Council expenditure,06/10/2015,CYWS COMMISSIONING,M6 TOLL,5.5,NON-STAFF RELATED TRANSPORT COSTS,"BRIDGE AND ROAD FEES, TOLLS"
27/01/2016,http://opendatacommunities.org/id/county-council/surrey,Surrey,http://id.esd.org.uk/service/1465,Council expenditure,06/10/2015,CYWS COMMISSIONING,BREWERS FAYRE 41511635,26.25,REFRESHMENT COSTS,"EATING PLACES, RESTAURANTS"
27/01/2016,http://opendatacommunities.org/id/county-council/surrey,Surrey,http://id.esd.org.uk/service/1465,Council expenditure,06/10/2015,DOWNLANDS COUNTRYSIDE PROJECT,BROXAP LTD,92.4,EQUIPMENT,GENERAL CONTRACTORS/RESIDENTIAL BUILDINGS
27/01/2016,http://opendatacommunities.org/id/county-council/surrey,Surrey,http://id.esd.org.uk/service/1465,Council expenditure,06/10/2015,E&I - LOVE FOOD HATE WASTE              ,GOOGLE  ADWS2060179426,500,PUBLICITY,DIRECT MARKETING-CONTINUITY/SUBSCRIPTION MERCHANTS
27/01/2016,http://opendatacommunities.org/id/county-council/surrey,Surrey,http://id.esd.org.uk/service/1465,Council expenditure,06/10/2015,EAST SUSSEX CONTRACT - MGMT & ADMIN,AMAZON UK MARKETPLACE,13.99,PURCHASE CARD TRANSACTION LOG DEFAULT,BOOK STORES
27/01/2016,http://opendatacommunities.org/id/county-council/surrey,Surrey,http://id.esd.org.uk/service/1465,Council expenditure,06/10/2015,FAIRCROFT COMMUNITY HOME,TESCO STORE 2160,108.25,CLEANING AND DOMESTIC SUPPLIES,"GROCERY STORES, SUPERMARKETS"
27/01/2016,http://opendatacommunities.org/id/county-council/surrey,Surrey,http://id.esd.org.uk/service/1465,Council expenditure,06/10/2015,HERITAGE PUBLIC SERVICE,W M MORRISONS,8.17,REFRESHMENT COSTS,"GROCERY STORES, SUPERMARKETS"
27/01/2016,http://opendatacommunities.org/id/county-council/surrey,Surrey,http://id.esd.org.uk/service/1465,Council expenditure,06/10/2015,HILLSIDE,B & Q,0.91,DAY TO DAY MAINTENANCE,"BUILDING MATERIALS, LUMBER STORES"
27/01/2016,http://opendatacommunities.org/id/county-council/surrey,Surrey,http://id.esd.org.uk/service/1465,Council expenditure,06/10/2015,HILLSIDE,SAINSBURYS 0675,46.5,PURCHASE OF FOOD (RAW MATERIALS),"GROCERY STORES, SUPERMARKETS"
27/01/2016,http://opendatacommunities.org/id/county-council/surrey,Surrey,http://id.esd.org.uk/service/1465,Council expenditure,06/10/2015,HOPE SERVICE - WEST,CLANDNPARKGARDNCNT,2.45,REFRESHMENT COSTS,LAWN AND GARDEN SUPPLY STORES
27/01/2016,http://opendatacommunities.org/id/county-council/surrey,Surrey,http://id.esd.org.uk/service/1465,Council expenditure,06/10/2015,IMT CRITICAL ENVIRONMENTS,AMAZON UK MARKETPLACE,12.04,COMPUTER HARDWARE,BOOK STORES
27/01/2016,http://opendatacommunities.org/id/county-council/surrey,Surrey,http://id.esd.org.uk/service/1465,Council expenditure,06/10/2015,IMT CRITICAL ENVIRONMENTS,AMAZON UK MARKETPLACE,14.99,COMPUTER HARDWARE,BOOK STORES
27/01/2016,http://opendatacommunities.org/id/county-council/surrey,Surrey,http://id.esd.org.uk/service/1465,Council expenditure,06/10/2015,IMT TECHNICAL DELIVERY,AMAZON UK MARKETPLACE,"1,900.00",COMPUTER HARDWARE,BOOK STORES
27/01/2016,http://opendatacommunities.org/id/county-council/surrey,Surrey,http://id.esd.org.uk/service/1465,Council expenditure,06/10/2015,ISPSB - ADAPTATIONS & IMPROVEMENTS,AMAZON UK MARKETPLACE,110,EDUC VISITS/HOLS/CAMPS/TOYS,BOOK STORES
27/01/2016,http://opendatacommunities.org/id/county-council/surrey,Surrey,http://id.esd.org.uk/service/1465,Council expenditure,06/10/2015,ISPSB - ADAPTATIONS & IMPROVEMENTS,AMAZON EU,206.34,EDUC VISITS/HOLS/CAMPS/TOYS,DIRECT MARKETING-OTHER DIRECT MARKETERS/NOT ELSEW.
27/01/2016,http://opendatacommunities.org/id/county-council/surrey,Surrey,http://id.esd.org.uk/service/1465,Council expenditure,06/10/2015,KARIBU COMMUNITY HOME,AMAZON EU,11.99,EQUIPMENT,DIRECT MARKETING-OTHER DIRECT MARKETERS/NOT ELSEW.
27/01/2016,http://opendatacommunities.org/id/county-council/surrey,Surrey,http://id.esd.org.uk/service/1465,Council expenditure,06/10/2015,KARIBU COMMUNITY HOME,AMAZON UK MARKETPLACE,23.1,EQUIPMENT,BOOK STORES
27/01/2016,http://opendatacommunities.org/id/county-council/surrey,Surrey,http://id.esd.org.uk/service/1465,Council expenditure,06/10/2015,KARIBU COMMUNITY HOME,AMAZON UK MARKETPLACE,52.29,EQUIPMENT,BOOK STORES
27/01/2016,http://opendatacommunities.org/id/county-council/surrey,Surrey,http://id.esd.org.uk/service/1465,Council expenditure,06/10/2015,KARIBU COMMUNITY HOME,THETICKETFACTORY,62,EDUC VISITS/HOLS/CAMPS/TOYS,"THEATRICAL PRODUCERS(EXCL MOTION PIX),TICKET AGNCY"
27/01/2016,http://opendatacommunities.org/id/county-council/surrey,Surrey,http://id.esd.org.uk/service/1465,Council expenditure,06/10/2015,KARIBU COMMUNITY HOME,SAINSBURYS 0683,64.47,PURCHASE OF FOOD (RAW MATERIALS),"GROCERY STORES, SUPERMARKETS"
27/01/2016,http://opendatacommunities.org/id/county-council/surrey,Surrey,http://id.esd.org.uk/service/1465,Council expenditure,06/10/2015,LEAVING CARE PACKAGES,ARGOS RETAIL GROUP,120.92,CHILDREN ACT SEC 17 PAYMENTS,DISCOUNT STORES
27/01/2016,http://opendatacommunities.org/id/county-council/surrey,Surrey,http://id.esd.org.uk/service/1465,Council expenditure,06/10/2015,LOCAL PREVENTION FRAMEWORK - TANDRIDGE,CAFFE NERO,4.5,REFRESHMENT COSTS,"EATING PLACES, RESTAURANTS"
27/01/2016,http://opendatacommunities.org/id/county-council/surrey,Surrey,http://id.esd.org.uk/service/1465,Council expenditure,06/10/2015,MERROW WORKSHOP,WICKES,24.99,DAY TO DAY MAINTENANCE,HOME SUPPLY WAREHOUSE STORES
27/01/2016,http://opendatacommunities.org/id/county-council/surrey,Surrey,http://id.esd.org.uk/service/1465,Council expenditure,06/10/2015,NE CARE - LAC,SURREY CC CARD PAY,12,CHILDREN ACT SEC 17 PAYMENTS,COMPUTER NETWORK/INFORMATION SERVICES
27/01/2016,http://opendatacommunities.org/id/county-council/surrey,Surrey,http://id.esd.org.uk/service/1465,Council expenditure,06/10/2015,NORTH EAST AREA TEAM,TESCO STORE 3220,282,EQUIPMENT,"GROCERY STORES, SUPERMARKETS"
27/01/2016,http://opendatacommunities.org/id/county-council/surrey,Surrey,http://id.esd.org.uk/service/1465,Council expenditure,06/10/2015,NW CARE - NON-LAC CP & COURT,TRAVELODGE WEBSITE,192.3,CHILDREN ACT SEC 17 PAYMENTS,TRAVELODGE
27/01/2016,http://opendatacommunities.org/id/county-council/surrey,Surrey,http://id.esd.org.uk/service/1465,Council expenditure,06/10/2015,NW YOUTH WORKERS - SPELTHORNE,TESCO PFS 3783,15,NON-STAFF RELATED TRANSPORT COSTS,SERVICE STATIONS WITH OR WITHOUT ANCILLARY SERVICE
27/01/2016,http://opendatacommunities.org/id/county-council/surrey,Surrey,http://id.esd.org.uk/service/1465,Council expenditure,06/10/2015,NW YOUTH WORKERS - SPELTHORNE,KENDALL CARS,380,NON-STAFF RELATED TRANSPORT COSTS,AFFILIATED AUTO RENTAL
27/01/2016,http://opendatacommunities.org/id/county-council/surrey,Surrey,http://id.esd.org.uk/service/1465,Council expenditure,06/10/2015,OLD DEAN YC,TESCO STORES-2017,11.92,PURCHASE OF FOOD (RAW MATERIALS),"GROCERY STORES, SUPERMARKETS"
27/01/2016,http://opendatacommunities.org/id/county-council/surrey,Surrey,http://id.esd.org.uk/service/1465,Council expenditure,06/10/2015,PE/CDT MAINTENANCE OVERHEADS,EXPERT FITNESS UK LTD,19.62,ITEMS PURCHASED FOR RE-SALE,SPORTING GOODS STORES
27/01/2016,http://opendatacommunities.org/id/county-council/surrey,Surrey,http://id.esd.org.uk/service/1465,Council expenditure,06/10/2015,PORTAGE SERVICE (SW),AMAZON UK MARKETPLACE,-6.98,EDUC VISITS/HOLS/CAMPS/TOYS,MISCELLANEOUS AND SPECIALTY RETAIL STORES
27/01/2016,http://opendatacommunities.org/id/county-council/surrey,Surrey,http://id.esd.org.uk/service/1465,Council expenditure,06/10/2015,PROPERTY OPERATIONS TEAM,SCREWFIX DIRECT,15.98,PURCHASE OF BUILDING MATERIALS,"BUILDING MATERIALS, LUMBER STORES"
27/01/2016,http://opendatacommunities.org/id/county-council/surrey,Surrey,http://id.esd.org.uk/service/1465,Council expenditure,06/10/2015,READY FOR WORK YSS,FARNHAM COLLEGE,75,EDUC VISITS/HOLS/CAMPS/TOYS,"COLLEGES, UNIV, PRO SCHOOLS, JUNIOR COLLEGES"
27/01/2016,http://opendatacommunities.org/id/county-council/surrey,Surrey,http://id.esd.org.uk/service/1465,Council expenditure,06/10/2015,REMA ETHNIC/LANGUAGE MINORITY SUPPORT,RYMAN,5.99,STATIONERY,"OFFICE, SCHOOL SUPPLY, AND STATIONERY STORES"
27/01/2016,http://opendatacommunities.org/id/county-council/surrey,Surrey,http://id.esd.org.uk/service/1465,Council expenditure,06/10/2015,ROW VOLUNTEERS WEST                     ,PRACTICAL CAR & VAN RE,104,FEES,AUTOMOBILE RENTAL AGENCY-NOT ELSEWHERE CLASSIFIED
27/01/2016,http://opendatacommunities.org/id/county-council/surrey,Surrey,http://id.esd.org.uk/service/1465,Council expenditure,06/10/2015,SERVICE DELIVERY SENIOR MANAGEMENT,AMAZON UK MARKETPLACE,2.88,EQUIPMENT,BOOK STORES
27/01/2016,http://opendatacommunities.org/id/county-council/surrey,Surrey,http://id.esd.org.uk/service/1465,Council expenditure,06/10/2015,SERVICE DELIVERY SENIOR MANAGEMENT,AMAZON UK MARKETPLACE,13.98,EQUIPMENT,BOOK STORES
27/01/2016,http://opendatacommunities.org/id/county-council/surrey,Surrey,http://id.esd.org.uk/service/1465,Council expenditure,06/10/2015,SOLD CATERING,ASDA SUPERSTORE,45.71,PURCHASE OF FOOD (RAW MATERIALS),"GROCERY STORES, SUPERMARKETS"
27/01/2016,http://opendatacommunities.org/id/county-council/surrey,Surrey,http://id.esd.org.uk/service/1465,Council expenditure,06/10/2015,SURREY ARTS GENERAL,WWW.BREGPRODUCTS.CO.UK,333.6,EQUIPMENT,INDUSTRIAL SUPPLIES NOT ELSEWHERE CLASSIFIED
27/01/2016,http://opendatacommunities.org/id/county-council/surrey,Surrey,http://id.esd.org.uk/service/1465,Council expenditure,06/10/2015,TARGETED INTERVENTION,WOKING BOROUGH COUNCIL,2.6,EDUC VISITS/HOLS/CAMPS/TOYS,AUTOMOBILE PARKING LOTS AND GARAGES
27/01/2016,http://opendatacommunities.org/id/county-council/surrey,Surrey,http://id.esd.org.uk/service/1465,Council expenditure,06/10/2015,TARGETED INTERVENTION,NEW LOOK 1792,7.05,EDUC VISITS/HOLS/CAMPS/TOYS,WOMEN'S READY TO WEAR STORES
27/01/2016,http://opendatacommunities.org/id/county-council/surrey,Surrey,http://id.esd.org.uk/service/1465,Council expenditure,06/10/2015,TARGETED INTERVENTION,TESCO STORES-2047,13.43,EDUC VISITS/HOLS/CAMPS/TOYS,"GROCERY STORES, SUPERMARKETS"
27/01/2016,http://opendatacommunities.org/id/county-council/surrey,Surrey,http://id.esd.org.uk/service/1465,Council expenditure,06/10/2015,THE BRIDGE YC,TESCO STORES 6999,7.04,PURCHASE OF FOOD (RAW MATERIALS),"GROCERY STORES, SUPERMARKETS"
27/01/2016,http://opendatacommunities.org/id/county-council/surrey,Surrey,http://id.esd.org.uk/service/1465,Council expenditure,06/10/2015,TRAINING COMMUNICATIONS,INST OF INT COMMS,262.35,TRAINING EXPENSES EXTERNAL GENERAL,"ACCOUNTING, AUDITING AND BOOKKEEPING SERVICES"
27/01/2016,http://opendatacommunities.org/id/county-council/surrey,Surrey,http://id.esd.org.uk/service/1465,Council expenditure,06/10/2015,TRAINING ENVIRONMENT SERVICES,PTRC-TRAINING.CO.U,538.8,TRAINING EXPENSES EXTERNAL GENERAL,"COLLEGES, UNIV, PRO SCHOOLS, JUNIOR COLLEGES"
27/01/2016,http://opendatacommunities.org/id/county-council/surrey,Surrey,http://id.esd.org.uk/service/1465,Council expenditure,06/10/2015,TRAINING SERVICES FOR YOUNG PEOPLE,OXFORD CITY COUNCIL,304.5,TRAINING EXPENSES EXTERNAL GENERAL,"ASSOCIATIONS-CIVIC, SOCIAL, AND FRATERNAL"
27/01/2016,http://opendatacommunities.org/id/county-council/surrey,Surrey,http://id.esd.org.uk/service/1465,Council expenditure,06/10/2015,TRANSPORT,AMAZON UK MARKETPLACE,2.98,COMPUTER CONSUMABLES,BOOK STORES
27/01/2016,http://opendatacommunities.org/id/county-council/surrey,Surrey,http://id.esd.org.uk/service/1465,Council expenditure,06/10/2015,TRANSPORT,AMAZON UK MARKETPLACE,3.99,COMPUTER CONSUMABLES,BOOK STORES
27/01/2016,http://opendatacommunities.org/id/county-council/surrey,Surrey,http://id.esd.org.uk/service/1465,Council expenditure,06/10/2015,TRANSPORT,AMAZON EU,11.97,COMPUTER HARDWARE,DIRECT MARKETING-OTHER DIRECT MARKETERS/NOT ELSEW.
27/01/2016,http://opendatacommunities.org/id/county-council/surrey,Surrey,http://id.esd.org.uk/service/1465,Council expenditure,06/10/2015,TRANSPORT,HARWOODS LANDROVER,46.58,VEHICLE REPAIRS AND MAINTENANCE,AUTOMOTIVE SERVICE SHOPS
27/01/2016,http://opendatacommunities.org/id/county-council/surrey,Surrey,http://id.esd.org.uk/service/1465,Council expenditure,06/10/2015,TRANSPORT,T A BOXALL & CO LTD,66.38,VEHICLE REPAIRS AND MAINTENANCE,"CONTRACTORS,SPECIAL TRADE-NOT ELSEWHERE CLASSIFIED"
27/01/2016,http://opendatacommunities.org/id/county-council/surrey,Surrey,http://id.esd.org.uk/service/1465,Council expenditure,06/10/2015,TRANSPORT,ARGOS REIGATE,99.98,EQUIPMENT,DISCOUNT STORES
27/01/2016,http://opendatacommunities.org/id/county-council/surrey,Surrey,http://id.esd.org.uk/service/1465,Council expenditure,06/10/2015,TRANSPORT,PREMIER INN44011615,112.75,SUBSISTENCE AND CONFERENCE EXPENSES,PREMIER INN
27/01/2016,http://opendatacommunities.org/id/county-council/surrey,Surrey,http://id.esd.org.uk/service/1465,Council expenditure,06/10/2015,WOODLANDS COMMUNITY HOME,SAINSBURYS,7,FIXTURES AND FITTINGS,"GROCERY STORES, SUPERMARKETS"
27/01/2016,http://opendatacommunities.org/id/county-council/surrey,Surrey,http://id.esd.org.uk/service/1465,Council expenditure,06/10/2015,WOODLANDS COMMUNITY HOME,SAINSBURYS,8.2,PURCHASE OF FOOD (RAW MATERIALS),"GROCERY STORES, SUPERMARKETS"
27/01/2016,http://opendatacommunities.org/id/county-council/surrey,Surrey,http://id.esd.org.uk/service/1465,Council expenditure,06/10/2015,WOODLANDS COMMUNITY HOME,SAINSBURYS,128.35,PURCHASE OF FOOD (RAW MATERIALS),"GROCERY STORES, SUPERMARKETS"
27/01/2016,http://opendatacommunities.org/id/county-council/surrey,Surrey,http://id.esd.org.uk/service/1465,Council expenditure,07/10/2015,ARUNDEL,AMAZON UK MARKETPLACE,9.99,EDUC VISITS/HOLS/CAMPS/TOYS,BOOK STORES
27/01/2016,http://opendatacommunities.org/id/county-council/surrey,Surrey,http://id.esd.org.uk/service/1465,Council expenditure,07/10/2015,ARUNDEL,TESCO STORES 5999,58.36,REFRESHMENT COSTS,"GROCERY STORES, SUPERMARKETS"
27/01/2016,http://opendatacommunities.org/id/county-council/surrey,Surrey,http://id.esd.org.uk/service/1465,Council expenditure,07/10/2015,BURBANK COMMUNITY HOME,SAINSBURYS TO YOU 0686,229.92,PURCHASE OF FOOD (RAW MATERIALS),"GROCERY STORES, SUPERMARKETS"
27/01/2016,http://opendatacommunities.org/id/county-council/surrey,Surrey,http://id.esd.org.uk/service/1465,Council expenditure,07/10/2015,CHEYNE WALK COMMUNITY HOME,TESCO STORE 2560,36.19,PURCHASE OF FOOD (RAW MATERIALS),"GROCERY STORES, SUPERMARKETS"
27/01/2016,http://opendatacommunities.org/id/county-council/surrey,Surrey,http://id.esd.org.uk/service/1465,Council expenditure,07/10/2015,CHEYNE WALK COMMUNITY HOME,CAFE ROUGE,48.5,PURCHASE OF FOOD (RAW MATERIALS),"EATING PLACES, RESTAURANTS"
27/01/2016,http://opendatacommunities.org/id/county-council/surrey,Surrey,http://id.esd.org.uk/service/1465,Council expenditure,07/10/2015,CLOSED LANDFILL,T-MEX LTD,34.44,EQUIPMENT,"CONTRACTORS,SPECIAL TRADE-NOT ELSEWHERE CLASSIFIED"
27/01/2016,http://opendatacommunities.org/id/county-council/surrey,Surrey,http://id.esd.org.uk/service/1465,Council expenditure,07/10/2015,COMM SKILLS & LEARNING                  ,WWW.CIM.CO.UK,50,TRAINING EXPENSES EXTERNAL GENERAL,PROFESSIONAL SERVICES-NOT ELSEWHERE CLASSIFIED
27/01/2016,http://opendatacommunities.org/id/county-council/surrey,Surrey,http://id.esd.org.uk/service/1465,Council expenditure,07/10/2015,COMM SKILLS & LEARNING                  ,WWW.CIM.CO.UK,130,TRAINING EXPENSES EXTERNAL GENERAL,PROFESSIONAL SERVICES-NOT ELSEWHERE CLASSIFIED
27/01/2016,http://opendatacommunities.org/id/county-council/surrey,Surrey,http://id.esd.org.uk/service/1465,Council expenditure,07/10/2015,COMMUNICATIONS TEAM,WWW.INDEPENDENT.CO.UK,260,SUBSCRIPTIONS,DIRECT MARKETING-CONTINUITY/SUBSCRIPTION MERCHANTS
27/01/2016,http://opendatacommunities.org/id/county-council/surrey,Surrey,http://id.esd.org.uk/service/1465,Council expenditure,07/10/2015,COUNTY HALL,WWW.NOTICEBOARDCOMPANY,150,EQUIPMENT,MISCELLANEOUS AND SPECIALTY RETAIL STORES
27/01/2016,http://opendatacommunities.org/id/county-council/surrey,Surrey,http://id.esd.org.uk/service/1465,Council expenditure,07/10/2015,E&I - LOVE FOOD HATE WASTE              ,GOOGLE  ADWS2060179426,500,PUBLICITY,DIRECT MARKETING-CONTINUITY/SUBSCRIPTION MERCHANTS
27/01/2016,http://opendatacommunities.org/id/county-council/surrey,Surrey,http://id.esd.org.uk/service/1465,Council expenditure,07/10/2015,HILLSIDE,SAINSBURYS 0675,39.55,PURCHASE OF FOOD (RAW MATERIALS),"GROCERY STORES, SUPERMARKETS"
27/01/2016,http://opendatacommunities.org/id/county-council/surrey,Surrey,http://id.esd.org.uk/service/1465,Council expenditure,07/10/2015,HOPE SERVICE - WEST,SAINSBURYS SACAT(4409),2.35,NEWSPAPER AND PERIODICALS,"GROCERY STORES, SUPERMARKETS"
27/01/2016,http://opendatacommunities.org/id/county-council/surrey,Surrey,http://id.esd.org.uk/service/1465,Council expenditure,07/10/2015,HOPE SERVICE - WEST,SAINSBURYS TO YOU 0686,86.66,PURCHASE OF FOOD (RAW MATERIALS),"GROCERY STORES, SUPERMARKETS"
27/01/2016,http://opendatacommunities.org/id/county-council/surrey,Surrey,http://id.esd.org.uk/service/1465,Council expenditure,07/10/2015,IMT CRITICAL ENVIRONMENTS,SETON,126.97,FIXTURES AND FITTINGS,"DURABLE GOODS, NOT ELSEWHERE CLASSIFIED"
27/01/2016,http://opendatacommunities.org/id/county-council/surrey,Surrey,http://id.esd.org.uk/service/1465,Council expenditure,07/10/2015,IMT TECHNICAL DELIVERY,WWW.MAPLIN.CO.UK,11.37,COMPUTER HARDWARE,ELECTRONIC SALES
27/01/2016,http://opendatacommunities.org/id/county-council/surrey,Surrey,http://id.esd.org.uk/service/1465,Council expenditure,07/10/2015,LEGAL SUPPORT TEAM,IN TO LUNCH,99.88,REFRESHMENT COSTS,CATERERS
27/01/2016,http://opendatacommunities.org/id/county-council/surrey,Surrey,http://id.esd.org.uk/service/1465,Council expenditure,07/10/2015,LEGAL SUPPORT TEAM,IN TO LUNCH,258.02,REFRESHMENT COSTS,CATERERS
27/01/2016,http://opendatacommunities.org/id/county-council/surrey,Surrey,http://id.esd.org.uk/service/1465,Council expenditure,07/10/2015,LEGAL SUPPORT TEAM,IN TO LUNCH,317.51,REFRESHMENT COSTS,CATERERS
27/01/2016,http://opendatacommunities.org/id/county-council/surrey,Surrey,http://id.esd.org.uk/service/1465,Council expenditure,07/10/2015,LOCAL ASSISTANCE SCHEME,ARGOS RETAIL GROUP,18.99,FURNITURE,DISCOUNT STORES
27/01/2016,http://opendatacommunities.org/id/county-council/surrey,Surrey,http://id.esd.org.uk/service/1465,Council expenditure,07/10/2015,LOCAL DELIVERY GROUP,CIVIL ENGINEERING,25,EQUIPMENT,BOOK STORES
27/01/2016,http://opendatacommunities.org/id/county-council/surrey,Surrey,http://id.esd.org.uk/service/1465,Council expenditure,07/10/2015,MALLOW CRESCENT,SAINSBURYS,22.7,PURCHASE OF FOOD (RAW MATERIALS),"GROCERY STORES, SUPERMARKETS"
27/01/2016,http://opendatacommunities.org/id/county-council/surrey,Surrey,http://id.esd.org.uk/service/1465,Council expenditure,07/10/2015,MALLOW CRESCENT,SAINSBURYS,84.94,PURCHASE OF FOOD (RAW MATERIALS),"GROCERY STORES, SUPERMARKETS"
27/01/2016,http://opendatacommunities.org/id/county-council/surrey,Surrey,http://id.esd.org.uk/service/1465,Council expenditure,07/10/2015,NE CARE - CP & COURT LAC,SURREY CC CARD PAY,21,CHILDREN ACT SEC 17 PAYMENTS,COMPUTER NETWORK/INFORMATION SERVICES
27/01/2016,http://opendatacommunities.org/id/county-council/surrey,Surrey,http://id.esd.org.uk/service/1465,Council expenditure,07/10/2015,NW YOUTH WORKERS - SPELTHORNE,KENDALL CARS,-300,NON-STAFF RELATED TRANSPORT COSTS,AFFILIATED AUTO RENTAL
27/01/2016,http://opendatacommunities.org/id/county-council/surrey,Surrey,http://id.esd.org.uk/service/1465,Council expenditure,07/10/2015,PAL - SOUND RECORDINGS - MUSIC          ,AMAZON UK MARKETPLACE,12.74,LIBRARY RESOURCES,BOOK STORES
27/01/2016,http://opendatacommunities.org/id/county-council/surrey,Surrey,http://id.esd.org.uk/service/1465,Council expenditure,07/10/2015,PAL - SOUND RECORDINGS - MUSIC          ,AMAZON UK MARKETPLACE,14.73,LIBRARY RESOURCES,BOOK STORES
27/01/2016,http://opendatacommunities.org/id/county-council/surrey,Surrey,http://id.esd.org.uk/service/1465,Council expenditure,07/10/2015,PE/CDT MAINTENANCE OVERHEADS,ACTION BIKES,55.9,ITEMS PURCHASED FOR RE-SALE,BICYCLE SHOPS-SALES AND SERVICE
27/01/2016,http://opendatacommunities.org/id/county-council/surrey,Surrey,http://id.esd.org.uk/service/1465,Council expenditure,07/10/2015,PE/CDT MAINTENANCE OVERHEADS,WWW.ARCO.CO.UK,56.63,EQUIPMENT,INDUSTRIAL SUPPLIES NOT ELSEWHERE CLASSIFIED
27/01/2016,http://opendatacommunities.org/id/county-council/surrey,Surrey,http://id.esd.org.uk/service/1465,Council expenditure,07/10/2015,PE/CDT MAINTENANCE OVERHEADS,BEACON ELECTRIC(GUILDF,887.62,EQUIPMENT,ELECTRICAL PARTS AND EQUIPMENT
27/01/2016,http://opendatacommunities.org/id/county-council/surrey,Surrey,http://id.esd.org.uk/service/1465,Council expenditure,07/10/2015,POSITIVE OPTIONS,WWW.THETOYSHOP.COM,63.3,EDUC VISITS/HOLS/CAMPS/TOYS,"GAME, TOY, AND HOBBY SHOPS"
27/01/2016,http://opendatacommunities.org/id/county-council/surrey,Surrey,http://id.esd.org.uk/service/1465,Council expenditure,07/10/2015,PRISON CAPITATION                       ,AMAZON UK MARKETPLACE,54.59,LIBRARY RESOURCES,BOOK STORES
27/01/2016,http://opendatacommunities.org/id/county-council/surrey,Surrey,http://id.esd.org.uk/service/1465,Council expenditure,07/10/2015,PRISON CAPITATION                       ,AMAZON EU,88.68,LIBRARY RESOURCES,DIRECT MARKETING-OTHER DIRECT MARKETERS/NOT ELSEW.
27/01/2016,http://opendatacommunities.org/id/county-council/surrey,Surrey,http://id.esd.org.uk/service/1465,Council expenditure,07/10/2015,PROPERTY BUSINESS & PERFORMANCE TEAM,CHOBHAM GOLF COURSE,660,VENUE COSTS (INCLUDING HIRE OF ROOMS),GOLF COURSES-PUBLIC
27/01/2016,http://opendatacommunities.org/id/county-council/surrey,Surrey,http://id.esd.org.uk/service/1465,Council expenditure,07/10/2015,PROPERTY OPERATIONS TEAM,TOOLSTATION LTD,27.21,PURCHASE OF BUILDING MATERIALS,HARDWARE STORES
27/01/2016,http://opendatacommunities.org/id/county-council/surrey,Surrey,http://id.esd.org.uk/service/1465,Council expenditure,07/10/2015,PROPERTY OPERATIONS TEAM,WWW.THOMASTELFORD.CO.U,41.25,BOOKS,MISCELLANEOUS PUBLISHING AND PRINTING
27/01/2016,http://opendatacommunities.org/id/county-council/surrey,Surrey,http://id.esd.org.uk/service/1465,Council expenditure,07/10/2015,PROPERTY OPERATIONS TEAM,SCREWFIX GUILDFORD,59.16,PURCHASE OF BUILDING MATERIALS,"BUILDING MATERIALS, LUMBER STORES"
27/01/2016,http://opendatacommunities.org/id/county-council/surrey,Surrey,http://id.esd.org.uk/service/1465,Council expenditure,07/10/2015,PROPERTY OPERATIONS TEAM,AMAZON EU,153.06,BOOKS,DIRECT MARKETING-OTHER DIRECT MARKETERS/NOT ELSEW.
27/01/2016,http://opendatacommunities.org/id/county-council/surrey,Surrey,http://id.esd.org.uk/service/1465,Council expenditure,07/10/2015,RESOURCES FUND,PAYPAL  BOOKSBEYOND,44.95,LIBRARY RESOURCES,"ORGANIZATIONS, CHARITABLE AND SOCIAL SERVICES"
27/01/2016,http://opendatacommunities.org/id/county-council/surrey,Surrey,http://id.esd.org.uk/service/1465,Council expenditure,07/10/2015,SERVICE DELIVERY SENIOR MANAGEMENT,AMAZON UK MARKETPLACE,2.76,EQUIPMENT,BOOK STORES
27/01/2016,http://opendatacommunities.org/id/county-council/surrey,Surrey,http://id.esd.org.uk/service/1465,Council expenditure,07/10/2015,SERVICE DELIVERY SENIOR MANAGEMENT,AMAZON UK MARKETPLACE,6.98,EQUIPMENT,BOOK STORES
27/01/2016,http://opendatacommunities.org/id/county-council/surrey,Surrey,http://id.esd.org.uk/service/1465,Council expenditure,07/10/2015,SERVICE DELIVERY SENIOR MANAGEMENT,AMAZON UK MARKETPLACE,10.9,EQUIPMENT,BOOK STORES
27/01/2016,http://opendatacommunities.org/id/county-council/surrey,Surrey,http://id.esd.org.uk/service/1465,Council expenditure,07/10/2015,SERVICE DELIVERY SENIOR MANAGEMENT,AMAZON UK MARKETPLACE,12.48,EQUIPMENT,BOOK STORES
27/01/2016,http://opendatacommunities.org/id/county-council/surrey,Surrey,http://id.esd.org.uk/service/1465,Council expenditure,07/10/2015,SOLD DAY TO DAY OPERATIONS,UK TARPS LIMITED,286.14,EQUIPMENT,BUSINESS SERVICES-NOT ELSEWHERE CLASSIFIED
27/01/2016,http://opendatacommunities.org/id/county-council/surrey,Surrey,http://id.esd.org.uk/service/1465,Council expenditure,07/10/2015,SURREY ARTS GENERAL,SHEETMUSICPLUS.COM,86.62,EQUIPMENT,"MUSIC STORES-INSTRUMENTS, PIANOS, SHEET MUSIC"
27/01/2016,http://opendatacommunities.org/id/county-council/surrey,Surrey,http://id.esd.org.uk/service/1465,Council expenditure,07/10/2015,SW EDUCATION WELFARE OFFICERS,SURREY CC CARD PAY,12,TRAINING EXPENSES EXTERNAL GENERAL,COMPUTER NETWORK/INFORMATION SERVICES
27/01/2016,http://opendatacommunities.org/id/county-council/surrey,Surrey,http://id.esd.org.uk/service/1465,Council expenditure,07/10/2015,SW EDUCATION WELFARE OFFICERS,SURREY CC CARD PAY,12,TRAINING EXPENSES EXTERNAL GENERAL,COMPUTER NETWORK/INFORMATION SERVICES
27/01/2016,http://opendatacommunities.org/id/county-council/surrey,Surrey,http://id.esd.org.uk/service/1465,Council expenditure,07/10/2015,TARGETED INTERVENTION,WOKING BREWERY ROAD,2.6,EDUC VISITS/HOLS/CAMPS/TOYS,AUTOMOBILE PARKING LOTS AND GARAGES
27/01/2016,http://opendatacommunities.org/id/county-council/surrey,Surrey,http://id.esd.org.uk/service/1465,Council expenditure,07/10/2015,TARGETED INTERVENTION,WOKING BOROUGH COUNCIL,3.9,EDUC VISITS/HOLS/CAMPS/TOYS,AUTOMOBILE PARKING LOTS AND GARAGES
27/01/2016,http://opendatacommunities.org/id/county-council/surrey,Surrey,http://id.esd.org.uk/service/1465,Council expenditure,07/10/2015,TARGETED INTERVENTION,MERCEDES-BENZ WORLD,5.25,EDUC VISITS/HOLS/CAMPS/TOYS,"EATING PLACES, RESTAURANTS"
27/01/2016,http://opendatacommunities.org/id/county-council/surrey,Surrey,http://id.esd.org.uk/service/1465,Council expenditure,07/10/2015,TARGETED INTERVENTION,APOLLO 3 LTD,19.6,EDUC VISITS/HOLS/CAMPS/TOYS,SPORTING GOODS STORES
27/01/2016,http://opendatacommunities.org/id/county-council/surrey,Surrey,http://id.esd.org.uk/service/1465,Council expenditure,07/10/2015,TARGETED INTERVENTION,SPORTSDIRECT 174,20,EDUC VISITS/HOLS/CAMPS/TOYS,SPORTING GOODS STORES
27/01/2016,http://opendatacommunities.org/id/county-council/surrey,Surrey,http://id.esd.org.uk/service/1465,Council expenditure,07/10/2015,TRAINING AND DEVELOPMENT,EASYJET00 000EPCMB98,91.8,TRAINING EXPENSES EXTERNAL GENERAL,EASYJET
27/01/2016,http://opendatacommunities.org/id/county-council/surrey,Surrey,http://id.esd.org.uk/service/1465,Council expenditure,07/10/2015,TRANSPORT,AMAZON UK MARKETPLACE,14.25,STATIONERY,BOOK STORES
27/01/2016,http://opendatacommunities.org/id/county-council/surrey,Surrey,http://id.esd.org.uk/service/1465,Council expenditure,07/10/2015,TRANSPORT,AMAZON EU,22.99,DAY TO DAY MAINTENANCE,DIRECT MARKETING-OTHER DIRECT MARKETERS/NOT ELSEW.
27/01/2016,http://opendatacommunities.org/id/county-council/surrey,Surrey,http://id.esd.org.uk/service/1465,Council expenditure,07/10/2015,TRANSPORT,AMAZON UK MARKETPLACE,36.74,DAY TO DAY MAINTENANCE,BOOK STORES
27/01/2016,http://opendatacommunities.org/id/county-council/surrey,Surrey,http://id.esd.org.uk/service/1465,Council expenditure,07/10/2015,TRANSPORT,AMAZON UK MARKETPLACE,149,OPERATIONAL FIRE EQUIPMENT,BOOK STORES
27/01/2016,http://opendatacommunities.org/id/county-council/surrey,Surrey,http://id.esd.org.uk/service/1465,Council expenditure,07/10/2015,TRANSPORT,FIELDHEAD HOTEL,190,MISCELLANEOUS STAFF TRAVEL,"BAR,LOUNGE,DISCO,NIGHTCLUB,TAVERN-ALCOHOLIC DRINKS"
27/01/2016,http://opendatacommunities.org/id/county-council/surrey,Surrey,http://id.esd.org.uk/service/1465,Council expenditure,07/10/2015,YSS YOUTH CENTRE IMPROVEMENTS,ARGOS GODALMING IN,142.32,EQUIPMENT,DISCOUNT STORES
27/01/2016,http://opendatacommunities.org/id/county-council/surrey,Surrey,http://id.esd.org.uk/service/1465,Council expenditure,08/10/2015,ACCESS 2 EDUC' (COUNTY) MEDICAL SERVICE,AMAZON EU,18.41,BOOKS,DIRECT MARKETING-OTHER DIRECT MARKETERS/NOT ELSEW.
27/01/2016,http://opendatacommunities.org/id/county-council/surrey,Surrey,http://id.esd.org.uk/service/1465,Council expenditure,08/10/2015,ACCESS 2 EDUC' (COUNTY) MEDICAL SERVICE,AMAZON EU,19.61,BOOKS,DIRECT MARKETING-OTHER DIRECT MARKETERS/NOT ELSEW.
27/01/2016,http://opendatacommunities.org/id/county-council/surrey,Surrey,http://id.esd.org.uk/service/1465,Council expenditure,08/10/2015,ACCESS 2 EDUC' (COUNTY) MEDICAL SERVICE,AMAZON EU,43.52,BOOKS,DIRECT MARKETING-OTHER DIRECT MARKETERS/NOT ELSEW.
27/01/2016,http://opendatacommunities.org/id/county-council/surrey,Surrey,http://id.esd.org.uk/service/1465,Council expenditure,08/10/2015,ACL CENTRAL EXPENDITURE,W M MORRISONS,56.99,REFRESHMENT COSTS,"GROCERY STORES, SUPERMARKETS"
27/01/2016,http://opendatacommunities.org/id/county-council/surrey,Surrey,http://id.esd.org.uk/service/1465,Council expenditure,08/10/2015,ACL CENTRAL EXPENDITURE,COOKSON PRECIOUS M,76.21,EQUIPMENT,"PRECIOUS STONES AND METALS, WATCHES AND JEWELRY"
27/01/2016,http://opendatacommunities.org/id/county-council/surrey,Surrey,http://id.esd.org.uk/service/1465,Council expenditure,08/10/2015,ALCOT HOUSE,SAINSBURYS TO YOU 0687,134.1,PURCHASE OF FOOD (RAW MATERIALS),"GROCERY STORES, SUPERMARKETS"
27/01/2016,http://opendatacommunities.org/id/county-council/surrey,Surrey,http://id.esd.org.uk/service/1465,Council expenditure,08/10/2015,APPLEWOOD,ASDA HOME SHOPPING,-0.21,PURCHASE OF FOOD (RAW MATERIALS),"GROCERY STORES, SUPERMARKETS"
27/01/2016,http://opendatacommunities.org/id/county-council/surrey,Surrey,http://id.esd.org.uk/service/1465,Council expenditure,08/10/2015,APPLEWOOD,ASDA HOME SHOPPING,131.67,PURCHASE OF FOOD (RAW MATERIALS),"GROCERY STORES, SUPERMARKETS"
27/01/2016,http://opendatacommunities.org/id/county-council/surrey,Surrey,http://id.esd.org.uk/service/1465,Council expenditure,08/10/2015,ARUNDEL,TESCOS,5.4,REFRESHMENT COSTS,"GROCERY STORES, SUPERMARKETS"
27/01/2016,http://opendatacommunities.org/id/county-council/surrey,Surrey,http://id.esd.org.uk/service/1465,Council expenditure,08/10/2015,ARUNDEL,TESCOS,96.43,REFRESHMENT COSTS,"GROCERY STORES, SUPERMARKETS"
27/01/2016,http://opendatacommunities.org/id/county-council/surrey,Surrey,http://id.esd.org.uk/service/1465,Council expenditure,08/10/2015,CAE CHANGE TEAM TRAINING,AMAZON EU,13.81,TRAINING EXPENSES EXTERNAL GENERAL,DIRECT MARKETING-OTHER DIRECT MARKETERS/NOT ELSEW.
27/01/2016,http://opendatacommunities.org/id/county-council/surrey,Surrey,http://id.esd.org.uk/service/1465,Council expenditure,08/10/2015,CEO - CORPORATE                         ,AMAZON UK MARKETPLACE,40.74,STATIONERY,BOOK STORES
27/01/2016,http://opendatacommunities.org/id/county-council/surrey,Surrey,http://id.esd.org.uk/service/1465,Council expenditure,08/10/2015,CHEYNE WALK COMMUNITY HOME,AMAZON UK MARKETPLACE,8.49,EQUIPMENT,BOOK STORES
27/01/2016,http://opendatacommunities.org/id/county-council/surrey,Surrey,http://id.esd.org.uk/service/1465,Council expenditure,08/10/2015,CHEYNE WALK COMMUNITY HOME,AMAZON UK MARKETPLACE,44.44,EQUIPMENT,BOOK STORES
27/01/2016,http://opendatacommunities.org/id/county-council/surrey,Surrey,http://id.esd.org.uk/service/1465,Council expenditure,08/10/2015,CHEYNE WALK COMMUNITY HOME,SAINSBURYS TO YOU 0026,294.36,PURCHASE OF FOOD (RAW MATERIALS),"GROCERY STORES, SUPERMARKETS"
27/01/2016,http://opendatacommunities.org/id/county-council/surrey,Surrey,http://id.esd.org.uk/service/1465,Council expenditure,08/10/2015,CHILDREN'S RIGHTS TEAM,MCDONALDS,80.09,REFRESHMENT COSTS,FAST FOOD RESTAURANTS
27/01/2016,http://opendatacommunities.org/id/county-council/surrey,Surrey,http://id.esd.org.uk/service/1465,Council expenditure,08/10/2015,COMMUNICATIONS TEAM,ITUNES.COM/BILL,9.99,SUBSCRIPTIONS,RECORD SHOPS
27/01/2016,http://opendatacommunities.org/id/county-council/surrey,Surrey,http://id.esd.org.uk/service/1465,Council expenditure,08/10/2015,COMMUNITY PARTNERSHIP,M&S E COMMERCE,37,REFRESHMENT COSTS,"GROCERY STORES, SUPERMARKETS"
27/01/2016,http://opendatacommunities.org/id/county-council/surrey,Surrey,http://id.esd.org.uk/service/1465,Council expenditure,08/10/2015,CONSORT HOUSE REDHILL,SCREWFIX DIRECT LT,14.86,EQUIPMENT,"BUILDING MATERIALS, LUMBER STORES"
27/01/2016,http://opendatacommunities.org/id/county-council/surrey,Surrey,http://id.esd.org.uk/service/1465,Council expenditure,08/10/2015,DOWNLANDS COUNTRYSIDE PROJECT,NORTHPOINT VET SERVICE,65.12,FEES,VETERINARY SERVICES
27/01/2016,http://opendatacommunities.org/id/county-council/surrey,Surrey,http://id.esd.org.uk/service/1465,Council expenditure,08/10/2015,E&I - COUNTRYSIDE                       ,PAYPAL  HOOTSUITE,9.59,SUBSCRIPTIONS,COMPUTER NETWORK/INFORMATION SERVICES
27/01/2016,http://opendatacommunities.org/id/county-council/surrey,Surrey,http://id.esd.org.uk/service/1465,Council expenditure,08/10/2015,EAST SUSSEX CONTRACT - MGMT & ADMIN,TESCO STORES 3330,2.8,PURCHASE CARD TRANSACTION LOG DEFAULT,"GROCERY STORES, SUPERMARKETS"
27/01/2016,http://opendatacommunities.org/id/county-council/surrey,Surrey,http://id.esd.org.uk/service/1465,Council expenditure,08/10/2015,HERITAGE PUBLIC SERVICE,W M MORRISONS,5.98,REFRESHMENT COSTS,"GROCERY STORES, SUPERMARKETS"
27/01/2016,http://opendatacommunities.org/id/county-council/surrey,Surrey,http://id.esd.org.uk/service/1465,Council expenditure,08/10/2015,HILLSIDE,SAINSBURYS 0675,72.36,PURCHASE OF FOOD (RAW MATERIALS),"GROCERY STORES, SUPERMARKETS"
27/01/2016,http://opendatacommunities.org/id/county-council/surrey,Surrey,http://id.esd.org.uk/service/1465,Council expenditure,08/10/2015,HOPE SERVICE - EAST,TESCO STORES 6320,2.01,PURCHASE OF FOOD (RAW MATERIALS),"GROCERY STORES, SUPERMARKETS"
27/01/2016,http://opendatacommunities.org/id/county-council/surrey,Surrey,http://id.esd.org.uk/service/1465,Council expenditure,08/10/2015,HOPE SERVICE - EAST,WHITE SPIDER,5,BOOKS,"CLUBS-CNTRY,MBRSHIP(ATHLET,REC,SPRTS,PRIVATE GOLF"
27/01/2016,http://opendatacommunities.org/id/county-council/surrey,Surrey,http://id.esd.org.uk/service/1465,Council expenditure,08/10/2015,HOPE SERVICE - WEST,AMAZON UK MARKETPLACE,2.96,CURRICULUM EQUIPMENT AND FURNITURE,BOOK STORES
27/01/2016,http://opendatacommunities.org/id/county-council/surrey,Surrey,http://id.esd.org.uk/service/1465,Council expenditure,08/10/2015,HOPE SERVICE - WEST,AMAZON UK MARKETPLACE,4.09,CURRICULUM CONSUMABLES,BOOK STORES
27/01/2016,http://opendatacommunities.org/id/county-council/surrey,Surrey,http://id.esd.org.uk/service/1465,Council expenditure,08/10/2015,HOPE SERVICE - WEST,AMAZON UK MARKETPLACE,6.84,CURRICULUM CONSUMABLES,BOOK STORES
27/01/2016,http://opendatacommunities.org/id/county-council/surrey,Surrey,http://id.esd.org.uk/service/1465,Council expenditure,08/10/2015,HOPE SERVICE - WEST,AMAZON UK MARKETPLACE,7,CURRICULUM CONSUMABLES,BOOK STORES
27/01/2016,http://opendatacommunities.org/id/county-council/surrey,Surrey,http://id.esd.org.uk/service/1465,Council expenditure,08/10/2015,HOPE SERVICE - WEST,AMAZON UK MARKETPLACE,7.96,CURRICULUM CONSUMABLES,BOOK STORES
27/01/2016,http://opendatacommunities.org/id/county-council/surrey,Surrey,http://id.esd.org.uk/service/1465,Council expenditure,08/10/2015,HOPE SERVICE - WEST,AMAZON UK MARKETPLACE,11.94,CURRICULUM CONSUMABLES,BOOK STORES
27/01/2016,http://opendatacommunities.org/id/county-council/surrey,Surrey,http://id.esd.org.uk/service/1465,Council expenditure,08/10/2015,HOPE SERVICE - WEST,AMAZON UK MARKETPLACE,31.75,CURRICULUM CONSUMABLES,BOOK STORES
27/01/2016,http://opendatacommunities.org/id/county-council/surrey,Surrey,http://id.esd.org.uk/service/1465,Council expenditure,08/10/2015,IMT CRITICAL ENVIRONMENTS,AMAZON UK MARKETPLACE,34.98,COMPUTER HARDWARE,BOOK STORES
27/01/2016,http://opendatacommunities.org/id/county-council/surrey,Surrey,http://id.esd.org.uk/service/1465,Council expenditure,08/10/2015,IMT SUPPORT SERVICE DESK,SERVICEDESK INST.,731.84,SUBSCRIPTIONS,DIRECT MARKETING-OTHER DIRECT MARKETERS/NOT ELSEW.
27/01/2016,http://opendatacommunities.org/id/county-council/surrey,Surrey,http://id.esd.org.uk/service/1465,Council expenditure,08/10/2015,KARIBU COMMUNITY HOME,SAINSBURYS 0683,72,EQUIPMENT,"GROCERY STORES, SUPERMARKETS"
27/01/2016,http://opendatacommunities.org/id/county-council/surrey,Surrey,http://id.esd.org.uk/service/1465,Council expenditure,08/10/2015,KARIBU COMMUNITY HOME,SAINSBURYS 0683,109.3,PURCHASE OF FOOD (RAW MATERIALS),"GROCERY STORES, SUPERMARKETS"
27/01/2016,http://opendatacommunities.org/id/county-council/surrey,Surrey,http://id.esd.org.uk/service/1465,Council expenditure,08/10/2015,LAKERS YC,ASDA STORES 4823,22.2,REFRESHMENT COSTS,"GROCERY STORES, SUPERMARKETS"
27/01/2016,http://opendatacommunities.org/id/county-council/surrey,Surrey,http://id.esd.org.uk/service/1465,Council expenditure,08/10/2015,LEGAL SUPPORT TEAM,IN TO LUNCH,97.43,REFRESHMENT COSTS,CATERERS
27/01/2016,http://opendatacommunities.org/id/county-council/surrey,Surrey,http://id.esd.org.uk/service/1465,Council expenditure,08/10/2015,LIBERTAS COMMUNITY HOME,SAINSBURYS,14,PURCHASE OF FOOD (RAW MATERIALS),"GROCERY STORES, SUPERMARKETS"
27/01/2016,http://opendatacommunities.org/id/county-council/surrey,Surrey,http://id.esd.org.uk/service/1465,Council expenditure,08/10/2015,LIBERTAS COMMUNITY HOME,SAINSBURYS,106.88,PURCHASE OF FOOD (RAW MATERIALS),"GROCERY STORES, SUPERMARKETS"
27/01/2016,http://opendatacommunities.org/id/county-council/surrey,Surrey,http://id.esd.org.uk/service/1465,Council expenditure,08/10/2015,MANAGEMENT TEAM & SUPPORT,IMPACT,37.02,EQUIPMENT,MISCELLANEOUS GENERAL MERCHANDISE
27/01/2016,http://opendatacommunities.org/id/county-council/surrey,Surrey,http://id.esd.org.uk/service/1465,Council expenditure,08/10/2015,MAYFORD CENTRE - BUSINESS,HORACE SMITH LOCKSMITH,55.72,DAY TO DAY MAINTENANCE,HARDWARE STORES
27/01/2016,http://opendatacommunities.org/id/county-council/surrey,Surrey,http://id.esd.org.uk/service/1465,Council expenditure,08/10/2015,NIL RECOURSE PUBLIC FNDG 18+ ASYLUM SKR,TRAVELODGE WEBSITE,74,3RD PARTY PAYMENTS PRIVATE INDIV,TRAVELODGE
27/01/2016,http://opendatacommunities.org/id/county-council/surrey,Surrey,http://id.esd.org.uk/service/1465,Council expenditure,08/10/2015,NIL RECOURSE PUBLIC FNDG 18+ ASYLUM SKR,PREMIER INN 44535935,121.75,3RD PARTY PAYMENTS PRIVATE INDIV,PREMIER INN
27/01/2016,http://opendatacommunities.org/id/county-council/surrey,Surrey,http://id.esd.org.uk/service/1465,Council expenditure,08/10/2015,NIL RECOURSE PUBLIC FNDG 18+ ASYLUM SKR,PREMIER INN 44535935,893.75,3RD PARTY PAYMENTS PRIVATE INDIV,PREMIER INN
27/01/2016,http://opendatacommunities.org/id/county-council/surrey,Surrey,http://id.esd.org.uk/service/1465,Council expenditure,08/10/2015,PAL - SOUND RECORDINGS - MUSIC          ,AMAZON UK MARKETPLACE,6.21,LIBRARY RESOURCES,BOOK STORES
27/01/2016,http://opendatacommunities.org/id/county-council/surrey,Surrey,http://id.esd.org.uk/service/1465,Council expenditure,08/10/2015,PAL - SOUND RECORDINGS - MUSIC          ,AMAZON UK MARKETPLACE,6.25,LIBRARY RESOURCES,BOOK STORES
27/01/2016,http://opendatacommunities.org/id/county-council/surrey,Surrey,http://id.esd.org.uk/service/1465,Council expenditure,08/10/2015,PAL - SOUND RECORDINGS - MUSIC          ,AMAZON UK MARKETPLACE,9.25,LIBRARY RESOURCES,BOOK STORES
27/01/2016,http://opendatacommunities.org/id/county-council/surrey,Surrey,http://id.esd.org.uk/service/1465,Council expenditure,08/10/2015,PAL - SOUND RECORDINGS - MUSIC          ,AMAZON UK MARKETPLACE,13.19,LIBRARY RESOURCES,BOOK STORES
27/01/2016,http://opendatacommunities.org/id/county-council/surrey,Surrey,http://id.esd.org.uk/service/1465,Council expenditure,08/10/2015,PAL - SOUND RECORDINGS - MUSIC          ,AMAZON EU,13.2,LIBRARY RESOURCES,DIRECT MARKETING-OTHER DIRECT MARKETERS/NOT ELSEW.
27/01/2016,http://opendatacommunities.org/id/county-council/surrey,Surrey,http://id.esd.org.uk/service/1465,Council expenditure,08/10/2015,PESS MEMBERSHIP,PRINTED.COM,23.99,PRINTING,"QUICK COPY,REPRODUCTION AND BLUEPRINTING SERVICES"
27/01/2016,http://opendatacommunities.org/id/county-council/surrey,Surrey,http://id.esd.org.uk/service/1465,Council expenditure,08/10/2015,PROPERTY OPERATIONS TEAM,WICKES,29.99,PURCHASE OF BUILDING MATERIALS,"BUILDING MATERIALS, LUMBER STORES"
27/01/2016,http://opendatacommunities.org/id/county-council/surrey,Surrey,http://id.esd.org.uk/service/1465,Council expenditure,08/10/2015,PROPERTY OPERATIONS TEAM,TOOLSTATION LTD,31.7,PURCHASE OF BUILDING MATERIALS,HARDWARE STORES
27/01/2016,http://opendatacommunities.org/id/county-council/surrey,Surrey,http://id.esd.org.uk/service/1465,Council expenditure,08/10/2015,PROPERTY OPERATIONS TEAM,TOOLSTATION LTD,37.72,PURCHASE OF BUILDING MATERIALS,HARDWARE STORES
27/01/2016,http://opendatacommunities.org/id/county-council/surrey,Surrey,http://id.esd.org.uk/service/1465,Council expenditure,08/10/2015,READY FOR WORK YSS,IKEA ONLINE,184,EQUIPMENT,MISCELLANEOUS HOUSE FURNISHING SPECIALTY SHOPS
27/01/2016,http://opendatacommunities.org/id/county-council/surrey,Surrey,http://id.esd.org.uk/service/1465,Council expenditure,08/10/2015,SE SECTION 17 CARE,SURREY CC CARD PAY,-31,CHILDREN ACT SEC 17 PAYMENTS,COMPUTER NETWORK/INFORMATION SERVICES
27/01/2016,http://opendatacommunities.org/id/county-council/surrey,Surrey,http://id.esd.org.uk/service/1465,Council expenditure,08/10/2015,SE SECTION 17 CARE,SURREY CC CARD PAY,-31,CHILDREN ACT SEC 17 PAYMENTS,COMPUTER NETWORK/INFORMATION SERVICES
27/01/2016,http://opendatacommunities.org/id/county-council/surrey,Surrey,http://id.esd.org.uk/service/1465,Council expenditure,08/10/2015,SE SECTION 17 CARE,SURREY CC CARD PAY,31,CHILDREN ACT SEC 17 PAYMENTS,COMPUTER NETWORK/INFORMATION SERVICES
27/01/2016,http://opendatacommunities.org/id/county-council/surrey,Surrey,http://id.esd.org.uk/service/1465,Council expenditure,08/10/2015,SERVICE DELIVERY SENIOR MANAGEMENT,AMAZON UK MARKETPLACE,-13.98,EQUIPMENT,MISCELLANEOUS AND SPECIALTY RETAIL STORES
27/01/2016,http://opendatacommunities.org/id/county-council/surrey,Surrey,http://id.esd.org.uk/service/1465,Council expenditure,08/10/2015,SW CARE - LAC,TRAVELODGE WEBSITE,45.45,CHILDREN ACT SEC 17 PAYMENTS,TRAVELODGE
27/01/2016,http://opendatacommunities.org/id/county-council/surrey,Surrey,http://id.esd.org.uk/service/1465,Council expenditure,08/10/2015,TARGETED INTERVENTION,WOKING BOROUGH COUNCIL,1.3,EDUC VISITS/HOLS/CAMPS/TOYS,AUTOMOBILE PARKING LOTS AND GARAGES
27/01/2016,http://opendatacommunities.org/id/county-council/surrey,Surrey,http://id.esd.org.uk/service/1465,Council expenditure,08/10/2015,TARGETED INTERVENTION,WOKING BOROUGH COUNCIL,3.9,EDUC VISITS/HOLS/CAMPS/TOYS,AUTOMOBILE PARKING LOTS AND GARAGES
27/01/2016,http://opendatacommunities.org/id/county-council/surrey,Surrey,http://id.esd.org.uk/service/1465,Council expenditure,08/10/2015,TARGETED INTERVENTION,WELCOME BREAK STARBUCK,5.75,EDUC VISITS/HOLS/CAMPS/TOYS,"MISC FOOD STORE-CONVENIENCE,MRKT,SPLTY,VENDNG MACS"
27/01/2016,http://opendatacommunities.org/id/county-council/surrey,Surrey,http://id.esd.org.uk/service/1465,Council expenditure,08/10/2015,TARGETED INTERVENTION,TESCO STORE 3149,7.57,EDUC VISITS/HOLS/CAMPS/TOYS,"GROCERY STORES, SUPERMARKETS"
27/01/2016,http://opendatacommunities.org/id/county-council/surrey,Surrey,http://id.esd.org.uk/service/1465,Council expenditure,08/10/2015,TARGETED INTERVENTION,FREEDOM LEISURE,8.7,EDUC VISITS/HOLS/CAMPS/TOYS,GOVERNMENT SERVICES-NOT ELSEWHERE CLASSIFIED
27/01/2016,http://opendatacommunities.org/id/county-council/surrey,Surrey,http://id.esd.org.uk/service/1465,Council expenditure,08/10/2015,TARGETED INTERVENTION,VUE BSL LTD,26.36,EDUC VISITS/HOLS/CAMPS/TOYS,MOTION PICTURE THEATERS
27/01/2016,http://opendatacommunities.org/id/county-council/surrey,Surrey,http://id.esd.org.uk/service/1465,Council expenditure,08/10/2015,THE BRIDGE YC,TESCO STORE 2812,11.03,PURCHASE OF FOOD (RAW MATERIALS),"GROCERY STORES, SUPERMARKETS"
27/01/2016,http://opendatacommunities.org/id/county-council/surrey,Surrey,http://id.esd.org.uk/service/1465,Council expenditure,08/10/2015,TRAINING AND DEVELOPMENT,GLASGOW POND HOTEL,"2,054.00",TRAINING EXPENSES EXTERNAL GENERAL,"LODGING-HOTELS,MOTELS,RESORTS-NOT CLASSIFIED"
27/01/2016,http://opendatacommunities.org/id/county-council/surrey,Surrey,http://id.esd.org.uk/service/1465,Council expenditure,08/10/2015,TRANSPORT,CPC,72.18,COMPUTER CONSUMABLES,ELECTRICAL PARTS AND EQUIPMENT
27/01/2016,http://opendatacommunities.org/id/county-council/surrey,Surrey,http://id.esd.org.uk/service/1465,Council expenditure,08/10/2015,TRANSPORT,TAIL LIFT SERVICES (ST,126.6,VEHICLE REPAIRS AND MAINTENANCE,AUTOMOTIVE BODY REPAIR SHOPS
27/01/2016,http://opendatacommunities.org/id/county-council/surrey,Surrey,http://id.esd.org.uk/service/1465,Council expenditure,08/10/2015,YSS YOUTH CENTRE IMPROVEMENTS,ARGOS GODALMING IN,167.11,EQUIPMENT,DISCOUNT STORES
27/01/2016,http://opendatacommunities.org/id/county-council/surrey,Surrey,http://id.esd.org.uk/service/1465,Council expenditure,09/10/2015,ACCESS 2 EDUC' (COUNTY) MEDICAL SERVICE,AMAZON EU,57.63,BOOKS,DIRECT MARKETING-OTHER DIRECT MARKETERS/NOT ELSEW.
27/01/2016,http://opendatacommunities.org/id/county-council/surrey,Surrey,http://id.esd.org.uk/service/1465,Council expenditure,09/10/2015,ACL CENTRAL EXPENDITURE,AMAZON UK MARKETPLACE,11.3,CURRICULUM EQUIPMENT AND FURNITURE,BOOK STORES
27/01/2016,http://opendatacommunities.org/id/county-council/surrey,Surrey,http://id.esd.org.uk/service/1465,Council expenditure,09/10/2015,ACL CENTRAL EXPENDITURE,ALEC TIRANTI LTD,54.99,EQUIPMENT,"ARTIST SUPPLY STORES, CRAFT SHOPS"
27/01/2016,http://opendatacommunities.org/id/county-council/surrey,Surrey,http://id.esd.org.uk/service/1465,Council expenditure,09/10/2015,ACL CENTRAL EXPENDITURE,HELLOPRINT,91.14,PUBLICITY,"QUICK COPY,REPRODUCTION AND BLUEPRINTING SERVICES"
27/01/2016,http://opendatacommunities.org/id/county-council/surrey,Surrey,http://id.esd.org.uk/service/1465,Council expenditure,09/10/2015,ACL CENTRAL EXPENDITURE,W P NOTCUTT LTD,320.1,EQUIPMENT,"BUILDING MATERIALS, LUMBER STORES"
27/01/2016,http://opendatacommunities.org/id/county-council/surrey,Surrey,http://id.esd.org.uk/service/1465,Council expenditure,09/10/2015,ARUNDEL,TESCO STORE 3539,-0.4,REFRESHMENT COSTS,"GROCERY STORES, SUPERMARKETS"
27/01/2016,http://opendatacommunities.org/id/county-council/surrey,Surrey,http://id.esd.org.uk/service/1465,Council expenditure,09/10/2015,ARUNDEL,TESCOS,6.37,REFRESHMENT COSTS,"GROCERY STORES, SUPERMARKETS"
27/01/2016,http://opendatacommunities.org/id/county-council/surrey,Surrey,http://id.esd.org.uk/service/1465,Council expenditure,09/10/2015,ARUNDEL,TESCOS,163.12,REFRESHMENT COSTS,"GROCERY STORES, SUPERMARKETS"
27/01/2016,http://opendatacommunities.org/id/county-council/surrey,Surrey,http://id.esd.org.uk/service/1465,Council expenditure,09/10/2015,CLOSED LANDFILL,CAMBRIDGESHIRE HYDRAUL,44.24,EQUIPMENT,"COMMERCIAL EQUIPMENT, NOT ELSEWHERE CLASSIFIED"
27/01/2016,http://opendatacommunities.org/id/county-council/surrey,Surrey,http://id.esd.org.uk/service/1465,Council expenditure,09/10/2015,COUNTY HALL,AMAZON UK MARKETPLACE,33.62,EQUIPMENT,BOOK STORES
27/01/2016,http://opendatacommunities.org/id/county-council/surrey,Surrey,http://id.esd.org.uk/service/1465,Council expenditure,09/10/2015,COUNTY HALL,AMAZON UK MARKETPLACE,83.04,EQUIPMENT,BOOK STORES
27/01/2016,http://opendatacommunities.org/id/county-council/surrey,Surrey,http://id.esd.org.uk/service/1465,Council expenditure,09/10/2015,DOWNLANDS COUNTRYSIDE PROJECT,MOLE COUNTRY STORES,83.7,EQUIPMENT,AGRICULTURAL COOPERATIVES
27/01/2016,http://opendatacommunities.org/id/county-council/surrey,Surrey,http://id.esd.org.uk/service/1465,Council expenditure,09/10/2015,E&I - LOVE FOOD HATE WASTE              ,GOOGLE  ADWS2060179426,500,PUBLICITY,DIRECT MARKETING-CONTINUITY/SUBSCRIPTION MERCHANTS
27/01/2016,http://opendatacommunities.org/id/county-council/surrey,Surrey,http://id.esd.org.uk/service/1465,Council expenditure,09/10/2015,FOSTERING SERVICE CENTRAL COSTS,AMAZON UK MARKETPLACE,24,OTHER COMMUNITY CARE VOL,BOOK STORES
27/01/2016,http://opendatacommunities.org/id/county-council/surrey,Surrey,http://id.esd.org.uk/service/1465,Council expenditure,09/10/2015,FOSTERING SERVICE CENTRAL COSTS,AMAZON UK MARKETPLACE,29.1,OTHER COMMUNITY CARE VOL,BOOK STORES
27/01/2016,http://opendatacommunities.org/id/county-council/surrey,Surrey,http://id.esd.org.uk/service/1465,Council expenditure,09/10/2015,HILLSIDE,SAINSBURYS 0675,68.85,PURCHASE OF FOOD (RAW MATERIALS),"GROCERY STORES, SUPERMARKETS"
27/01/2016,http://opendatacommunities.org/id/county-council/surrey,Surrey,http://id.esd.org.uk/service/1465,Council expenditure,09/10/2015,HILLSIDE,IKEA,122.15,PURCHASE OF FOOD (RAW MATERIALS),MISCELLANEOUS HOUSE FURNISHING SPECIALTY SHOPS
27/01/2016,http://opendatacommunities.org/id/county-council/surrey,Surrey,http://id.esd.org.uk/service/1465,Council expenditure,09/10/2015,HOPE SERVICE - EAST,TESCO STORES 6320,2.5,PURCHASE OF FOOD (RAW MATERIALS),"GROCERY STORES, SUPERMARKETS"
27/01/2016,http://opendatacommunities.org/id/county-council/surrey,Surrey,http://id.esd.org.uk/service/1465,Council expenditure,09/10/2015,HOPE SERVICE - WEST,MB WORLD,20,EDUC VISITS/HOLS/CAMPS/TOYS,AUTOMOTIVE SERVICE SHOPS
27/01/2016,http://opendatacommunities.org/id/county-council/surrey,Surrey,http://id.esd.org.uk/service/1465,Council expenditure,09/10/2015,IMT CRITICAL ENVIRONMENTS,MILKANDMORE,23.56,REFRESHMENT COSTS,"MISC FOOD STORE-CONVENIENCE,MRKT,SPLTY,VENDNG MACS"
27/01/2016,http://opendatacommunities.org/id/county-council/surrey,Surrey,http://id.esd.org.uk/service/1465,Council expenditure,09/10/2015,IMT CRITICAL ENVIRONMENTS,MILKANDMORE,29.61,REFRESHMENT COSTS,"MISC FOOD STORE-CONVENIENCE,MRKT,SPLTY,VENDNG MACS"
27/01/2016,http://opendatacommunities.org/id/county-council/surrey,Surrey,http://id.esd.org.uk/service/1465,Council expenditure,09/10/2015,LOCAL DELIVERY GROUP,AMAZON EU,26.45,EQUIPMENT,DIRECT MARKETING-OTHER DIRECT MARKETERS/NOT ELSEW.
27/01/2016,http://opendatacommunities.org/id/county-council/surrey,Surrey,http://id.esd.org.uk/service/1465,Council expenditure,09/10/2015,LONGFIELD RESIDENTIAL CARE,SAINSBURYS 0670,124.7,REFRESHMENT COSTS,"GROCERY STORES, SUPERMARKETS"
27/01/2016,http://opendatacommunities.org/id/county-council/surrey,Surrey,http://id.esd.org.uk/service/1465,Council expenditure,09/10/2015,LSTF GRANT,AMAZON EU,78.99,EQUIPMENT,DIRECT MARKETING-OTHER DIRECT MARKETERS/NOT ELSEW.
27/01/2016,http://opendatacommunities.org/id/county-council/surrey,Surrey,http://id.esd.org.uk/service/1465,Council expenditure,09/10/2015,LSTF GRANT,PTRC-TRAINING.CO.U,298.8,EQUIPMENT,"COLLEGES, UNIV, PRO SCHOOLS, JUNIOR COLLEGES"
27/01/2016,http://opendatacommunities.org/id/county-council/surrey,Surrey,http://id.esd.org.uk/service/1465,Council expenditure,09/10/2015,NW CARE - CP & COURT LAC,HEATHROW AIRPORT,25.5,MISCELLANEOUS STAFF TRAVEL,AUTOMOBILE PARKING LOTS AND GARAGES
27/01/2016,http://opendatacommunities.org/id/county-council/surrey,Surrey,http://id.esd.org.uk/service/1465,Council expenditure,09/10/2015,NW CARE - CP & COURT LAC,HAMPSHIRE COUNTY COUNC,30,FEES,GOVERNMENT SERVICES-NOT ELSEWHERE CLASSIFIED
27/01/2016,http://opendatacommunities.org/id/county-council/surrey,Surrey,http://id.esd.org.uk/service/1465,Council expenditure,09/10/2015,NW CARE - CP & COURT LAC,AERLING   22TBPW JOY AL0,735.98,MISCELLANEOUS STAFF TRAVEL,AER LINGUS
27/01/2016,http://opendatacommunities.org/id/county-council/surrey,Surrey,http://id.esd.org.uk/service/1465,Council expenditure,09/10/2015,NW CARE - NON-LAC CP & COURT,TRAVELODGE WEBSITE,223,CHILDREN ACT SEC 17 PAYMENTS,TRAVELODGE
27/01/2016,http://opendatacommunities.org/id/county-council/surrey,Surrey,http://id.esd.org.uk/service/1465,Council expenditure,09/10/2015,ORDER TO CASH TEAMS,WWW.GOV.UK,20,FEES,PROFESSIONAL SERVICES-NOT ELSEWHERE CLASSIFIED
27/01/2016,http://opendatacommunities.org/id/county-council/surrey,Surrey,http://id.esd.org.uk/service/1465,Council expenditure,09/10/2015,PAL - SOUND RECORDINGS - MUSIC          ,AMAZON UK MARKETPLACE,14.79,LIBRARY RESOURCES,BOOK STORES
27/01/2016,http://opendatacommunities.org/id/county-council/surrey,Surrey,http://id.esd.org.uk/service/1465,Council expenditure,09/10/2015,PAL - SOUND RECORDINGS - MUSIC          ,AMAZON UK MARKETPLACE,21.24,LIBRARY RESOURCES,BOOK STORES
27/01/2016,http://opendatacommunities.org/id/county-council/surrey,Surrey,http://id.esd.org.uk/service/1465,Council expenditure,09/10/2015,PE/CDT MAINTENANCE OVERHEADS,C BREWER & SONS,61.04,EQUIPMENT,"BUILDING MATERIALS, LUMBER STORES"
27/01/2016,http://opendatacommunities.org/id/county-council/surrey,Surrey,http://id.esd.org.uk/service/1465,Council expenditure,09/10/2015,PRISON CAPITATION                       ,AMAZON UK MARKETPLACE,67.98,LIBRARY RESOURCES,BOOK STORES
27/01/2016,http://opendatacommunities.org/id/county-council/surrey,Surrey,http://id.esd.org.uk/service/1465,Council expenditure,09/10/2015,PROPERTY OPERATIONS TEAM,SCREWFIX,35.21,PURCHASE OF BUILDING MATERIALS,"BUILDING MATERIALS, LUMBER STORES"
27/01/2016,http://opendatacommunities.org/id/county-council/surrey,Surrey,http://id.esd.org.uk/service/1465,Council expenditure,09/10/2015,ROW MAINTENANCE,SPORTSDIRECT 234,44.99,"CLOTHING, UNIFORM AND LAUNDRY",SPORTING GOODS STORES
27/01/2016,http://opendatacommunities.org/id/county-council/surrey,Surrey,http://id.esd.org.uk/service/1465,Council expenditure,09/10/2015,RUTH HOUSE,WWW.RANSOMSPARES.CO.UK,24.75,EQUIPMENT,ELECTRICAL PARTS AND EQUIPMENT
27/01/2016,http://opendatacommunities.org/id/county-council/surrey,Surrey,http://id.esd.org.uk/service/1465,Council expenditure,09/10/2015,SERVICE DELIVERY SENIOR MANAGEMENT,AMAZON UK MARKETPLACE,6.96,EQUIPMENT,BOOK STORES
27/01/2016,http://opendatacommunities.org/id/county-council/surrey,Surrey,http://id.esd.org.uk/service/1465,Council expenditure,09/10/2015,SW CARE - LAC,SURREY CC CARD PAY,-21,LEGAL EXPENSES,COMPUTER NETWORK/INFORMATION SERVICES
27/01/2016,http://opendatacommunities.org/id/county-council/surrey,Surrey,http://id.esd.org.uk/service/1465,Council expenditure,09/10/2015,SW CARE - LAC,SURREY CC CARD PAY,-21,LEGAL EXPENSES,COMPUTER NETWORK/INFORMATION SERVICES
27/01/2016,http://opendatacommunities.org/id/county-council/surrey,Surrey,http://id.esd.org.uk/service/1465,Council expenditure,09/10/2015,SW CARE - LAC,SURREY CC CARD PAY,21,LEGAL EXPENSES,COMPUTER NETWORK/INFORMATION SERVICES
27/01/2016,http://opendatacommunities.org/id/county-council/surrey,Surrey,http://id.esd.org.uk/service/1465,Council expenditure,09/10/2015,SW CARE - LAC,SURREY CC CARD PAY,21,LEGAL EXPENSES,COMPUTER NETWORK/INFORMATION SERVICES
27/01/2016,http://opendatacommunities.org/id/county-council/surrey,Surrey,http://id.esd.org.uk/service/1465,Council expenditure,09/10/2015,SW CARE - NON-LAC CP & COURT,AMAZON UK MARKETPLACE,12.17,BOOKS,BOOK STORES
27/01/2016,http://opendatacommunities.org/id/county-council/surrey,Surrey,http://id.esd.org.uk/service/1465,Council expenditure,09/10/2015,"SW REF, ASS & INT SERVICE - HUB 1",AMAZON UK MARKETPLACE,5.49,EQUIPMENT,BOOK STORES
27/01/2016,http://opendatacommunities.org/id/county-council/surrey,Surrey,http://id.esd.org.uk/service/1465,Council expenditure,09/10/2015,TARGETED INTERVENTION,HEVER CASTLE,4.55,EDUC VISITS/HOLS/CAMPS/TOYS,"EATING PLACES, RESTAURANTS"
27/01/2016,http://opendatacommunities.org/id/county-council/surrey,Surrey,http://id.esd.org.uk/service/1465,Council expenditure,09/10/2015,TARGETED INTERVENTION,SAINSBURYS 0686,7.25,EDUC VISITS/HOLS/CAMPS/TOYS,"GROCERY STORES, SUPERMARKETS"
27/01/2016,http://opendatacommunities.org/id/county-council/surrey,Surrey,http://id.esd.org.uk/service/1465,Council expenditure,09/10/2015,TARGETED INTERVENTION,TOP GOLF ADDLESTON,7.65,EDUC VISITS/HOLS/CAMPS/TOYS,"CLUBS-CNTRY,MBRSHIP(ATHLET,REC,SPRTS,PRIVATE GOLF"
27/01/2016,http://opendatacommunities.org/id/county-council/surrey,Surrey,http://id.esd.org.uk/service/1465,Council expenditure,09/10/2015,TARGETED INTERVENTION,SAINSBURYS 0652,16.65,EDUC VISITS/HOLS/CAMPS/TOYS,"GROCERY STORES, SUPERMARKETS"
27/01/2016,http://opendatacommunities.org/id/county-council/surrey,Surrey,http://id.esd.org.uk/service/1465,Council expenditure,09/10/2015,TARGETED INTERVENTION,PRIMARK,28.5,EDUC VISITS/HOLS/CAMPS/TOYS,FAMILY CLOTHING STORES
27/01/2016,http://opendatacommunities.org/id/county-council/surrey,Surrey,http://id.esd.org.uk/service/1465,Council expenditure,09/10/2015,TARGETED INTERVENTION,TOP GOLF LTD,40,EDUC VISITS/HOLS/CAMPS/TOYS,"CLUBS-CNTRY,MBRSHIP(ATHLET,REC,SPRTS,PRIVATE GOLF"
27/01/2016,http://opendatacommunities.org/id/county-council/surrey,Surrey,http://id.esd.org.uk/service/1465,Council expenditure,09/10/2015,TARGETED INTERVENTION,HEVER CASTLE,59,EDUC VISITS/HOLS/CAMPS/TOYS,REAL ESTATE AGENTS AND MANAGERS-RENTALS
27/01/2016,http://opendatacommunities.org/id/county-council/surrey,Surrey,http://id.esd.org.uk/service/1465,Council expenditure,09/10/2015,TRAINING AND DEVELOPMENT,WWW.PMGLTD.CO.UK,"1,076.40",SUBSISTENCE AND CONFERENCE EXPENSES,BUSINESS SERVICES-NOT ELSEWHERE CLASSIFIED
27/01/2016,http://opendatacommunities.org/id/county-council/surrey,Surrey,http://id.esd.org.uk/service/1465,Council expenditure,09/10/2015,TRANSPORT,SCREWFIX.COM,9.99,DAY TO DAY MAINTENANCE,"BUILDING MATERIALS, LUMBER STORES"
27/01/2016,http://opendatacommunities.org/id/county-council/surrey,Surrey,http://id.esd.org.uk/service/1465,Council expenditure,09/10/2015,TRANSPORT,SCREWFIX DIRECT,35.97,DAY TO DAY MAINTENANCE,"BUILDING MATERIALS, LUMBER STORES"
27/01/2016,http://opendatacommunities.org/id/county-council/surrey,Surrey,http://id.esd.org.uk/service/1465,Council expenditure,09/10/2015,WOODLANDS COMMUNITY HOME,SAINSBURYS,12.55,PURCHASE OF FOOD (RAW MATERIALS),"GROCERY STORES, SUPERMARKETS"
27/01/2016,http://opendatacommunities.org/id/county-council/surrey,Surrey,http://id.esd.org.uk/service/1465,Council expenditure,09/10/2015,WOODLANDS COMMUNITY HOME,SAINSBURYS SACAT 0686,26,"CLOTHING, UNIFORM AND LAUNDRY","GROCERY STORES, SUPERMARKETS"
27/01/2016,http://opendatacommunities.org/id/county-council/surrey,Surrey,http://id.esd.org.uk/service/1465,Council expenditure,09/10/2015,WOODLANDS COMMUNITY HOME,SAINSBURYS,137.44,PURCHASE OF FOOD (RAW MATERIALS),"GROCERY STORES, SUPERMARKETS"
27/01/2016,http://opendatacommunities.org/id/county-council/surrey,Surrey,http://id.esd.org.uk/service/1465,Council expenditure,10/10/2015,ARUNDEL,ASDA SUPERSTORE,6.76,REFRESHMENT COSTS,"GROCERY STORES, SUPERMARKETS"
27/01/2016,http://opendatacommunities.org/id/county-council/surrey,Surrey,http://id.esd.org.uk/service/1465,Council expenditure,10/10/2015,ASYLUM SEEKERS 16-17,PREMIER INN44012925,481.94,CHILDREN ACT SEC 17 PAYMENTS,PREMIER INN
27/01/2016,http://opendatacommunities.org/id/county-council/surrey,Surrey,http://id.esd.org.uk/service/1465,Council expenditure,10/10/2015,CENTRAL COMMS - EARLY YEARS             ,GOOGLE  ADWS1694981908,442.55,PUBLICITY,DIRECT MARKETING-CONTINUITY/SUBSCRIPTION MERCHANTS
27/01/2016,http://opendatacommunities.org/id/county-council/surrey,Surrey,http://id.esd.org.uk/service/1465,Council expenditure,10/10/2015,CEO - PUBLIC HEALTH CAMPAIGNS           ,FACEBOOK EB99K8J9K2,600.09,PUBLICITY,ADVERTISING SERVICES
27/01/2016,http://opendatacommunities.org/id/county-council/surrey,Surrey,http://id.esd.org.uk/service/1465,Council expenditure,10/10/2015,FAIRCROFT COMMUNITY HOME,CREAMS CAFE WOKING,13,REFRESHMENT COSTS,"EATING PLACES, RESTAURANTS"
27/01/2016,http://opendatacommunities.org/id/county-council/surrey,Surrey,http://id.esd.org.uk/service/1465,Council expenditure,10/10/2015,FAIRCROFT COMMUNITY HOME,HOME BARGAINS BYFLEET,14.05,EQUIPMENT,HARDWARE STORES
27/01/2016,http://opendatacommunities.org/id/county-council/surrey,Surrey,http://id.esd.org.uk/service/1465,Council expenditure,10/10/2015,FAIRCROFT COMMUNITY HOME,KFC,30.36,REFRESHMENT COSTS,FAST FOOD RESTAURANTS
27/01/2016,http://opendatacommunities.org/id/county-council/surrey,Surrey,http://id.esd.org.uk/service/1465,Council expenditure,10/10/2015,FAIRCROFT COMMUNITY HOME,PRIMARK,85.2,"CLOTHING, UNIFORM AND LAUNDRY",FAMILY CLOTHING STORES
27/01/2016,http://opendatacommunities.org/id/county-council/surrey,Surrey,http://id.esd.org.uk/service/1465,Council expenditure,10/10/2015,HILLSIDE,SAINSBURYS SACAT 0675,50.1,PURCHASE OF FOOD (RAW MATERIALS),"GROCERY STORES, SUPERMARKETS"
27/01/2016,http://opendatacommunities.org/id/county-council/surrey,Surrey,http://id.esd.org.uk/service/1465,Council expenditure,10/10/2015,HILLSIDE,SAINSBURYS TO YOU 0675,147.45,PURCHASE OF FOOD (RAW MATERIALS),"GROCERY STORES, SUPERMARKETS"
27/01/2016,http://opendatacommunities.org/id/county-council/surrey,Surrey,http://id.esd.org.uk/service/1465,Council expenditure,10/10/2015,LOCAL DELIVERY GROUP,AMAZON UK MARKETPLACE,4.56,EQUIPMENT,BOOK STORES
27/01/2016,http://opendatacommunities.org/id/county-council/surrey,Surrey,http://id.esd.org.uk/service/1465,Council expenditure,10/10/2015,LOCAL DELIVERY GROUP,AMAZON EU,13.94,BOOKS,DIRECT MARKETING-OTHER DIRECT MARKETERS/NOT ELSEW.
27/01/2016,http://opendatacommunities.org/id/county-council/surrey,Surrey,http://id.esd.org.uk/service/1465,Council expenditure,10/10/2015,LONGFIELD RESIDENTIAL CARE,SAINSBURYS SACAT 2115,6.65,REFRESHMENT COSTS,"GROCERY STORES, SUPERMARKETS"
27/01/2016,http://opendatacommunities.org/id/county-council/surrey,Surrey,http://id.esd.org.uk/service/1465,Council expenditure,10/10/2015,LONGFIELD RESIDENTIAL CARE,ONE STOP 1511,10,REFRESHMENT COSTS,"GROCERY STORES, SUPERMARKETS"
27/01/2016,http://opendatacommunities.org/id/county-council/surrey,Surrey,http://id.esd.org.uk/service/1465,Council expenditure,10/10/2015,NORTH WEST AREA TEAM,PIZZA HUT ONLINE WEB,61.96,REFRESHMENT COSTS,"EATING PLACES, RESTAURANTS"
27/01/2016,http://opendatacommunities.org/id/county-council/surrey,Surrey,http://id.esd.org.uk/service/1465,Council expenditure,10/10/2015,SP CENTRES VI EQUIPMENT,APPLE ONLINE STORE GBP,300,EQUIPMENT,ELECTRONIC SALES
27/01/2016,http://opendatacommunities.org/id/county-council/surrey,Surrey,http://id.esd.org.uk/service/1465,Council expenditure,10/10/2015,"SW REF, ASS & INT SERVICE - HUB 1",AMAZON UK MARKETPLACE,2.04,EQUIPMENT,BOOK STORES
27/01/2016,http://opendatacommunities.org/id/county-council/surrey,Surrey,http://id.esd.org.uk/service/1465,Council expenditure,10/10/2015,TS SERVICE MANAGEMENT,HOOTSUITE MEDIA INC.,86.67,SUBSCRIPTIONS,BUSINESS SERVICES-NOT ELSEWHERE CLASSIFIED
27/01/2016,http://opendatacommunities.org/id/county-council/surrey,Surrey,http://id.esd.org.uk/service/1465,Council expenditure,11/10/2015,ACL CENTRAL EXPENDITURE,W M MORRISONS,78.07,REFRESHMENT COSTS,"GROCERY STORES, SUPERMARKETS"
27/01/2016,http://opendatacommunities.org/id/county-council/surrey,Surrey,http://id.esd.org.uk/service/1465,Council expenditure,11/10/2015,BURBANK COMMUNITY HOME,ROBERT DYAS HOLDNG LTD,14.99,EQUIPMENT,HARDWARE STORES
27/01/2016,http://opendatacommunities.org/id/county-council/surrey,Surrey,http://id.esd.org.uk/service/1465,Council expenditure,11/10/2015,CHEYNE WALK COMMUNITY HOME,AMAZON EU,6.33,EQUIPMENT,DIRECT MARKETING-OTHER DIRECT MARKETERS/NOT ELSEW.
27/01/2016,http://opendatacommunities.org/id/county-council/surrey,Surrey,http://id.esd.org.uk/service/1465,Council expenditure,11/10/2015,CHEYNE WALK COMMUNITY HOME,AMAZON EU,13.13,EQUIPMENT,DIRECT MARKETING-OTHER DIRECT MARKETERS/NOT ELSEW.
27/01/2016,http://opendatacommunities.org/id/county-council/surrey,Surrey,http://id.esd.org.uk/service/1465,Council expenditure,11/10/2015,CHEYNE WALK COMMUNITY HOME,CHELSEA FC     ONLINE,44.95,EQUIPMENT,"SPORTS APPAREL, RIDING APPAREL STORES"
27/01/2016,http://opendatacommunities.org/id/county-council/surrey,Surrey,http://id.esd.org.uk/service/1465,Council expenditure,11/10/2015,E&I - LOVE FOOD HATE WASTE              ,GOOGLE  ADWS2060179426,500,PUBLICITY,DIRECT MARKETING-CONTINUITY/SUBSCRIPTION MERCHANTS
27/01/2016,http://opendatacommunities.org/id/county-council/surrey,Surrey,http://id.esd.org.uk/service/1465,Council expenditure,11/10/2015,FOSTERING SERVICE CENTRAL COSTS,AMAZON UK MARKETPLACE,5.25,OTHER COMMUNITY CARE VOL,BOOK STORES
27/01/2016,http://opendatacommunities.org/id/county-council/surrey,Surrey,http://id.esd.org.uk/service/1465,Council expenditure,11/10/2015,HOLLAND CLOSE RESIDENTIAL HOME,TESCO-STORES 6647,144.85,PURCHASE OF FOOD (RAW MATERIALS),"GROCERY STORES, SUPERMARKETS"
27/01/2016,http://opendatacommunities.org/id/county-council/surrey,Surrey,http://id.esd.org.uk/service/1465,Council expenditure,11/10/2015,KARIBU COMMUNITY HOME,SAINSBURYS SACAT 0683,73.6,PURCHASE OF FOOD (RAW MATERIALS),"GROCERY STORES, SUPERMARKETS"
27/01/2016,http://opendatacommunities.org/id/county-council/surrey,Surrey,http://id.esd.org.uk/service/1465,Council expenditure,11/10/2015,WRAY PARK COMPLEX,ASDA HOME SHOPPING,93.96,REFRESHMENT COSTS,"GROCERY STORES, SUPERMARKETS"
27/01/2016,http://opendatacommunities.org/id/county-council/surrey,Surrey,http://id.esd.org.uk/service/1465,Council expenditure,12/10/2015,APPLEWOOD,ASDA HOME SHOPPING,-0.88,PURCHASE OF FOOD (RAW MATERIALS),"GROCERY STORES, SUPERMARKETS"
27/01/2016,http://opendatacommunities.org/id/county-council/surrey,Surrey,http://id.esd.org.uk/service/1465,Council expenditure,12/10/2015,APPLEWOOD,ASDA HOME SHOPPING,142.67,PURCHASE OF FOOD (RAW MATERIALS),"GROCERY STORES, SUPERMARKETS"
27/01/2016,http://opendatacommunities.org/id/county-council/surrey,Surrey,http://id.esd.org.uk/service/1465,Council expenditure,12/10/2015,APPLEWOOD,TVLICENSING.CO.UK,145.5,EDUC VISITS/HOLS/CAMPS/TOYS,"CONSULTING, MANAGEMENT, AND PUBLIC RELATIONS SVCS"
27/01/2016,http://opendatacommunities.org/id/county-council/surrey,Surrey,http://id.esd.org.uk/service/1465,Council expenditure,12/10/2015,ASYLUM SEEKERS 16-17,PREMIER INN44012925,81,CHILDREN ACT SEC 17 PAYMENTS,PREMIER INN
27/01/2016,http://opendatacommunities.org/id/county-council/surrey,Surrey,http://id.esd.org.uk/service/1465,Council expenditure,12/10/2015,BURBANK COMMUNITY HOME,WH SMITH,11.68,STATIONERY,NEWS DEALERS AND NEWSSTANDS
27/01/2016,http://opendatacommunities.org/id/county-council/surrey,Surrey,http://id.esd.org.uk/service/1465,Council expenditure,12/10/2015,BURBANK COMMUNITY HOME,JAYLING LTD,37.75,PURCHASE OF FOOD (RAW MATERIALS),FAST FOOD RESTAURANTS
27/01/2016,http://opendatacommunities.org/id/county-council/surrey,Surrey,http://id.esd.org.uk/service/1465,Council expenditure,12/10/2015,CHIEF PROPERTY OFFICER,AMAZON UK MARKETPLACE,41.61,COMPUTER HARDWARE,BOOK STORES
27/01/2016,http://opendatacommunities.org/id/county-council/surrey,Surrey,http://id.esd.org.uk/service/1465,Council expenditure,12/10/2015,COBGATES RESIDENTIAL CARE,ARGOS LTD,69.99,EQUIPMENT,DISCOUNT STORES
27/01/2016,http://opendatacommunities.org/id/county-council/surrey,Surrey,http://id.esd.org.uk/service/1465,Council expenditure,12/10/2015,COMMUNITY ARCHAEOLOGIST PROJECT,W M MORRISON,60.8,EQUIPMENT,SERVICE STATIONS WITH OR WITHOUT ANCILLARY SERVICE
27/01/2016,http://opendatacommunities.org/id/county-council/surrey,Surrey,http://id.esd.org.uk/service/1465,Council expenditure,12/10/2015,COUNTY HALL,WILKO RETAIL LIMIT,37.55,CLEANING AND DOMESTIC SUPPLIES,HOUSEHOLD APPLIANCE STORES
27/01/2016,http://opendatacommunities.org/id/county-council/surrey,Surrey,http://id.esd.org.uk/service/1465,Council expenditure,12/10/2015,COUNTY HALL,B & Q NEW PLC,95.25,DAY TO DAY MAINTENANCE,"BUILDING MATERIALS, LUMBER STORES"
27/01/2016,http://opendatacommunities.org/id/county-council/surrey,Surrey,http://id.esd.org.uk/service/1465,Council expenditure,12/10/2015,CS BUSINESS SUPPORT EAST,PREMIER INN44012925,81,CHILDREN ACT SEC 17 PAYMENTS,PREMIER INN
27/01/2016,http://opendatacommunities.org/id/county-council/surrey,Surrey,http://id.esd.org.uk/service/1465,Council expenditure,12/10/2015,CS BUSINESS SUPPORT WEST,"AMAZON SVCS EUROPE,SAR",5.9,STATIONERY,BOOK STORES
27/01/2016,http://opendatacommunities.org/id/county-council/surrey,Surrey,http://id.esd.org.uk/service/1465,Council expenditure,12/10/2015,EQUIPMENT SCC BUDGET,ARGOS RETAIL GROUP,63.93,EQUIPMENT,DISCOUNT STORES
27/01/2016,http://opendatacommunities.org/id/county-council/surrey,Surrey,http://id.esd.org.uk/service/1465,Council expenditure,12/10/2015,EQUIPMENT SCC BUDGET,AO RETAIL LIMITED,300.96,EQUIPMENT,HOUSEHOLD APPLIANCE STORES
27/01/2016,http://opendatacommunities.org/id/county-council/surrey,Surrey,http://id.esd.org.uk/service/1465,Council expenditure,12/10/2015,FAIRCROFT COMMUNITY HOME,TESCO STORE 2160,202.44,PURCHASE OF FOOD (RAW MATERIALS),"GROCERY STORES, SUPERMARKETS"
27/01/2016,http://opendatacommunities.org/id/county-council/surrey,Surrey,http://id.esd.org.uk/service/1465,Council expenditure,12/10/2015,FAIRMOUNT HOUSE LEATHERHEAD,EA HAZARDOUS WASTE-DOM,18,LICENCE FEES,GOVERNMENT SERVICES-NOT ELSEWHERE CLASSIFIED
27/01/2016,http://opendatacommunities.org/id/county-council/surrey,Surrey,http://id.esd.org.uk/service/1465,Council expenditure,12/10/2015,FAIRMOUNT HOUSE LEATHERHEAD,FURNITUBES INTERNATION,88.78,EQUIPMENT,"EQUIP, FURNITURE, HOME FURNSHNGS STRS (EXCPT APPL)"
27/01/2016,http://opendatacommunities.org/id/county-council/surrey,Surrey,http://id.esd.org.uk/service/1465,Council expenditure,12/10/2015,HEAD OF C&D &PA,AMAZON EU,21.69,EQUIPMENT,DIRECT MARKETING-OTHER DIRECT MARKETERS/NOT ELSEW.
27/01/2016,http://opendatacommunities.org/id/county-council/surrey,Surrey,http://id.esd.org.uk/service/1465,Council expenditure,12/10/2015,HILLSIDE,SAINSBURYS,17.35,PURCHASE OF FOOD (RAW MATERIALS),"GROCERY STORES, SUPERMARKETS"
27/01/2016,http://opendatacommunities.org/id/county-council/surrey,Surrey,http://id.esd.org.uk/service/1465,Council expenditure,12/10/2015,HILLSIDE,PONDEN HOME,30,EQUIPMENT,MISCELLANEOUS HOUSE FURNISHING SPECIALTY SHOPS
27/01/2016,http://opendatacommunities.org/id/county-council/surrey,Surrey,http://id.esd.org.uk/service/1465,Council expenditure,12/10/2015,HILLSIDE,BENTALLS BRACKNELL,37,PURCHASE OF FOOD (RAW MATERIALS),MEN'S AND BOY'S CLOTHING AND ACCESSORIES STORES
27/01/2016,http://opendatacommunities.org/id/county-council/surrey,Surrey,http://id.esd.org.uk/service/1465,Council expenditure,12/10/2015,HILLSIDE,ESSO FRIMLEY RD SSTN,54.93,NON-STAFF RELATED TRANSPORT COSTS,SERVICE STATIONS WITH OR WITHOUT ANCILLARY SERVICE
27/01/2016,http://opendatacommunities.org/id/county-council/surrey,Surrey,http://id.esd.org.uk/service/1465,Council expenditure,12/10/2015,HILLSIDE,SAINSBURYS,60.95,PURCHASE OF FOOD (RAW MATERIALS),"GROCERY STORES, SUPERMARKETS"
27/01/2016,http://opendatacommunities.org/id/county-council/surrey,Surrey,http://id.esd.org.uk/service/1465,Council expenditure,12/10/2015,HILLSIDE,BENTALLS BRACKNELL,215.3,EQUIPMENT,MEN'S AND BOY'S CLOTHING AND ACCESSORIES STORES
27/01/2016,http://opendatacommunities.org/id/county-council/surrey,Surrey,http://id.esd.org.uk/service/1465,Council expenditure,12/10/2015,HOLLAND CLOSE RESIDENTIAL HOME,NATIONAL TYRE SERV,72.5,VEHICLE REPAIRS AND MAINTENANCE,"AUTOMOTIVE PARTS, ACCESSORIES STORES"
27/01/2016,http://opendatacommunities.org/id/county-council/surrey,Surrey,http://id.esd.org.uk/service/1465,Council expenditure,12/10/2015,HOPE SERVICE - EAST,SAINSBURYS 0683,53.73,PURCHASE OF FOOD (RAW MATERIALS),"GROCERY STORES, SUPERMARKETS"
27/01/2016,http://opendatacommunities.org/id/county-council/surrey,Surrey,http://id.esd.org.uk/service/1465,Council expenditure,12/10/2015,HOPE SERVICE - WEST,TESCO-STORES 2590,33.51,PURCHASE OF FOOD (RAW MATERIALS),"GROCERY STORES, SUPERMARKETS"
27/01/2016,http://opendatacommunities.org/id/county-council/surrey,Surrey,http://id.esd.org.uk/service/1465,Council expenditure,12/10/2015,HOPE SERVICE - WEST,SAINSBURYS TO YOU 0686,95.24,PURCHASE OF FOOD (RAW MATERIALS),"GROCERY STORES, SUPERMARKETS"
27/01/2016,http://opendatacommunities.org/id/county-council/surrey,Surrey,http://id.esd.org.uk/service/1465,Council expenditure,12/10/2015,LIBERTAS COMMUNITY HOME,CURRYS S/S,29.99,EQUIPMENT,ELECTRONIC SALES
27/01/2016,http://opendatacommunities.org/id/county-council/surrey,Surrey,http://id.esd.org.uk/service/1465,Council expenditure,12/10/2015,LIBERTAS COMMUNITY HOME,TESCO STORE 2590,38.65,PURCHASE OF FOOD (RAW MATERIALS),"GROCERY STORES, SUPERMARKETS"
27/01/2016,http://opendatacommunities.org/id/county-council/surrey,Surrey,http://id.esd.org.uk/service/1465,Council expenditure,12/10/2015,LOCAL DELIVERY GROUP,AUTOGLASS,364.14,VEHICLE REPAIRS AND MAINTENANCE,"AUTOMOTIVE PARTS, ACCESSORIES STORES"
27/01/2016,http://opendatacommunities.org/id/county-council/surrey,Surrey,http://id.esd.org.uk/service/1465,Council expenditure,12/10/2015,LOWER MOLE COUNTRYSIDE PROJECT,WWW.PAYOCS.CO.UK,110.09,CLEANING AND DOMESTIC SUPPLIES,"CLEANING AND MAINTENANCE, JANITORIAL SERVICES"
27/01/2016,http://opendatacommunities.org/id/county-council/surrey,Surrey,http://id.esd.org.uk/service/1465,Council expenditure,12/10/2015,MALLOW CRESCENT,SAINSBURYS,6.2,PURCHASE OF FOOD (RAW MATERIALS),"GROCERY STORES, SUPERMARKETS"
27/01/2016,http://opendatacommunities.org/id/county-council/surrey,Surrey,http://id.esd.org.uk/service/1465,Council expenditure,12/10/2015,MALLOW CRESCENT,SAINSBURYS,11.2,PURCHASE OF FOOD (RAW MATERIALS),"GROCERY STORES, SUPERMARKETS"
27/01/2016,http://opendatacommunities.org/id/county-council/surrey,Surrey,http://id.esd.org.uk/service/1465,Council expenditure,12/10/2015,MALLOW CRESCENT,TESCO STORE 2590,61.77,PURCHASE OF FOOD (RAW MATERIALS),"GROCERY STORES, SUPERMARKETS"
27/01/2016,http://opendatacommunities.org/id/county-council/surrey,Surrey,http://id.esd.org.uk/service/1465,Council expenditure,12/10/2015,MALLOW CRESCENT,TESCOS,93.7,PURCHASE OF FOOD (RAW MATERIALS),"GROCERY STORES, SUPERMARKETS"
27/01/2016,http://opendatacommunities.org/id/county-council/surrey,Surrey,http://id.esd.org.uk/service/1465,Council expenditure,12/10/2015,MALLOW CRESCENT,SAINSBURYS,112.99,PURCHASE OF FOOD (RAW MATERIALS),"GROCERY STORES, SUPERMARKETS"
27/01/2016,http://opendatacommunities.org/id/county-council/surrey,Surrey,http://id.esd.org.uk/service/1465,Council expenditure,12/10/2015,NE LOOKED AFTER TEAM,PREMIER INN44012925,49.98,OTHER COMMUNITY CARE PRIV,PREMIER INN
27/01/2016,http://opendatacommunities.org/id/county-council/surrey,Surrey,http://id.esd.org.uk/service/1465,Council expenditure,12/10/2015,NW CARE - CP & COURT LAC,AERLING   2K5MIW JOY AL0,237.14,MISCELLANEOUS STAFF TRAVEL,AER LINGUS
27/01/2016,http://opendatacommunities.org/id/county-council/surrey,Surrey,http://id.esd.org.uk/service/1465,Council expenditure,12/10/2015,PRIMARY EDUCATION TRANSPORT,HALFORDS,4.99,EQUIPMENT,BICYCLE SHOPS-SALES AND SERVICE
27/01/2016,http://opendatacommunities.org/id/county-council/surrey,Surrey,http://id.esd.org.uk/service/1465,Council expenditure,12/10/2015,PRIMARY EDUCATION TRANSPORT,HALFORDS,375,EQUIPMENT,BICYCLE SHOPS-SALES AND SERVICE
27/01/2016,http://opendatacommunities.org/id/county-council/surrey,Surrey,http://id.esd.org.uk/service/1465,Council expenditure,12/10/2015,PROPERTY ENVIRONMENT AND STOCK TEAM,AMAZON UK MARKETPLACE,59.99,EQUIPMENT,BOOK STORES
27/01/2016,http://opendatacommunities.org/id/county-council/surrey,Surrey,http://id.esd.org.uk/service/1465,Council expenditure,12/10/2015,PROPERTY OPERATIONS TEAM,EPSOM REFUSE TRANSFER,39.96,PURCHASE OF BUILDING MATERIALS,"CLEANING AND MAINTENANCE, JANITORIAL SERVICES"
27/01/2016,http://opendatacommunities.org/id/county-council/surrey,Surrey,http://id.esd.org.uk/service/1465,Council expenditure,12/10/2015,ROW VOLUNTEERS WEST                     ,AVS FENCING SUPPLIES,-100.59,FEES,"BUILDING MATERIALS, LUMBER STORES"
27/01/2016,http://opendatacommunities.org/id/county-council/surrey,Surrey,http://id.esd.org.uk/service/1465,Council expenditure,12/10/2015,ROW VOLUNTEERS WEST                     ,AVS FENCING SUPPLIES,333.21,FEES,"BUILDING MATERIALS, LUMBER STORES"
27/01/2016,http://opendatacommunities.org/id/county-council/surrey,Surrey,http://id.esd.org.uk/service/1465,Council expenditure,12/10/2015,RUTH HOUSE,SAINSBURYS TO YOU 0686,-1,PURCHASE OF FOOD (RAW MATERIALS),"GROCERY STORES, SUPERMARKETS"
27/01/2016,http://opendatacommunities.org/id/county-council/surrey,Surrey,http://id.esd.org.uk/service/1465,Council expenditure,12/10/2015,RUTH HOUSE,ASDA,4.8,CLEANING AND DOMESTIC SUPPLIES,"GROCERY STORES, SUPERMARKETS"
27/01/2016,http://opendatacommunities.org/id/county-council/surrey,Surrey,http://id.esd.org.uk/service/1465,Council expenditure,12/10/2015,RUTH HOUSE,ASDA,14.4,CLEANING AND DOMESTIC SUPPLIES,"GROCERY STORES, SUPERMARKETS"
27/01/2016,http://opendatacommunities.org/id/county-council/surrey,Surrey,http://id.esd.org.uk/service/1465,Council expenditure,12/10/2015,RUTH HOUSE,ARGOS LTD,36.13,EQUIPMENT,DISCOUNT STORES
27/01/2016,http://opendatacommunities.org/id/county-council/surrey,Surrey,http://id.esd.org.uk/service/1465,Council expenditure,12/10/2015,RUTH HOUSE,SAINSBURYS ,37.9,PURCHASE OF FOOD (RAW MATERIALS),"GROCERY STORES, SUPERMARKETS"
27/01/2016,http://opendatacommunities.org/id/county-council/surrey,Surrey,http://id.esd.org.uk/service/1465,Council expenditure,12/10/2015,RUTH HOUSE,AMAZON UK MARKETPLACE,49.06,EDUC VISITS/HOLS/CAMPS/TOYS,BOOK STORES
27/01/2016,http://opendatacommunities.org/id/county-council/surrey,Surrey,http://id.esd.org.uk/service/1465,Council expenditure,12/10/2015,RUTH HOUSE,BT BILL PAYMENT 2,67.06,TELECOMMUNICATION CHARGES,TELECOMMUNICATION EQUIPMENT INCL TELEPHONE SALES
27/01/2016,http://opendatacommunities.org/id/county-council/surrey,Surrey,http://id.esd.org.uk/service/1465,Council expenditure,12/10/2015,RUTH HOUSE,SAINSBURYS ,187.2,PURCHASE OF FOOD (RAW MATERIALS),"GROCERY STORES, SUPERMARKETS"
27/01/2016,http://opendatacommunities.org/id/county-council/surrey,Surrey,http://id.esd.org.uk/service/1465,Council expenditure,12/10/2015,RUTH HOUSE,ASDA 4387,320.45,EDUC VISITS/HOLS/CAMPS/TOYS,"GROCERY STORES, SUPERMARKETS"
27/01/2016,http://opendatacommunities.org/id/county-council/surrey,Surrey,http://id.esd.org.uk/service/1465,Council expenditure,12/10/2015,SE CARE - LAC,THE PRIORY C OF E SCHO,300,CHILDREN ACT SEC 17 PAYMENTS,"SCHOOLS, ELEMENTARY AND SECONDARY"
27/01/2016,http://opendatacommunities.org/id/county-council/surrey,Surrey,http://id.esd.org.uk/service/1465,Council expenditure,12/10/2015,"SE REF, ASS & INT SERVICE - HUB 1",LYNWOOD GUEST HOUSE,588,CHILDREN ACT SEC 17 PAYMENTS,"LODGING-HOTELS,MOTELS,RESORTS-NOT CLASSIFIED"
27/01/2016,http://opendatacommunities.org/id/county-council/surrey,Surrey,http://id.esd.org.uk/service/1465,Council expenditure,12/10/2015,SECTOR MANAGER,ROYAL MAIL,"1,335.60",ITEMS PURCHASED FOR RE-SALE,POSTAL SERVICES-GOVERNMENT ONLY
27/01/2016,http://opendatacommunities.org/id/county-council/surrey,Surrey,http://id.esd.org.uk/service/1465,Council expenditure,12/10/2015,SINGING PROGRAMMES,SING UP,318,SUBSCRIPTIONS,"COLLEGES, UNIV, PRO SCHOOLS, JUNIOR COLLEGES"
27/01/2016,http://opendatacommunities.org/id/county-council/surrey,Surrey,http://id.esd.org.uk/service/1465,Council expenditure,12/10/2015,SOLD CURRICULUM PROGRAMME DELIVERY,THE POST OFFICE,6.01,POSTAGE AND COURIER CHARGES,POSTAL SERVICES-GOVERNMENT ONLY
27/01/2016,http://opendatacommunities.org/id/county-council/surrey,Surrey,http://id.esd.org.uk/service/1465,Council expenditure,12/10/2015,SOLD MANAGEMENT AND OVERHEADS,AMAZON EU,20,CURRICULUM CONSUMABLES,DIRECT MARKETING-OTHER DIRECT MARKETERS/NOT ELSEW.
27/01/2016,http://opendatacommunities.org/id/county-council/surrey,Surrey,http://id.esd.org.uk/service/1465,Council expenditure,12/10/2015,SOLD MANAGEMENT AND OVERHEADS,AMAZON EU,240,CURRICULUM CONSUMABLES,DIRECT MARKETING-OTHER DIRECT MARKETERS/NOT ELSEW.
27/01/2016,http://opendatacommunities.org/id/county-council/surrey,Surrey,http://id.esd.org.uk/service/1465,Council expenditure,12/10/2015,TRANSPORT,AMAZON UK MARKETPLACE,-21.95,FURNITURE,MISCELLANEOUS AND SPECIALTY RETAIL STORES
27/01/2016,http://opendatacommunities.org/id/county-council/surrey,Surrey,http://id.esd.org.uk/service/1465,Council expenditure,12/10/2015,TRANSPORT,AMAZON UK MARKETPLACE,16,COMPUTER HARDWARE,BOOK STORES
27/01/2016,http://opendatacommunities.org/id/county-council/surrey,Surrey,http://id.esd.org.uk/service/1465,Council expenditure,12/10/2015,TRANSPORT,SELCO TRADE CTR EFT S0,89.79,DAY TO DAY MAINTENANCE,"BUILDING MATERIALS, LUMBER STORES"
27/01/2016,http://opendatacommunities.org/id/county-council/surrey,Surrey,http://id.esd.org.uk/service/1465,Council expenditure,12/10/2015,TRANSPORT,INTRAMARK LIMITED,195.6,"CLOTHING, UNIFORM AND LAUNDRY",ACCESSORY AND APPAREL STORES-MISCELLANEOUS
27/01/2016,http://opendatacommunities.org/id/county-council/surrey,Surrey,http://id.esd.org.uk/service/1465,Council expenditure,12/10/2015,TRANSPORT,AMAZON UK MARKETPLACE,788,FURNITURE,BOOK STORES
27/01/2016,http://opendatacommunities.org/id/county-council/surrey,Surrey,http://id.esd.org.uk/service/1465,Council expenditure,12/10/2015,TRANSPORT POLICY TEAM,RAP INDUSTRIES LTD,"2,411.04",EQUIPMENT,INDUSTRIAL SUPPLIES NOT ELSEWHERE CLASSIFIED
27/01/2016,http://opendatacommunities.org/id/county-council/surrey,Surrey,http://id.esd.org.uk/service/1465,Council expenditure,13/10/2015,ACL CENTRAL EXPENDITURE,TESCO STORE 3539,-2.21,PURCHASE OF FOOD (RAW MATERIALS),"GROCERY STORES, SUPERMARKETS"
27/01/2016,http://opendatacommunities.org/id/county-council/surrey,Surrey,http://id.esd.org.uk/service/1465,Council expenditure,13/10/2015,ACL CENTRAL EXPENDITURE,W M MORRISONS,37.23,REFRESHMENT COSTS,"GROCERY STORES, SUPERMARKETS"
27/01/2016,http://opendatacommunities.org/id/county-council/surrey,Surrey,http://id.esd.org.uk/service/1465,Council expenditure,13/10/2015,ACL CENTRAL EXPENDITURE,COOKSON PRECIOUS M,48.67,EQUIPMENT,"PRECIOUS STONES AND METALS, WATCHES AND JEWELRY"
27/01/2016,http://opendatacommunities.org/id/county-council/surrey,Surrey,http://id.esd.org.uk/service/1465,Council expenditure,13/10/2015,ACL CENTRAL EXPENDITURE,TESCO STORE 3220,83.46,PURCHASE OF FOOD (RAW MATERIALS),"GROCERY STORES, SUPERMARKETS"
27/01/2016,http://opendatacommunities.org/id/county-council/surrey,Surrey,http://id.esd.org.uk/service/1465,Council expenditure,13/10/2015,BOOKS - CHILDREN'S FICTION              ,AMAZON EU,25.98,LIBRARY RESOURCES,DIRECT MARKETING-OTHER DIRECT MARKETERS/NOT ELSEW.
27/01/2016,http://opendatacommunities.org/id/county-council/surrey,Surrey,http://id.esd.org.uk/service/1465,Council expenditure,13/10/2015,BURBANK COMMUNITY HOME,WH SMITH,-1.5,STATIONERY,NEWS DEALERS AND NEWSSTANDS
27/01/2016,http://opendatacommunities.org/id/county-council/surrey,Surrey,http://id.esd.org.uk/service/1465,Council expenditure,13/10/2015,CHEYNE WALK COMMUNITY HOME,AMF BOWLING,3.98,PURCHASE OF FOOD (RAW MATERIALS),"CLUBS-CNTRY,MBRSHIP(ATHLET,REC,SPRTS,PRIVATE GOLF"
27/01/2016,http://opendatacommunities.org/id/county-council/surrey,Surrey,http://id.esd.org.uk/service/1465,Council expenditure,13/10/2015,CHEYNE WALK COMMUNITY HOME,BOOTS 1449,14.82,EQUIPMENT,"DRUG STORES, PHARMACIES"
27/01/2016,http://opendatacommunities.org/id/county-council/surrey,Surrey,http://id.esd.org.uk/service/1465,Council expenditure,13/10/2015,CHEYNE WALK COMMUNITY HOME,AMF BOWLING,19.9,EDUC VISITS/HOLS/CAMPS/TOYS,"CLUBS-CNTRY,MBRSHIP(ATHLET,REC,SPRTS,PRIVATE GOLF"
27/01/2016,http://opendatacommunities.org/id/county-council/surrey,Surrey,http://id.esd.org.uk/service/1465,Council expenditure,13/10/2015,CHEYNE WALK COMMUNITY HOME,SAINSBURYS SACAT 0026,38,EQUIPMENT,"GROCERY STORES, SUPERMARKETS"
27/01/2016,http://opendatacommunities.org/id/county-council/surrey,Surrey,http://id.esd.org.uk/service/1465,Council expenditure,13/10/2015,CHEYNE WALK COMMUNITY HOME,SPORTSDIRECT 91,90.44,"CLOTHING, UNIFORM AND LAUNDRY",SPORTING GOODS STORES
27/01/2016,http://opendatacommunities.org/id/county-council/surrey,Surrey,http://id.esd.org.uk/service/1465,Council expenditure,13/10/2015,CHEYNE WALK COMMUNITY HOME,SAINSBURYS TO YOU 0026,200.27,PURCHASE OF FOOD (RAW MATERIALS),"GROCERY STORES, SUPERMARKETS"
27/01/2016,http://opendatacommunities.org/id/county-council/surrey,Surrey,http://id.esd.org.uk/service/1465,Council expenditure,13/10/2015,COMMUNICATIONS TEAM,ITUNES.COM/BILL,3.99,SUBSCRIPTIONS,RECORD SHOPS
27/01/2016,http://opendatacommunities.org/id/county-council/surrey,Surrey,http://id.esd.org.uk/service/1465,Council expenditure,13/10/2015,COMMUNITY ENGAG COM,WH SMITH,32.93,STATIONERY,NEWS DEALERS AND NEWSSTANDS
27/01/2016,http://opendatacommunities.org/id/county-council/surrey,Surrey,http://id.esd.org.uk/service/1465,Council expenditure,13/10/2015,DEPUTYSHIP TEAM,PARADES,798,3RD PARTY PAYMENTS PRIVATE INDIV,"EQUIP, FURNITURE, HOME FURNSHNGS STRS (EXCPT APPL)"
27/01/2016,http://opendatacommunities.org/id/county-council/surrey,Surrey,http://id.esd.org.uk/service/1465,Council expenditure,13/10/2015,DOWNLANDS COUNTRYSIDE PROJECT,TESCO STORES-2270,9.5,REFRESHMENT COSTS,"GROCERY STORES, SUPERMARKETS"
27/01/2016,http://opendatacommunities.org/id/county-council/surrey,Surrey,http://id.esd.org.uk/service/1465,Council expenditure,13/10/2015,DOWNLANDS COUNTRYSIDE PROJECT,TESCO STORES,63.74,REFRESHMENT COSTS,"GROCERY STORES, SUPERMARKETS"
27/01/2016,http://opendatacommunities.org/id/county-council/surrey,Surrey,http://id.esd.org.uk/service/1465,Council expenditure,13/10/2015,E&I - LOVE FOOD HATE WASTE              ,GOOGLE  ADWS2060179426,500,PUBLICITY,DIRECT MARKETING-CONTINUITY/SUBSCRIPTION MERCHANTS
27/01/2016,http://opendatacommunities.org/id/county-council/surrey,Surrey,http://id.esd.org.uk/service/1465,Council expenditure,13/10/2015,EYS EQUIPMENT,AMAZON UK MARKETPLACE,9.41,CURRICULUM EQUIPMENT AND FURNITURE,BOOK STORES
27/01/2016,http://opendatacommunities.org/id/county-council/surrey,Surrey,http://id.esd.org.uk/service/1465,Council expenditure,13/10/2015,FRIMLEY YC,CO-OP GROUP 350033,3.09,PURCHASE OF FOOD (RAW MATERIALS),"GROCERY STORES, SUPERMARKETS"
27/01/2016,http://opendatacommunities.org/id/county-council/surrey,Surrey,http://id.esd.org.uk/service/1465,Council expenditure,13/10/2015,GUILDFORD BOROUGH TEAM                  ,GRO HM PASSPORT OFFICE,23.4,EQUIPMENT,GOVERNMENT SERVICES-NOT ELSEWHERE CLASSIFIED
27/01/2016,http://opendatacommunities.org/id/county-council/surrey,Surrey,http://id.esd.org.uk/service/1465,Council expenditure,13/10/2015,HERITAGE PUBLIC SERVICE,PREMIER INN44533930,255.5,SUBSISTENCE AND CONFERENCE EXPENSES,PREMIER INN
27/01/2016,http://opendatacommunities.org/id/county-council/surrey,Surrey,http://id.esd.org.uk/service/1465,Council expenditure,13/10/2015,HERITAGE STEWARDSHIP AND PRESERVATION,LYON & TURNBULL LTD,17,BOOKS,ART DEALERS AND GALLERIES
27/01/2016,http://opendatacommunities.org/id/county-council/surrey,Surrey,http://id.esd.org.uk/service/1465,Council expenditure,13/10/2015,HILLSIDE,TESCO STORES 5850,25.66,PURCHASE OF FOOD (RAW MATERIALS),"GROCERY STORES, SUPERMARKETS"
27/01/2016,http://opendatacommunities.org/id/county-council/surrey,Surrey,http://id.esd.org.uk/service/1465,Council expenditure,13/10/2015,HILLSIDE,KEEP ABLE,54.3,EQUIPMENT,"HEARING AIDS-SALES, SERVICE, SUPPLY STORES"
27/01/2016,http://opendatacommunities.org/id/county-council/surrey,Surrey,http://id.esd.org.uk/service/1465,Council expenditure,13/10/2015,HILLSIDE,SAINSBURYS 2174,80.57,PURCHASE OF FOOD (RAW MATERIALS),"GROCERY STORES, SUPERMARKETS"
27/01/2016,http://opendatacommunities.org/id/county-council/surrey,Surrey,http://id.esd.org.uk/service/1465,Council expenditure,13/10/2015,HOPE SERVICE - WEST,MERCEDES-BENZ WORLD,6.8,REFRESHMENT COSTS,"EATING PLACES, RESTAURANTS"
27/01/2016,http://opendatacommunities.org/id/county-council/surrey,Surrey,http://id.esd.org.uk/service/1465,Council expenditure,13/10/2015,KARIBU COMMUNITY HOME,HOWARDS ELECTRICAL,106.8,EQUIPMENT,HOUSEHOLD APPLIANCE STORES
27/01/2016,http://opendatacommunities.org/id/county-council/surrey,Surrey,http://id.esd.org.uk/service/1465,Council expenditure,13/10/2015,KARIBU COMMUNITY HOME,TESCO STORE 2812,395.25,PURCHASE OF FOOD (RAW MATERIALS),"GROCERY STORES, SUPERMARKETS"
27/01/2016,http://opendatacommunities.org/id/county-council/surrey,Surrey,http://id.esd.org.uk/service/1465,Council expenditure,13/10/2015,LEAVING CARE PACKAGES,TRAVELODGE WEBSITE,297.35,3RD PARTY PAYMENTS PRIVATE INDIV,TRAVELODGE
27/01/2016,http://opendatacommunities.org/id/county-council/surrey,Surrey,http://id.esd.org.uk/service/1465,Council expenditure,13/10/2015,LOCAL DELIVERY GROUP,AMAZON EU,-13.94,BOOKS,DIRECT MARKETING-OTHER DIRECT MARKETERS/NOT ELSEW.
27/01/2016,http://opendatacommunities.org/id/county-council/surrey,Surrey,http://id.esd.org.uk/service/1465,Council expenditure,13/10/2015,LOCAL DELIVERY GROUP,AMAZON UK MARKETPLACE,1.89,EQUIPMENT,BOOK STORES
27/01/2016,http://opendatacommunities.org/id/county-council/surrey,Surrey,http://id.esd.org.uk/service/1465,Council expenditure,13/10/2015,LOCAL DELIVERY GROUP,AMAZON UK MARKETPLACE,211.69,EQUIPMENT,BOOK STORES
27/01/2016,http://opendatacommunities.org/id/county-council/surrey,Surrey,http://id.esd.org.uk/service/1465,Council expenditure,13/10/2015,MSI EQUIPMENT,AMAZON UK MARKETPLACE,7.29,EQUIPMENT,BOOK STORES
27/01/2016,http://opendatacommunities.org/id/county-council/surrey,Surrey,http://id.esd.org.uk/service/1465,Council expenditure,13/10/2015,MSI EQUIPMENT,AMAZON UK MARKETPLACE,8.99,CURRICULUM EQUIPMENT AND FURNITURE,BOOK STORES
27/01/2016,http://opendatacommunities.org/id/county-council/surrey,Surrey,http://id.esd.org.uk/service/1465,Council expenditure,13/10/2015,MSI EQUIPMENT,AMAZON UK MARKETPLACE,33.59,CURRICULUM EQUIPMENT AND FURNITURE,BOOK STORES
27/01/2016,http://opendatacommunities.org/id/county-council/surrey,Surrey,http://id.esd.org.uk/service/1465,Council expenditure,13/10/2015,NORTH EAST AREA TEAM,TFL OYST PHOTOCARD,20,NON-STAFF RELATED TRANSPORT COSTS,PASSENGER RAILWAYS
27/01/2016,http://opendatacommunities.org/id/county-council/surrey,Surrey,http://id.esd.org.uk/service/1465,Council expenditure,13/10/2015,NW SECTION 17 CARE,TRAVELODGE,116,CHILDREN ACT SEC 17 PAYMENTS,TRAVELODGE
27/01/2016,http://opendatacommunities.org/id/county-council/surrey,Surrey,http://id.esd.org.uk/service/1465,Council expenditure,13/10/2015,PE/CDT MAINTENANCE OVERHEADS,UNIVERSAL SERVICES (SP,256.73,ITEMS PURCHASED FOR RE-SALE,"ATHLTIC FIELDS,COMMRCL SPRT,SPRT CLBS,SPRT PROMOTR"
27/01/2016,http://opendatacommunities.org/id/county-council/surrey,Surrey,http://id.esd.org.uk/service/1465,Council expenditure,13/10/2015,PE/CDT MAINTENANCE OVERHEADS,HARROD UK SPORT,319.91,ITEMS PURCHASED FOR RE-SALE,"SPORTS APPAREL, RIDING APPAREL STORES"
27/01/2016,http://opendatacommunities.org/id/county-council/surrey,Surrey,http://id.esd.org.uk/service/1465,Council expenditure,13/10/2015,PE/CDT MAINTENANCE OVERHEADS,HARROD UK SPORT,574.61,ITEMS PURCHASED FOR RE-SALE,"SPORTS APPAREL, RIDING APPAREL STORES"
27/01/2016,http://opendatacommunities.org/id/county-council/surrey,Surrey,http://id.esd.org.uk/service/1465,Council expenditure,13/10/2015,POLICY AND PERFORMANCE TEAM,AMAZON EU,37.74,CLEANING AND DOMESTIC SUPPLIES,DIRECT MARKETING-OTHER DIRECT MARKETERS/NOT ELSEW.
27/01/2016,http://opendatacommunities.org/id/county-council/surrey,Surrey,http://id.esd.org.uk/service/1465,Council expenditure,13/10/2015,ROW VOLUNTEERS EAST                     ,TESCO STORES 2683,8.05,REFRESHMENT COSTS,"GROCERY STORES, SUPERMARKETS"
27/01/2016,http://opendatacommunities.org/id/county-council/surrey,Surrey,http://id.esd.org.uk/service/1465,Council expenditure,13/10/2015,ROW VOLUNTEERS WEST                     ,SCREWFIX GUILDFORD,14.99,FEES,"BUILDING MATERIALS, LUMBER STORES"
27/01/2016,http://opendatacommunities.org/id/county-council/surrey,Surrey,http://id.esd.org.uk/service/1465,Council expenditure,13/10/2015,ROW VOLUNTEERS WEST                     ,PRACTICAL CAR & VAN RE,104,FEES,AUTOMOBILE RENTAL AGENCY-NOT ELSEWHERE CLASSIFIED
27/01/2016,http://opendatacommunities.org/id/county-council/surrey,Surrey,http://id.esd.org.uk/service/1465,Council expenditure,13/10/2015,RUTH HOUSE,AMAZON UK MARKETPLACE,2.69,EDUC VISITS/HOLS/CAMPS/TOYS,BOOK STORES
27/01/2016,http://opendatacommunities.org/id/county-council/surrey,Surrey,http://id.esd.org.uk/service/1465,Council expenditure,13/10/2015,RUTH HOUSE,AMAZON UK MARKETPLACE,2.75,EDUC VISITS/HOLS/CAMPS/TOYS,BOOK STORES
27/01/2016,http://opendatacommunities.org/id/county-council/surrey,Surrey,http://id.esd.org.uk/service/1465,Council expenditure,13/10/2015,RUTH HOUSE,AMAZON UK MARKETPLACE,53.98,EQUIPMENT,BOOK STORES
27/01/2016,http://opendatacommunities.org/id/county-council/surrey,Surrey,http://id.esd.org.uk/service/1465,Council expenditure,13/10/2015,SE CARE - CP & COURT LAC,GRO HM PASSPORT OFFICE,-9.25,OTHER COMMUNITY CARE VOL,GOVERNMENT SERVICES-NOT ELSEWHERE CLASSIFIED
27/01/2016,http://opendatacommunities.org/id/county-council/surrey,Surrey,http://id.esd.org.uk/service/1465,Council expenditure,13/10/2015,SE CARE - CP & COURT LAC,GRO HM PASSPORT OFFICE,9.25,OTHER COMMUNITY CARE VOL,GOVERNMENT SERVICES-NOT ELSEWHERE CLASSIFIED
27/01/2016,http://opendatacommunities.org/id/county-council/surrey,Surrey,http://id.esd.org.uk/service/1465,Council expenditure,13/10/2015,"SE REF, ASS & INT SERVICE - HUB 2",PREMIER INN44012925,98.5,CHILDREN ACT SEC 17 PAYMENTS,PREMIER INN
27/01/2016,http://opendatacommunities.org/id/county-council/surrey,Surrey,http://id.esd.org.uk/service/1465,Council expenditure,13/10/2015,SECTOR MANAGER,FAYE (UK) LTD,288,ITEMS PURCHASED FOR RE-SALE,LEATHER GOODS AND LUGGAGE STORES
27/01/2016,http://opendatacommunities.org/id/county-council/surrey,Surrey,http://id.esd.org.uk/service/1465,Council expenditure,13/10/2015,SOLD DAY TO DAY OPERATIONS,BOURNE MILL ANTIQUES,34,EQUIPMENT,"ANTIQUE SHOPS-SALES,REPAIRS,RESTORATION SERVICES"
27/01/2016,http://opendatacommunities.org/id/county-council/surrey,Surrey,http://id.esd.org.uk/service/1465,Council expenditure,13/10/2015,SURREY GROWTH STRATEGY,AZTEC EVENTS SERVICES,528.55,VENUE COSTS (INCLUDING HIRE OF ROOMS),"EQUIPMENT RENTAL&LEASING SVS, FURNTURE/TOOL RENTAL"
27/01/2016,http://opendatacommunities.org/id/county-council/surrey,Surrey,http://id.esd.org.uk/service/1465,Council expenditure,13/10/2015,TARGETED INTERVENTION,GERRY'S OFFSHORE I,4.2,EDUC VISITS/HOLS/CAMPS/TOYS,FAST FOOD RESTAURANTS
27/01/2016,http://opendatacommunities.org/id/county-council/surrey,Surrey,http://id.esd.org.uk/service/1465,Council expenditure,13/10/2015,THE BRIDGE YC,TESCO STORES 2812,5.13,PURCHASE OF FOOD (RAW MATERIALS),"GROCERY STORES, SUPERMARKETS"
27/01/2016,http://opendatacommunities.org/id/county-council/surrey,Surrey,http://id.esd.org.uk/service/1465,Council expenditure,13/10/2015,TRAINING AND DEVELOPMENT,ACT IIRSM,597.6,SUBSISTENCE AND CONFERENCE EXPENSES,BUSINESS SERVICES-NOT ELSEWHERE CLASSIFIED
27/01/2016,http://opendatacommunities.org/id/county-council/surrey,Surrey,http://id.esd.org.uk/service/1465,Council expenditure,13/10/2015,TRANSPORT,SCREWFIX DIRECT LT,5.3,DAY TO DAY MAINTENANCE,"BUILDING MATERIALS, LUMBER STORES"
27/01/2016,http://opendatacommunities.org/id/county-council/surrey,Surrey,http://id.esd.org.uk/service/1465,Council expenditure,13/10/2015,TRANSPORT,ARGOS REIGATE,24.98,FURNITURE,DISCOUNT STORES
27/01/2016,http://opendatacommunities.org/id/county-council/surrey,Surrey,http://id.esd.org.uk/service/1465,Council expenditure,13/10/2015,TRANSPORT,ARGOS REIGATE,34.99,DAY TO DAY MAINTENANCE,DISCOUNT STORES
27/01/2016,http://opendatacommunities.org/id/county-council/surrey,Surrey,http://id.esd.org.uk/service/1465,Council expenditure,13/10/2015,TRANSPORT,AMAZON UK MARKETPLACE,39.99,FURNITURE,BOOK STORES
27/01/2016,http://opendatacommunities.org/id/county-council/surrey,Surrey,http://id.esd.org.uk/service/1465,Council expenditure,13/10/2015,TRANSPORT,SCREWFIX DIRECT,77.97,EQUIPMENT,"BUILDING MATERIALS, LUMBER STORES"
27/01/2016,http://opendatacommunities.org/id/county-council/surrey,Surrey,http://id.esd.org.uk/service/1465,Council expenditure,13/10/2015,WOODLANDS COMMUNITY HOME,SAINSBURYS,18.4,CLEANING MATERIALS,"GROCERY STORES, SUPERMARKETS"
27/01/2016,http://opendatacommunities.org/id/county-council/surrey,Surrey,http://id.esd.org.uk/service/1465,Council expenditure,13/10/2015,WOODLANDS COMMUNITY HOME,SAINSBURYS,45.95,PURCHASE OF FOOD (RAW MATERIALS),"GROCERY STORES, SUPERMARKETS"
27/01/2016,http://opendatacommunities.org/id/county-council/surrey,Surrey,http://id.esd.org.uk/service/1465,Council expenditure,13/10/2015,WOODLANDS COMMUNITY HOME,SAINSBURYS,131.45,PURCHASE OF FOOD (RAW MATERIALS),"GROCERY STORES, SUPERMARKETS"
27/01/2016,http://opendatacommunities.org/id/county-council/surrey,Surrey,http://id.esd.org.uk/service/1465,Council expenditure,13/10/2015,YSS YOUTH CENTRE IMPROVEMENTS,ARGOS GODALMING IN,16.99,EQUIPMENT,DISCOUNT STORES
27/01/2016,http://opendatacommunities.org/id/county-council/surrey,Surrey,http://id.esd.org.uk/service/1465,Council expenditure,14/10/2015,ACCESS 2 EDUCATION NE NON-MEDICAL,AMAZON EU,127.99,BOOKS,DIRECT MARKETING-OTHER DIRECT MARKETERS/NOT ELSEW.
27/01/2016,http://opendatacommunities.org/id/county-council/surrey,Surrey,http://id.esd.org.uk/service/1465,Council expenditure,14/10/2015,ACL CENTRAL EXPENDITURE,SUPERDRUG STORES PLC,5.76,CURRICULUM CONSUMABLES,"DRUG STORES, PHARMACIES"
27/01/2016,http://opendatacommunities.org/id/county-council/surrey,Surrey,http://id.esd.org.uk/service/1465,Council expenditure,14/10/2015,ACL CENTRAL EXPENDITURE,WAITROSE 181,16.6,REFRESHMENT COSTS,"GROCERY STORES, SUPERMARKETS"
27/01/2016,http://opendatacommunities.org/id/county-council/surrey,Surrey,http://id.esd.org.uk/service/1465,Council expenditure,14/10/2015,ACL CENTRAL EXPENDITURE,WH SMITH,19.72,CURRICULUM CONSUMABLES,NEWS DEALERS AND NEWSSTANDS
27/01/2016,http://opendatacommunities.org/id/county-council/surrey,Surrey,http://id.esd.org.uk/service/1465,Council expenditure,14/10/2015,ACL CENTRAL EXPENDITURE,WH SMITH,32.38,CURRICULUM CONSUMABLES,NEWS DEALERS AND NEWSSTANDS
27/01/2016,http://opendatacommunities.org/id/county-council/surrey,Surrey,http://id.esd.org.uk/service/1465,Council expenditure,14/10/2015,ACL CENTRAL EXPENDITURE,AMAZON EU,162,COMPUTER CONSUMABLES,DIRECT MARKETING-OTHER DIRECT MARKETERS/NOT ELSEW.
27/01/2016,http://opendatacommunities.org/id/county-council/surrey,Surrey,http://id.esd.org.uk/service/1465,Council expenditure,14/10/2015,ACL CENTRAL EXPENDITURE,AMAZON EU,386.5,CURRIC BOOKS,DIRECT MARKETING-OTHER DIRECT MARKETERS/NOT ELSEW.
27/01/2016,http://opendatacommunities.org/id/county-council/surrey,Surrey,http://id.esd.org.uk/service/1465,Council expenditure,14/10/2015,ARUNDEL,TESCOS,8,REFRESHMENT COSTS,"GROCERY STORES, SUPERMARKETS"
27/01/2016,http://opendatacommunities.org/id/county-council/surrey,Surrey,http://id.esd.org.uk/service/1465,Council expenditure,14/10/2015,ARUNDEL,TESCOS,69.01,REFRESHMENT COSTS,"GROCERY STORES, SUPERMARKETS"
27/01/2016,http://opendatacommunities.org/id/county-council/surrey,Surrey,http://id.esd.org.uk/service/1465,Council expenditure,14/10/2015,ASHTEAD YC,TESCO STORE 2812,13.61,PURCHASE OF FOOD (RAW MATERIALS),"GROCERY STORES, SUPERMARKETS"
27/01/2016,http://opendatacommunities.org/id/county-council/surrey,Surrey,http://id.esd.org.uk/service/1465,Council expenditure,14/10/2015,ASSESSMENT TEAM,AMAZON EU,13.58,EQUIPMENT,DIRECT MARKETING-OTHER DIRECT MARKETERS/NOT ELSEW.
27/01/2016,http://opendatacommunities.org/id/county-council/surrey,Surrey,http://id.esd.org.uk/service/1465,Council expenditure,14/10/2015,ASSESSMENT TEAM,AMAZON EU,20.37,EQUIPMENT,DIRECT MARKETING-OTHER DIRECT MARKETERS/NOT ELSEW.
